{"text_format":"1","workbook":"xlsx","n_sheets":1,"sheets":["手書き用"],"not_rendered":{"charts":0,"images":0,"macros":1,"external_links":0,"defined_names":1,"comments":1,"pivot_tables":0},"unopened":[],"bounds":{"document_bytes":16777216,"sheet_cells":100000,"rows_first":2000,"rows_last":500,"rows_between":2000,"halvings":0,"cell_chars":16384,"cell_head_chars":4096},"cells_cut":0,"cells_raw":0,"read":"whole","date_system":"1900"}

{"sheet":"手書き用","index":0,"n_rows":485,"n_cols":360,"rows_kept":485,"cut":false,"hidden":false,"merged":[[32,23,36,33],[70,49,71,67],[72,30,75,46],[72,47,75,48],[72,49,75,65],[72,66,75,67],[73,22,87,29],[76,30,77,48],[76,49,77,67],[78,30,81,46],[78,47,81,48],[78,49,81,65],[484,46,485,66],[183,84,186,86],[199,73,202,80],[199,81,202,81],[199,82,202,83],[159,73,160,83],[161,73,162,83],[167,73,170,83],[90,73,92,74],[90,75,94,83],[95,73,97,74],[95,75,99,83],[146,84,149,86],[113,35,114,52],[113,66,118,67],[171,73,174,83],[95,53,97,67],[98,53,102,67],[40,22,41,26],[42,22,45,25],[42,26,45,29],[42,30,45,33],[88,22,94,29],[88,30,90,48],[88,49,90,67],[91,30,94,46],[91,47,94,48],[91,49,94,65],[91,66,94,67],[95,22,97,29],[126,73,129,83],[130,73,145,74],[130,75,133,83],[134,75,137,83],[142,75,145,83],[138,75,141,83],[86,75,89,83],[53,75,57,83],[78,66,81,67],[82,30,83,48],[82,49,87,67],[84,30,87,46],[84,47,87,48],[98,22,102,29],[53,30,54,48],[53,49,54,67],[53,22,54,29],[70,22,72,29],[70,30,71,48],[82,75,85,83],[103,66,108,67],[103,32,104,34],[1,0,1,12],[1,113,2,117],[1,119,2,123],[1,125,2,129],[2,0,2,3],[2,4,2,6],[2,7,2,9],[2,10,2,13],[2,17,3,34],[2,42,2,44],[4,56,4,65],[4,84,4,96],[4,97,4,101],[4,4,4,6],[4,10,4,13],[4,17,4,29],[4,30,4,34],[4,39,6,40],[4,41,6,42],[2,90,3,91],[2,92,3,95],[3,0,4,2],[3,3,4,3],[3,4,3,6],[3,7,4,9],[3,10,3,13],[3,39,3,42],[3,43,6,44],[3,45,6,46],[2,48,5,49],[2,50,2,55],[2,56,2,65],[2,66,2,75],[2,84,3,86],[2,87,3,89],[6,50,6,55],[6,56,6,65],[6,66,6,75],[3,50,3,55],[3,56,3,65],[3,66,3,75],[4,50,4,55],[5,56,5,65],[5,66,5,68],[5,69,5,71],[5,97,5,101],[6,0,8,2],[6,3,8,3],[6,4,8,6],[6,7,6,9],[6,10,6,13],[6,48,9,49],[8,50,8,55],[8,56,8,65],[9,0,9,2],[9,4,9,6],[9,7,9,9],[9,10,9,13],[9,50,9,55],[9,56,9,65],[7,45,7,46],[7,50,7,55],[7,56,7,65],[7,66,7,75],[5,0,5,2],[5,4,5,6],[5,7,5,9],[5,10,5,13],[5,17,11,29],[5,30,11,34],[5,50,5,55],[12,43,12,44],[12,45,12,46],[12,52,12,64],[11,0,12,2],[11,3,12,3],[11,4,12,6],[11,7,11,9],[11,10,11,13],[12,7,12,9],[12,10,12,13],[12,17,12,34],[12,39,12,40],[12,41,12,42],[9,66,9,68],[6,84,6,96],[6,97,6,101],[7,7,7,9],[7,10,7,13],[7,39,7,40],[7,41,7,42],[7,43,7,44],[9,69,9,71],[10,0,10,2],[10,4,10,6],[10,7,10,9],[10,10,10,13],[10,39,10,40],[10,41,10,42],[10,43,10,44],[10,45,10,46],[8,41,9,42],[8,43,9,44],[8,45,9,46],[8,7,8,9],[8,10,8,13],[8,39,9,40],[15,0,16,9],[15,10,16,10],[15,11,16,13],[15,23,16,86],[20,0,22,7],[20,98,22,100],[22,31,25,37],[22,38,25,41],[22,42,25,48],[22,49,23,61],[13,0,14,2],[13,3,14,3],[13,4,14,6],[13,7,13,9],[13,10,13,13],[14,7,14,9],[14,10,14,13],[26,145,31,153],[26,154,31,156],[27,34,31,43],[27,44,31,55],[27,56,31,77],[27,78,31,85],[27,86,31,100],[28,134,31,139],[28,140,31,141],[26,113,31,120],[26,121,31,124],[26,125,31,127],[26,128,31,133],[26,134,27,141],[26,142,31,144],[22,62,25,74],[23,78,26,85],[23,86,26,100],[24,49,25,61],[35,140,37,141],[35,142,37,144],[35,145,37,145],[35,146,37,153],[35,154,37,156],[37,34,39,43],[37,44,39,69],[37,70,44,76],[38,114,40,120],[38,121,40,124],[35,34,36,43],[35,114,37,120],[35,121,37,124],[35,125,37,127],[35,128,37,133],[35,134,37,139],[32,134,34,139],[32,140,34,141],[32,142,34,144],[32,145,34,145],[32,146,34,153],[32,154,34,156],[32,86,36,100],[32,113,49,113],[32,114,34,120],[32,121,34,124],[32,125,34,127],[32,128,34,133],[38,125,40,127],[38,128,40,133],[41,125,43,127],[41,128,43,133],[41,134,43,139],[41,140,43,141],[41,142,43,144],[41,145,43,145],[41,146,43,153],[41,154,43,156],[40,34,44,43],[40,44,44,67],[40,68,44,69],[41,114,43,120],[41,121,43,124],[44,114,47,119],[44,120,47,120],[44,121,47,124],[45,77,49,82],[38,134,40,139],[38,140,40,141],[38,142,40,144],[38,145,40,145],[38,146,40,153],[38,154,40,156],[48,135,48,141],[48,142,49,147],[48,148,49,148],[48,149,48,156],[49,102,49,111],[49,135,49,141],[49,149,49,156],[45,135,47,141],[45,149,47,156],[48,114,49,119],[48,120,49,120],[48,125,49,133],[45,34,49,38],[45,55,49,59],[45,60,49,71],[45,72,49,76],[44,125,47,133],[44,134,47,134],[44,135,44,141],[44,142,47,147],[44,148,47,148],[44,149,44,156],[50,145,51,145],[50,146,51,153],[50,154,51,156],[50,22,52,66],[51,102,52,111],[52,114,54,120],[52,121,54,124],[52,125,54,127],[52,128,54,133],[52,134,54,139],[50,121,51,124],[50,125,51,127],[50,128,51,133],[50,134,51,139],[50,140,51,141],[50,142,51,144],[50,113,58,113],[50,114,51,120],[53,73,62,74],[45,83,49,100],[53,84,57,86],[48,134,49,134],[55,148,58,148],[55,149,55,156],[56,149,58,156],[53,99,57,100],[53,70,104,72],[61,102,62,111],[61,134,61,136],[59,114,61,120],[59,121,61,124],[59,125,61,127],[59,128,61,133],[59,134,60,136],[59,137,60,139],[61,137,61,139],[53,102,55,111],[55,114,58,119],[56,102,57,111],[58,87,62,100],[58,102,60,111],[59,113,75,113],[73,135,75,141],[68,135,68,141],[76,102,77,111],[52,140,54,141],[52,142,54,144],[52,145,54,145],[52,146,54,153],[52,154,54,156],[64,134,64,136],[64,137,64,139],[48,121,49,124],[62,140,64,141],[62,142,64,144],[62,145,64,145],[62,146,64,153],[62,154,64,156],[58,75,62,83],[58,84,62,86],[55,120,58,120],[55,121,58,124],[55,125,58,137],[55,138,58,147],[65,125,67,127],[65,128,67,133],[65,134,66,136],[59,140,61,141],[59,142,61,144],[59,145,61,145],[59,146,61,153],[59,154,61,156],[65,142,67,144],[65,145,67,145],[65,146,67,153],[65,154,67,156],[66,73,69,83],[66,84,69,86],[66,87,69,100],[66,102,67,111],[67,134,67,136],[67,137,67,139],[65,121,67,124],[53,87,57,98],[63,73,65,83],[63,84,65,86],[62,114,64,120],[62,121,64,124],[62,125,64,127],[62,128,64,133],[62,134,63,136],[62,137,63,139],[68,134,71,134],[71,102,72,111],[72,114,75,119],[72,120,75,120],[72,121,75,124],[73,102,75,111],[65,137,66,139],[63,87,65,100],[63,102,65,111],[74,73,77,83],[74,84,77,86],[65,114,67,120],[68,148,71,148],[68,149,68,156],[69,135,71,141],[69,149,71,156],[76,143,81,147],[90,84,94,86],[90,87,94,100],[92,114,94,126],[92,127,94,127],[92,128,94,134],[73,149,75,156],[76,113,99,113],[72,125,75,133],[72,134,75,134],[65,140,67,141],[72,142,75,147],[72,148,75,148],[72,149,72,156],[86,84,89,86],[86,114,88,119],[76,148,81,154],[76,155,81,157],[86,87,89,100],[68,102,70,111],[68,114,71,119],[68,120,71,120],[68,121,71,124],[68,125,71,133],[72,135,72,141],[70,84,73,86],[70,87,73,100],[68,142,71,147],[82,84,85,86],[82,87,85,100],[78,73,89,74],[78,75,81,83],[78,84,81,86],[78,87,81,100],[78,102,80,111],[78,135,81,140],[76,114,81,119],[76,135,77,142],[78,141,81,142],[89,114,91,119],[89,120,91,125],[89,126,91,127],[89,128,91,134],[74,87,77,100],[89,135,91,140],[89,141,91,142],[76,120,81,125],[76,126,81,127],[76,128,81,134],[86,148,88,154],[86,155,88,157],[87,102,89,111],[86,120,88,125],[86,126,88,127],[86,128,88,134],[86,135,88,140],[86,141,88,142],[86,143,88,147],[81,102,86,111],[92,135,94,149],[92,150,94,150],[92,151,94,157],[104,0,106,11],[105,70,154,72],[105,73,108,74],[105,75,108,83],[105,84,108,86],[105,87,108,100],[95,147,99,147],[95,148,95,157],[96,123,99,127],[96,141,99,145],[96,148,99,157],[98,73,99,74],[99,102,100,111],[100,73,104,83],[100,84,104,86],[89,143,91,147],[89,148,91,154],[89,155,91,157],[93,73,94,74],[95,128,99,128],[95,129,99,129],[95,130,99,130],[95,131,99,140],[95,141,95,145],[95,146,99,146],[95,84,99,86],[95,87,99,100],[95,114,99,118],[95,119,99,119],[95,120,99,122],[95,123,95,127],[107,112,109,112],[109,73,113,74],[109,75,113,83],[109,84,113,86],[109,87,113,100],[110,102,111,111],[105,102,106,111],[113,129,113,133],[113,134,113,142],[101,102,103,111],[107,0,156,0],[107,1,110,2],[107,3,110,7],[107,8,110,8],[107,9,110,11],[107,102,109,111],[111,1,115,2],[111,3,115,7],[111,8,115,8],[23,15,153,16],[23,17,153,19],[32,34,34,43],[32,44,36,55],[32,56,36,77],[32,78,36,85],[116,1,119,7],[116,8,119,8],[120,1,123,7],[120,8,123,8],[120,9,123,11],[103,22,107,29],[114,73,117,83],[114,84,117,86],[114,87,117,100],[124,1,135,7],[124,8,135,8],[124,9,135,11],[146,5,147,7],[146,9,147,11],[146,73,149,83],[100,87,104,100],[70,73,73,83],[111,9,115,11],[112,102,114,111],[112,112,114,112],[117,129,117,133],[117,134,117,135],[117,139,117,141],[118,73,121,83],[118,84,121,86],[118,87,121,100],[118,128,121,128],[118,129,118,133],[118,134,118,141],[119,115,121,117],[115,134,115,135],[115,139,115,141],[116,9,119,11],[116,129,116,133],[116,134,116,135],[116,139,116,141],[117,102,119,111],[117,112,119,112],[115,35,118,52],[113,53,118,57],[113,58,118,65],[120,102,121,111],[119,118,121,120],[119,129,119,133],[119,134,119,135],[119,139,119,141],[120,129,120,133],[109,55,110,61],[105,32,108,34],[105,35,108,52],[122,73,125,83],[122,84,125,86],[122,87,125,100],[122,102,124,111],[114,128,117,128],[114,129,114,133],[114,134,114,141],[115,102,116,111],[115,129,115,133],[126,84,129,86],[130,84,133,86],[126,87,129,100],[103,53,108,57],[103,58,108,65],[144,1,147,4],[144,5,145,7],[144,8,147,8],[144,9,145,11],[115,32,118,34],[148,1,151,7],[148,8,151,8],[136,154,145,156],[109,62,112,67],[134,84,137,86],[134,87,137,100],[135,102,137,111],[135,112,137,112],[126,66,129,67],[155,70,206,72],[155,73,158,83],[142,134,145,139],[142,140,145,141],[149,140,151,141],[149,142,151,144],[149,145,151,145],[149,146,151,153],[149,154,151,156],[150,73,154,83],[150,84,154,86],[150,87,154,100],[136,128,145,133],[136,134,137,141],[120,134,120,135],[120,139,120,141],[121,129,121,133],[121,134,121,135],[149,112,151,112],[149,114,151,120],[149,121,151,124],[149,125,151,127],[149,128,151,133],[126,35,129,51],[146,87,149,100],[142,84,145,86],[142,102,143,111],[121,139,121,141],[136,113,145,120],[136,121,145,124],[136,125,145,127],[138,84,141,86],[138,87,141,100],[142,87,145,100],[130,87,133,100],[122,112,124,112],[122,115,122,117],[122,118,122,120],[125,102,134,111],[152,102,153,111],[152,114,154,120],[158,121,161,124],[158,125,161,133],[152,121,154,124],[152,125,154,127],[126,57,129,65],[126,52,129,56],[123,52,125,57],[123,35,125,51],[148,9,151,11],[119,32,122,37],[119,55,120,61],[119,62,122,67],[146,140,148,141],[146,142,148,144],[152,128,154,133],[152,134,154,139],[155,134,157,139],[158,134,161,134],[158,135,158,141],[158,142,161,147],[140,62,143,67],[154,62,159,63],[154,64,159,67],[144,102,146,111],[144,112,146,112],[136,142,145,144],[136,145,145,153],[113,30,122,31],[113,32,114,34],[149,102,151,111],[136,8,143,8],[136,9,143,11],[146,128,148,133],[146,134,148,139],[149,134,151,139],[146,146,148,153],[146,154,148,156],[147,102,148,111],[146,113,165,113],[146,114,148,120],[146,121,148,124],[146,125,148,127],[152,140,154,141],[152,142,154,144],[152,145,154,145],[152,146,154,153],[152,154,154,156],[154,19,165,20],[154,102,156,111],[154,112,156,112],[146,145,148,145],[134,43,139,44],[159,84,162,86],[159,87,162,100],[159,102,161,111],[159,112,161,112],[159,135,161,141],[159,149,161,156],[162,114,165,119],[162,120,165,120],[162,121,165,124],[162,125,165,133],[157,0,208,0],[157,1,160,7],[157,8,160,8],[157,9,160,11],[161,1,164,7],[161,8,164,8],[161,9,164,11],[155,140,157,141],[155,142,157,144],[155,145,157,145],[155,146,157,153],[155,154,157,156],[156,14,172,15],[152,1,156,7],[152,8,156,8],[152,9,156,11],[123,22,126,29],[123,30,129,31],[123,32,125,34],[156,16,168,16],[156,17,170,18],[127,22,133,29],[157,102,158,111],[155,84,158,86],[155,87,158,100],[155,114,157,120],[155,121,157,124],[155,125,157,127],[155,128,157,133],[158,114,161,119],[158,120,161,120],[136,1,143,7],[158,148,161,148],[158,149,158,156],[130,30,133,35],[130,60,133,60],[130,61,133,67],[168,359,171,361],[169,1,170,7],[169,8,172,8],[169,9,172,11],[140,27,143,31],[140,58,143,61],[166,134,168,139],[166,140,168,141],[166,142,168,144],[166,145,168,145],[166,146,168,153],[166,154,168,156],[165,1,168,7],[165,8,168,8],[165,9,168,11],[136,27,139,29],[136,30,139,42],[166,113,175,113],[167,84,170,86],[167,87,170,100],[139,22,173,24],[134,64,139,67],[163,73,166,83],[163,84,166,86],[163,87,166,100],[163,135,165,141],[163,149,165,156],[166,114,168,120],[166,121,168,124],[171,1,172,7],[166,125,168,127],[166,128,168,133],[181,358,184,358],[154,43,159,44],[171,87,174,100],[172,114,175,119],[172,120,175,120],[144,62,149,63],[144,64,149,67],[146,27,149,29],[169,134,171,139],[169,140,171,141],[169,142,171,144],[169,145,171,145],[169,146,171,153],[169,154,171,156],[169,114,171,120],[169,121,171,124],[169,125,171,127],[169,128,171,133],[172,121,175,124],[172,125,175,137],[176,145,178,145],[176,146,178,153],[168,353,171,357],[168,358,171,358],[162,134,165,134],[162,135,162,141],[162,142,165,147],[162,148,165,148],[162,149,162,156],[171,84,172,86],[173,84,174,86],[172,358,176,358],[173,149,175,156],[176,142,178,144],[177,1,180,7],[177,8,180,8],[177,9,180,11],[173,1,176,7],[173,8,176,8],[173,9,176,11],[144,25,153,26],[144,27,145,29],[177,351,180,357],[177,358,180,358],[179,121,181,124],[179,125,181,127],[179,128,181,133],[179,134,180,136],[176,121,178,124],[176,125,178,127],[176,128,178,133],[176,134,177,136],[176,137,177,139],[176,140,178,141],[146,30,149,42],[175,73,178,83],[175,87,178,100],[176,113,192,113],[176,114,178,120],[183,73,186,83],[168,350,205,350],[185,1,188,7],[185,8,186,8],[185,9,188,11],[156,27,159,29],[156,30,159,42],[185,114,188,119],[154,27,155,29],[154,30,155,42],[189,359,192,361],[189,358,192,358],[199,87,202,100],[203,87,206,100],[144,30,145,42],[144,43,149,44],[179,137,180,139],[179,140,181,141],[179,142,181,144],[179,145,181,145],[179,146,181,153],[179,154,181,156],[177,359,180,361],[178,134,178,136],[178,137,178,139],[150,27,153,31],[150,58,153,61],[150,62,153,67],[179,73,182,83],[179,87,182,100],[179,114,181,120],[176,154,178,156],[172,359,176,361],[172,138,175,147],[187,8,188,8],[187,73,190,83],[187,84,190,86],[187,87,190,100],[189,1,192,7],[189,8,192,8],[189,9,192,11],[160,27,163,31],[160,58,163,61],[160,62,163,67],[185,148,188,148],[185,149,185,156],[187,43,192,44],[181,359,184,361],[182,114,184,120],[182,121,184,124],[182,125,184,127],[182,128,184,133],[182,134,183,136],[182,137,183,139],[182,140,184,141],[182,142,184,144],[181,1,184,7],[181,8,184,8],[181,9,184,11],[181,134,181,136],[181,137,181,139],[181,351,184,357],[182,145,184,145],[182,146,184,153],[182,154,184,156],[154,25,163,26],[189,142,192,147],[189,148,192,148],[189,149,189,156],[189,351,192,357],[170,27,173,31],[170,58,173,61],[170,62,173,67],[166,27,169,29],[166,30,169,42],[195,73,198,83],[195,84,198,86],[190,149,192,156],[189,114,192,119],[189,120,192,120],[189,121,192,124],[189,125,192,133],[189,134,192,134],[189,135,189,141],[190,135,192,141],[185,142,188,147],[183,87,186,100],[184,134,184,136],[184,137,184,139],[172,148,175,148],[172,149,172,156],[172,351,176,352],[172,353,176,357],[168,351,171,352],[175,84,176,86],[177,84,178,86],[179,84,180,86],[181,84,182,86],[193,359,194,361],[195,355,196,357],[195,359,196,361],[193,114,198,119],[193,120,198,125],[193,126,198,127],[193,128,198,134],[193,135,194,142],[193,143,198,147],[195,141,198,142],[164,62,169,63],[164,64,169,67],[193,113,212,113],[199,84,202,86],[201,351,205,357],[201,358,205,358],[201,359,205,361],[202,114,204,119],[202,120,204,125],[185,351,188,357],[185,358,188,358],[185,359,188,361],[186,135,188,141],[186,149,188,156],[185,120,188,120],[185,121,188,124],[185,125,188,133],[185,134,188,134],[185,135,185,141],[191,73,194,83],[191,84,194,86],[191,87,194,100],[203,84,206,86],[199,114,201,119],[199,120,201,125],[199,126,201,127],[199,128,201,134],[199,135,201,140],[199,141,201,142],[195,87,198,100],[195,135,198,140],[193,148,198,154],[193,155,198,157],[193,351,196,354],[193,355,194,357],[201,1,204,7],[201,8,204,8],[201,9,204,11],[205,151,207,157],[205,1,208,7],[205,8,208,8],[205,9,208,11],[193,27,196,31],[193,58,196,67],[187,45,192,48],[187,49,192,54],[193,358,196,358],[193,1,196,7],[193,8,196,8],[193,9,196,11],[183,27,186,31],[183,58,186,67],[208,129,212,129],[208,130,212,130],[208,131,212,140],[208,141,208,145],[208,146,212,146],[208,147,212,147],[206,350,260,350],[206,351,209,357],[206,358,209,358],[206,359,209,361],[207,70,208,100],[208,114,212,118],[208,119,212,119],[197,1,200,7],[197,8,200,8],[197,9,200,11],[197,351,200,357],[197,358,200,358],[197,359,200,361],[208,123,208,127],[208,128,212,128],[205,114,207,126],[205,127,207,127]],"merged_total":1529,"flags":["merged_cut"]}
[]
["配偶者の合計所得金額",null,null,null,null,null,null,null,null,null,null,null,null,null,null,null,null,null,null,null,null,null,null,null,null,null,null,null,null,null,null,null,null,null,null,null,null,null,null,null,null,null,"②　本人、配偶者情報入力（配偶者控除受けない場合は配偶者入力不要）",null,null,null,null,null,null,null,null,null,null,null,null,null,null,null,null,null,null,null,null,null,null,null,null,null,null,null,null,null,null,null,null,null,null,null,null,null,null,null,null,null,null,null,null,null,null,null,null,null,null,null,null,null,null,null,null,null,null,null,null,null,null,null,null,null,null,null,null,null,null,"　　　　 ■ 死別　□ 生死不明\n　　　　 □ 離婚　□ 未帰還　",null,null,null,null,null,"　　　　 □ 死別　□ 生死不明\n　　　　 ■ 離婚　□ 未帰還　",null,null,null,null,null,{"$f":"IF(AQ3=\"離婚\",DP2,IF(AQ3=\"死別\",DJ2,\"　\"))","v":"　"}]
["所得の種類",null,null,null,"収入金額等a",null,null,"必要経費等b",null,null,"所得金額(a-b)",null,null,null,null,null,null,"○ 配偶者特別控除額の早見表",null,null,null,null,null,null,null,null,null,null,null,null,null,null,null,null,null,null,null,null,null,"本人",null,null,null,null,null,null,null,null,"本人",null,{"$f":"AI28","v":"現　住　所"},null,null,null,null,null,"東京都新島村",null,null,null,null,null,null,null,null,null,null,null,null,null,null,null,null,null,null,null,null,null,"妻",null,null,null,null,null,"年齢",null,null,{"$f":"BO6","v":119},null,null,"歳"]
["給 与 所 得",null,null,"①",null,null,null,null,null,null,"(マイナスの場合は0)",null,null,null,null,null,null,null,null,null,null,null,null,null,null,null,null,null,null,null,null,null,null,null,null,null,null,null,null,"寡　婦",null,null,null,"寡夫",null,"勤労学生",null,null,null,null,"1月1日現在の住所",null,null,null,null,null,"東京都新島村",null,null,null,null,null,null,null,null,null,null,null,null,null,null,null,null,null,null,null,null,null,"夫",null,null,null,null,null,null,null,null,null,null,null,null,null,null,null,null,null,null,null,null,null,null,null,null,null,null,null,null,null,null,null,null,null,null,"⑯　■寡婦（寡夫）控除"]
[null,null,null,null,null,null,null,null,null,null,{"$f":"IF(E5<651000,\"0\",IF(E5<1619000,E5-650000,IF(E5<1620000,\"969000\",IF(E5<1622000,\"970000\",IF(E5<1624000,\"972000\",IF(E5<1628000,\"974000\",IF(E5<1800000,ROUNDDOWN(E5/4,-3)*2.4,IF(E5<=3600000,ROUNDDOWN(E5/4,-3)*2.8-180000,IF(E5<6600000,ROUNDDOWN(E5/4,-3)*3.2-540000,IF(E5<9999999,E5*0.9-1200000,IF(E5>=20000000,E5-2200000)))))))))))","v":"0"},null,null,null,null,null,null,"A欄の金額",null,null,null,null,null,null,null,null,null,null,null,null,"控除額B",null,null,null,null,null,null,null,null,"一般",null,"特別",null,null,null,null,null,null,null,null,"氏名",null,null,null,null,null,null,null,null,null,null,null,null,null,null,null,null,null,null,null,null,null,null,null,null,null,null,null,"子",null,null,null,null,null,"（Ａ）公的年金等の収入金額の合計額",null,null,null,null,null,null,null,null,null,null,null,null,null,null,null,null,null,"円",null,null,null,null,null,null,null,null,null,null,"⑯　□寡婦（寡夫）控除"]
["事 業 所 得",null,null,"②",null,null,null,null,null,null,{"$f":"IF((E6-H6)<0,0,(E6-H6))","v":0},null,null,null,null,null,null,"0円 から380,000円 まで\n380,001円 から900,000円 まで\n900,001円 から950,000円 まで\n950,001円 から1,000,000円 まで\n1,000,001円 から1,050,000円 まで\n1,050,001円 から1,100,000円 まで\n1,100,001円 から1,115,000円 まで\n1,150,001円 から1,200,000円 まで\n1,200,001円 から1,230,000円 まで\n1,230,001円 から",null,null,null,null,null,null,null,null,null,null,null,null,"0円\n330,000円\n310,000円\n260,000円\n210,000円\n160,000円\n110,000円\n60,000円\n30,000円\n0円",null,null,null,null,null,null,null,null,null,null,null,null,null,null,null,null,null,null,null,"生年月日",null,null,null,null,null,null,null,null,null,null,null,null,null,null,null,{"$f":"DATEDIF(BE6,A21,\"Y\")","v":119},null,null,"歳",null,null,null,null,null,null,null,null,"父",null,null,null,null,null,"公的年金控除額",null,null,null,null,null,null,null,null,null,null,null,null,{"$f":"IF(OR(CT5=\"\",CJ3<60),\"\",IF(CJ3<65,ER118,ER122))","v":""},null,null,null,null,{"$f":"IF(CT6=\"\",\"\",CY5)","v":""}]
["雑所得",null,null,"③",null,null,null,{"$f":"IF(AND(BN124>=65,E7<=1959999),1200000,0)","v":0},null,null,{"$f":"IF(BN124<65,0,IF((E7-H7)<0,0,(E7-H7)))","v":0},null,null,null,null,null,null,null,null,null,null,null,null,null,null,null,null,null,null,null,null,null,null,null,null,null,null,null,null,null,null,null,null,null,null,null,null,null,"配偶者",null,{"$f":"AY3","v":"現　住　所"},null,null,null,null,null,"東京都新島村",null,null,null,null,null,null,null,null,null,{"$f":"BO3","v":0},null,null,null,null,null,null,null,null,null,null,null,"母",null,null,null,null,null,"公的年金等の雑所得の金額",null,null,null,null,null,null,null,null,null,null,null,null,{"$f":"IF(CT5=0,0,IF((CT5-CT6)<0,0,CT5-CT6))","v":0},null,null,null,null,"円"]
[null,null,null,null,null,null,null,{"$f":"IF(AND(BN124<65,E7>0,E7<=1300000),700000,0)","v":0},null,null,{"$f":"IF(BN124>=65,0,IF(E7>1513334,E7,IF(H8=0,0,IF(BO10>=65,0,IF((E7-H8)<0,0,(E7-H8))))))","v":0},null,null,null,{"$f":"IF(K8=K9,K8*-1,0)","v":0},null,null,null,null,null,null,null,null,null,null,null,null,null,null,null,null,null,null,null,null,null,null,null,null,260000,null,300000,null,260000,null,260000,null,null,null,null,{"$f":"AY4","v":"1月1日現在の住所"},null,null,null,null,null,"東京都新島村",null,null,null,null,null,null,null,null,null,{"$f":"BO4","v":0},null,null,null,null,null,null,null,null,null,null,null,"子の子",null,null,null,null,null,null,null,null,null,null,null,null,null,null,null,null,null,null,null,null,null,null,null,null,null,null,null,null,null,null,null,null,null,null,"死別",null,null,null,null,null,null,null,null,"新",null,null,null,null,null,null,null,null,null,null,null,"地震"]
[null,null,null,null,null,null,null,{"$f":"IF(AND(BN124<65,E7>1300000,E7<=1513333),E7*0.25+375000,0)","v":0},null,null,{"$f":"IF(BN124>=65,0,IF(E7>1513333,E7,IF(H9=0,0,IF(E7<=1300000,0,IF(BO10>=65,0,IF((E7-H9)<0,0,(E7-H9)))))))","v":0},null,null,null,null,null,null,null,null,null,null,null,null,null,null,null,null,null,null,null,null,null,null,null,null,null,null,null,null,null,null,null,null,"　",null,"　",null,null,null,null,{"$f":"AY5","v":"氏名"},null,null,null,null,null,null,null,null,null,null,null,null,null,null,null,{"$f":"PHONETIC(BE9)","v":""},null,null,null,null,null,null,null,null,null,null,null,"兄",null,null,null,null,null,null,null,null,null,null,null,null,null,null,null,null,null,null,null,null,null,null,null,null,null,null,null,null,null,null,null,null,null,null,"離婚",null,null,null,null,null,null,null,null,"旧",null,null,null,null,null,null,null,null,null,null,null,"旧長期"]
["配 当 所 得",null,null,"④",null,null,null,null,null,null,0,null,null,null,null,null,null,null,null,null,null,null,null,null,null,null,null,null,null,null,null,null,null,null,null,null,null,null,null,null,null,null,null,null,null,null,null,null,null,null,"生年月日",null,null,null,null,null,null,null,null,null,null,null,null,null,null,null,{"$f":"DATEDIF(BE10,A21,\"Y\")","v":119},null,null,"歳",null,null,null,null,null,null,null,null,"姉",null,null,null,null,null,null,null,null,null,null,null,null,null,null,null,null,null,null,null,null,null,null,null,null,null,null,null,null,null,null,null,null,null,null,null,null,null,null,null,"住","確",null,null,null,null,null,null,null,null,null,null,null,null,null,null,"住","確"]
["不 動 産 所 得",null,null,"⑤",null,null,null,null,null,null,0,null,null,null,null,null,null,null,null,null,null,null,null,null,null,null,null,null,null,null,null,null,null,null,null,null,null,null,null,{"$f":"IF(AN9=\"○\",AN8,0)","v":0},null,{"$f":"IF(AP9=\"○\",AP8,0)","v":0},null,{"$f":"IF(AR9=\"○\",AR8,0)","v":0},null,{"$f":"IF(AT9=\"○\",AT8,0)","v":0},null,null,null,null,null,null,null,null,null,null,null,null,null,null,null,null,null,null,null,null,null,null,null,null,null,null,null,null,null,null,null,null,"弟",null,null,null,null,null,null,null,null,null,null,null,null,null,null,null,null,null,null,null,null,null,null,null,null,null,null,null,null,null,null,null,null,null,null,"同居特別障害",null,null,null,null,530000,750000,null,null,"一般の扶養親族",null,null,null,null,null,null,null,null,null,null,null,330000,380000]
["退 職 所 得",null,null,"⑥",null,null,null,"(退職所得控除額)",null,null,"(a-b)×1/2又は(a-b)",null,null,null,null,null,null,null,null,null,null,null,null,null,null,null,null,null,null,null,null,null,null,null,null,null,null,null,null,null,null,null,null,null,null,null,null,null,null,null,null,null,null,null,null,null,null,null,null,null,null,null,null,null,null,null,null,null,null,null,null,null,null,null,null,null,null,null,"妹",null,null,null,null,null,null,null,null,null,null,null,null,null,null,null,null,null,null,null,null,null,null,null,null,null,null,null,null,null,null,null,null,null,null,"特別障害",null,null,null,null,300000,400000,null,null,"特定扶養親族",null,null,null,null,null,null,null,null,null,null,null,450000,630000]
[null,null,null,null,null,null,null,null,null,null,{"$f":"IF(ROUNDUP((E12-H13)*0.5,0)<0,0,ROUNDUP((E12-H13)*0.5,0))","v":0},null,null,null,null,null,null,"申告者本人の所得金額\n900万超えには未対応。",null,null,null,null,null,null,null,null,null,null,null,null,null,null,null,null,null,null,null,null,null,{"$f":"IF(AN11=\"○\",270000,0)","v":0},null,{"$f":"IF(AP11=\"○\",350000,0)","v":0},null,{"$f":"IF(AR11=\"○\",270000,0)","v":0},null,{"$f":"IF(AT11=\"○\",270000,0)","v":0},null,null,null,null,null,null,"この色の箇所入力",null,null,null,null,null,null,null,null,null,null,null,null,null,null,null,null,null,null,null,null,null,null,null,null,null,null,null,null,null,null,null,null,null,null,null,null,null,null,null,null,null,null,null,null,null,null,null,null,null,null,null,null,null,null,null,null,null,null,null,null,"その他の障害",null,null,null,null,260000,270000,null,null,"同居老親等",null,null,null,null,null,null,null,null,null,null,null,450000,580000,null,null,null,null,null,null,null,null,null,null,480000]
["①〜⑥以外の所得",null,null,"⑦",null,null,null,"(うち特別控除額          円)",null,null,"(一時所得又は長期譲渡所得は1/2)",null,null,null,null,null,null,null,null,null,null,null,null,null,null,null,null,null,null,null,null,null,null,null,null,null,null,null,null,null,null,null,null,null,null,null,null,null,null,null,null,null,null,null,null,null,null,null,null,null,null,null,null,null,null,null,null,null,null,null,null,null,null,null,null,null,null,null,null,null,null,null,null,null,null,null,null,null,null,null,null,null,null,null,null,null,null,null,null,null,null,null,null,null,null,null,null,null,null,null,null,null,null,null,null,null,null,null,null,null,null,null,"老人扶養親族（同居老親以外）",null,null,null,null,null,null,null,null,null,null,null,380000,480000,null,null,null,null,null,null,null,null,null,null,580000]
[]
["配偶者の合計所得金額(①〜⑦の合計額)",null,null,null,null,null,null,null,null,null,"A",{"$f":"K5+K6+K9+K10+K11+K13+K15+K7+K8+O8","v":0},null,null,null,null,null,null,null,null,null,null,null,"⑤　下記の必要箇所入力後、２部印刷。１つは控印を押印後、申告者へ。",null,null,null,null,null,null,null,null,null,null,null,null,null,null,null,null,null,null,null,null,null,null,null,null,null,null,null,null,null,null,null,null,null,null,null,null,null,null,null,null,null,null,null,null,null,null,null,null,null,null,null,null,null,null,null,null,null,null,null,null,null,null,null,null,null,null,null,null,null,null,null,null,null,null,null,null,null,null,null,null,null,null,null,null,null,null,null,null,null,null,null,null,null,null,null,null,null,null,"国民健康保険税"]
[null,null,null,null,null,null,null,null,null,null,null,null,null,null,null,null,null,null,null,null,null,null,null,null,null,null,null,null,null,null,null,null,null,null,null,null,null,null,null,null,null,null,null,null,null,null,null,null,null,null,null,null,null,null,null,null,null,null,null,null,null,null,null,null,null,null,null,null,null,null,null,null,null,null,null,null,null,null,null,null,null,null,null,null,null,null,null,null,null,null,null,null,null,null,null,null,null,null,null,null,null,null,null,null,null,null,null,null,null,null,null,null,null,null,null,null,null,null,null,null,null,null,"介護保険料"]
[null,null,null,null,null,null,null,null,null,null,null,null,null,null,null,null,null,null,null,null,null,null,null,null,null,null,null,null,null,null,null,null,null,null,null,null,null,null,null,null,null,null,null,null,null,null,null,null,null,null,null,null,null,null,null,null,null,null,null,null,null,null,null,null,null,null,null,null,null,null,null,null,null,null,null,null,null,null,null,null,null,null,null,null,null,null,null,null,null,null,null,null,null,null,null,null,null,null,null,null,null,null,null,null,null,null,null,null,null,null,null,null,null,null,null,null,null,null,null,null,null,null,"後期高齢保険料"]
[null,null,null,null,null,null,null,null,null,null,null,null,null,null,null,null,null,null,null,null,null,null,null,null,null,null,null,null,null,null,null,null,null,null,null,null,null,null,null,null,null,null,null,null,null,null,null,null,null,null,null,null,null,null,null,null,null,null,null,null,null,null,null,null,null,null,null,null,null,null,null,null,null,null,null,null,null,null,null,null,null,null,null,null,null,null,null,null,null,null,null,null,null,null,null,null,null,null,null,null,null,null,null,null,null,null,null,null,null,null,null,null,null,null,null,null,null,null,null,null,null,null,"国民年金保険料"]
[null,null,null,null,null,null,null,null,null,null,null,null,null,null,null,null,null,null,null,null,null,null,null,null,null,null,null,null,null,null,null,null,null,null,null,null,null,null,null,null,null,null,null,null,null,null,null,null,null,null,null,null,null,null,null,null,null,null,null,null,null,null,null,null,null,null,null,null,null,null,null,null,null,null,null,null,null,null,null,null,null,null,null,null,null,null,null,null,null,null,null,null,null,null,null,null,null,null,null,null,null,null,null,null,null,null,null,null,null,null,null,null,null,null,null,null,null,null,null,null,null,null,"源泉徴収票のとおり"]
["2019-01-01",null,null,null,null,null,null,null,null,null,null,null,null,null,null,null,null,null,null,null,null,null,null,null,null,null,null,null,null,null,null,null,null,null,null,null,null,null,null,null,null,null,null,null,null,null,null,null,null,null,null,null,null,null,null,null,null,null,null,null,null,null,null,null,null,null,null,null,null,null,null,null,null,null,null,null,null,null,null,null,null,null,null,null,null,null,null,null,null,null,null,null,null,null,null,null,null,null,"表"]
[]
[null,null,null,null,null,null,null,null,null,null,null,null,null,null,null,null,null,null,null,null,null,null,null,null,null,null,null,null,null,null,null,"令和",null,null,null,null,null,null,5,null,null,null,"年度分",null,null,null,null,null,null,"市町村民税",null,null,null,null,null,null,null,null,null,null,null,null,"　申 告 書"]
[null,null,null,null,null,null,null,null,null,null,null,null,null,null,null,"この申告書を提出した方は事業税の申告書を提出する必要がありません。",null,"分離課税に係る所得等のある方は、「市町村民税・道府県民税申告書（分離課税等用）をあわせて提出してください。",null,null,null,null,null,null,null,null,null,null,null,null,null,null,null,null,null,null,null,null,null,null,null,null,null,null,null,null,null,null,null,null,null,null,null,null,null,null,null,null,null,null,null,null,null,null,null,null,null,null,null,null,null,null,null,null,null,null,null,null,"整 理 番 号"]
[null,null,null,null,null,null,null,null,null,null,null,null,null,null,null,null,null,null,null,null,null,null,null,null,null,null,null,null,null,null,null,null,null,null,null,null,null,null,null,null,null,null,null,null,null,null,null,null,null,"道府県民税",null,null,null,null,null,null,null,null,null,null,null,null,null,null,null,null,null,null,null,null,null,null,null,null,null,null,null,null,null,1]
[]
[null,null,null,null,null,null,null,null,null,null,null,null,null,null,null,null,null,null,null,null,null,null,null,null,null,null,null,null,null,null,null,null,null,null,null,null,null,null,null,null,null,null,null,null,null,null,null,null,null,null,null,null,null,null,null,null,null,null,null,null,null,null,null,null,null,null,null,null,null,null,null,null,null,null,null,null,null,null,null,null,null,null,null,null,null,null,null,null,null,null,null,null,null,null,null,null,null,null,null,null,null,null,null,null,null,null,null,null,null,null,null,null,null,"保険会社等の名称",null,null,null,null,null,null,null,"保険等の\n種類",null,null,null,"保険期間\n又は年金\n支払期間",null,null,"保険等の\n契約者の氏名",null,null,null,null,null,"保険金等の受取人",null,null,null,null,null,null,null,"新旧",null,null,"あなたが本年中に支払った\n保険料等の金額(分配を受けた\n剰余金等の控除後の金額)\n(a)",null,null,null,null,null,null,null,null,"給与の\n支払者の\n確認印"]
[null,null,null,null,null,null,null,null,null,null,null,null,null,null,null,null,null,null,null,null,null,null,null,null,null,null,null,null,null,null,null,null,null,null,"現　住　所",null,null,null,null,null,null,null,null,null,"東京都新島村",null,null,null,null,null,null,null,null,null,null,null,{"$f":"BO3","v":0},null,null,null,null,null,null,null,null,null,null,null,null,null,null,null,null,null,null,null,null,null,"業種又は職業"]
[null,null,null,null,null,null,null,null,null,null,null,null,null,null,null,null,null,null,null,null,null,null,null,null,null,null,null,null,null,null,null,null,null,null,null,null,null,null,null,null,null,null,null,null,null,null,null,null,null,null,null,null,null,null,null,null,null,null,null,null,null,null,null,null,null,null,null,null,null,null,null,null,null,null,null,null,null,null,null,null,null,null,null,null,null,null,null,null,null,null,null,null,null,null,null,null,null,null,null,null,null,null,null,null,null,null,null,null,null,null,null,null,null,null,null,null,null,null,null,null,null,null,null,null,null,null,null,null,null,null,null,null,null,null,"氏名",null,null,null,null,null,"あなた\nとの\n続柄"]
[]
[]
[]
[null,null,null,null,null,null,null,null,null,null,null,null,null,null,null,null,null,null,null,null,null,null,null,"新島村長様",null,null,null,null,null,null,null,null,null,null,"1月1日現在",null,null,null,null,null,null,null,null,null,"東京都新島村",null,null,null,null,null,null,null,null,null,null,null,{"$f":"BE28","v":0},null,null,null,null,null,null,null,null,null,null,null,null,null,null,null,null,null,null,null,null,null,"電 話 番 号",null,null,null,null,null,null,null,null,null,null,null,null,null,null,null,null,null,null,null,null,null,null,null,null,null,null,null,null,null,null,null,null,null,null,"一般の生命保険料",null,null,null,null,null,null,null,null,null,null,null,null,null,null,null,null,null,null,null,null,null,null,null,null,null,null,null,null,"新",null,null,"(a)",null,null,null,null,null,null,null,null,null,null,null,null,null,null,null,null,null,{"$f":"IF(EM33=\"新\",1,IF(EM33=\"旧\",2,0))","v":1}]
[]
[]
[null,null,null,null,null,null,null,null,null,null,null,null,null,null,null,null,null,null,null,null,null,null,null,null,null,null,null,null,null,null,null,null,null,null,"の   住   所",null,null,null,null,null,null,null,null,null,null,null,null,null,null,null,null,null,null,null,null,null,null,null,null,null,null,null,null,null,null,null,null,null,null,null,null,null,null,null,null,null,null,null,null,null,null,null,null,null,null,null,null,null,null,null,null,null,null,null,null,null,null,null,null,null,null,null,null,null,null,null,null,null,null,null,null,null,null,null,null,null,null,null,null,null,null,null,null,null,null,null,null,null,null,null,null,null,null,null,null,null,null,null,null,null,null,null,"新",null,null,"(a)",null,null,null,null,null,null,null,null,null,null,null,null,null,null,null,null,null,{"$f":"IF(EM36=\"新\",1,IF(EM36=\"旧\",2,0))","v":1}]
[]
[null,null,null,null,null,null,null,null,null,null,null,null,null,null,null,null,null,null,null,null,null,null,null,null,null,null,null,null,null,null,null,null,null,null,"フ  リ  ガ  ナ",null,null,null,null,null,null,null,null,null,{"$f":"PHONETIC(BE5)","v":""},null,null,null,null,null,null,null,null,null,null,null,null,null,null,null,null,null,null,null,null,null,null,null,null,null,"個人番号"]
[null,null,null,null,null,null,null,null,null,null,null,null,null,null,null,null,null,null,null,null,null,null,null,null,null,null,null,null,null,null,null,null,null,null,null,null,null,null,null,null,null,null,null,null,null,null,null,null,null,null,null,null,null,null,null,null,null,null,null,null,null,null,null,null,null,null,null,null,null,null,null,null,null,null,null,null,null,null,null,null,null,null,null,null,null,null,null,null,null,null,null,null,null,null,null,null,null,null,null,null,null,null,null,null,null,null,null,null,null,null,null,null,null,null,null,null,null,null,null,null,null,null,null,null,null,null,null,null,null,null,null,null,null,null,null,null,null,null,null,null,null,null,"旧",null,null,"(a)",null,null,null,null,null,null,null,null,null,null,null,null,null,null,null,null,null,{"$f":"IF(EM39=\"新\",1,IF(EM39=\"旧\",2,0))","v":2}]
[]
[null,null,null,null,null,null,null,null,null,null,null,null,null,null,null,null,null,null,null,null,null,null,"提出年月日",null,null,null,null,null,null,null,null,null,null,null,"氏　　　名",null,null,null,null,null,null,null,null,null,{"$f":"BE5","v":0}]
[null,null,null,null,null,null,null,null,null,null,null,null,null,null,null,null,null,null,null,null,null,null,null,null,null,null,null,null,null,null,null,null,null,null,null,null,null,null,null,null,null,null,null,null,null,null,null,null,null,null,null,null,null,null,null,null,null,null,null,null,null,null,null,null,null,null,null,null,null,null,null,null,null,null,null,null,null,null,null,null,null,null,null,null,null,null,null,null,null,null,null,null,null,null,null,null,null,null,null,null,null,null,null,null,null,null,null,null,null,null,null,null,null,null,null,null,null,null,null,null,null,null,null,null,null,null,null,null,null,null,null,null,null,null,null,null,null,null,null,null,null,null,"旧",null,null,"(a)",null,null,null,null,null,null,null,null,null,null,null,null,null,null,null,null,null,{"$f":"IF(EM42=\"新\",1,IF(EM42=\"旧\",2,0))","v":2}]
[null,null,null,null,null,null,null,null,null,null,null,null,null,null,null,null,null,null,null,null,null,null,"年",null,null,null,"月",null,null,null,"日"]
[null,null,null,null,null,null,null,null,null,null,null,null,null,null,null,null,null,null,null,null,null,null,null,null,null,null,null,null,null,null,null,null,null,null,null,null,null,null,null,null,null,null,null,null,null,null,null,null,null,null,null,null,null,null,null,null,null,null,null,null,null,null,null,null,null,null,null,null,null,null,null,null,null,null,null,null,null,null,null,null,null,null,null,1]
[null,null,null,null,null,null,null,null,null,null,null,null,null,null,null,null,null,null,null,null,null,null,null,null,null,null,null,null,null,null,null,null,null,null,null,null,null,null,null,null,null,null,null,null,null,null,null,null,null,null,null,null,null,null,null,null,null,null,null,null,null,null,null,null,null,null,null,null,null,null,null,null,null,null,null,null,null,null,null,null,null,null,null,null,null,null,null,null,null,null,null,null,null,null,null,null,null,null,null,null,null,null,null,null,null,null,null,null,null,null,null,null,null,null,"(a)のうち新保険料\n等の金額の合計額",null,null,null,null,null,"A",{"$f":"IF(FH33=1,EQ33,0)+IF(FH36=1,EQ36,0)+IF(FH39=1,EQ39,0)+IF(FH42=1,EQ42,0)","v":0},null,null,null,"Aの金額を下の計算式I (新保険\n料等用)に当てはめて計算した金額",null,null,null,null,null,null,null,null,"①","(最高28,000円)",null,null,null,null,null,null,"計(①＋②)",null,null,null,null,null,"③","(最高28,000円)"]
[null,null,null,null,null,null,null,null,null,null,null,null,null,null,null,null,null,null,null,null,null,null,null,null,null,null,null,null,null,null,null,null,null,null,"生 年\n月 日",null,null,null,null,"　明・大・昭\n　平・令",null,null,null,null,"・　　・　　",null,null,null,null,null,null,null,null,null,null,"世帯主\nの氏名",null,null,null,null,{"$f":"AS41","v":0},null,null,null,null,null,null,null,null,null,null,null,"続柄",null,null,null,null,null,null,null,null,null,null,null,null,null,null,null,null,null,null,null,null,null,null,null,null,null,null,null,null,null,null,null,null,null,null,null,null,null,null,null,null,null,null,null,null,null,null,null,null,null,null,null,null,null,null,null,null,null,null,null,null,null,null,{"$f":"IF(DR45<=12000,DR45,IF(DR45<=32000,ROUNDUP(DR45*0.5,0)+6000,IF(DR45<=56000,ROUNDUP(DR45*0.25,0)+14000,28000)))","v":0},null,null,null,null,null,null,null,null,null,null,null,null,null,{"$f":"IF((EF46+EF50)<=28000,(EF46+EF50),28000)","v":0}]
[]
[]
[null,null,null,null,null,null,null,null,null,null,null,null,null,null,null,null,null,null,null,null,null,null,null,null,null,null,null,null,null,null,null,null,null,null,null,null,null,null,null,null,null,null,null,null,null,null,null,null,null,null,null,null,null,null,null,null,null,null,null,null,null,null,null,null,null,null,null,null,null,null,null,null,null,null,null,null,null,null,null,null,null,null,null,null,null,null,null,null,null,null,null,null,null,null,null,null,null,null,null,null,null,null,null,null,null,null,null,null,null,null,null,null,null,null,"(a)のうち旧保険料\n等の金額の合計額",null,null,null,null,null,"B",{"$f":"IF(FH33=2,EQ33,0)+IF(FH36=2,EQ36,0)+IF(FH39=2,EQ39,0)+IF(FH42=2,EQ42,0)","v":0},null,null,null,"Bの金額を下の計算式II (旧保険\n料等用)に当てはめて計算した金額",null,null,null,null,null,null,null,null,"②","(最高35,000円)",null,null,null,null,null,null,"②と③のいずれか\n大きい金額",null,null,null,null,null,"㋑"]
[null,null,null,null,null,null,null,null,null,null,null,null,null,null,null,null,null,null,null,null,null,null,null,null,null,null,null,null,null,null,null,null,null,null,null,null,null,null,null,null,null,null,null,null,null,null,null,null,null,null,null,null,null,null,null,null,null,null,null,null,null,null,null,null,null,null,null,null,null,null,null,null,null,null,null,null,null,null,null,null,null,null,null,null,null,null,null,null,null,null,null,null,null,null,null,null,null,null,null,null,null,null,"セルフメディケーションですか？",null,null,null,null,null,null,null,null,null,null,null,null,null,null,null,null,null,null,null,null,null,null,null,null,null,null,null,null,null,null,null,null,{"$f":"IF(DR49<=15000,DR49,IF(DR49<=40000,ROUNDUP(DR49*0.5,0)+7500,IF(DR49<=70000,ROUNDUP(DR49*0.25,0)+17000,35000)))","v":0},null,null,null,null,null,null,null,null,null,null,null,null,null,{"$f":"IF(ET46<EF50,EF50,ET46)","v":0}]
[null,null,null,null,null,null,null,null,null,null,null,null,null,null,null,null,null,null,null,null,null,null,"３ 所得から差し引かれる金額に関する事項"]
[null,null,null,null,null,null,null,null,null,null,null,null,null,null,null,null,null,null,null,null,null,null,null,null,null,null,null,null,null,null,null,null,null,null,null,null,null,null,null,null,null,null,null,null,null,null,null,null,null,null,null,null,null,null,null,null,null,null,null,null,null,null,null,null,null,null,null,null,null,null,null,null,null,null,null,null,null,null,null,null,null,null,null,null,null,null,null,null,null,null,null,null,null,null,null,null,null,null,null,null,null,null,"支払った医療費"]
[null,null,null,null,null,null,null,null,null,null,null,null,null,null,null,null,null,null,null,null,null,null,null,null,null,null,null,null,null,null,null,null,null,null,null,null,null,null,null,null,null,null,null,null,null,null,null,null,null,null,null,null,null,null,null,null,null,null,null,null,null,null,null,null,null,null,null,null,null,null,null,null,null,null,null,null,null,null,null,null,null,null,null,null,null,null,null,null,null,null,null,null,null,null,null,null,null,null,null,null,null,null,null,null,null,null,null,null,null,null,null,null,null,null,null,null,null,null,null,null,null,null,null,null,null,null,null,null,null,null,null,null,null,null,null,null,null,null,null,null,null,null,null,null,null,"(a)"]
[null,null,null,null,null,null,null,null,null,null,null,null,null,null,null,null,null,null,null,null,null,null,"　⑬",null,null,null,null,null,null,null,"社 会 保 険 の 種 類",null,null,null,null,null,null,null,null,null,null,null,null,null,null,null,null,null,null,"支 払 っ た 保 険 料",null,null,null,null,null,null,null,null,null,null,null,null,null,null,null,null,null,null,null,null,"１　収　入　金　額　等",null,null,"事業",null,"営　業　等",null,null,null,null,null,null,null,null,"ア",null,null,null,null,null,null,null,null,null,null,null,null,null,null,"円"]
[]
[null,null,null,null,null,null,null,null,null,null,null,null,null,null,null,null,null,null,null,null,null,null,"社会保険料\n控　　　除",null,null,null,null,null,null,null,null,null,null,null,null,null,null,null,null,null,null,null,null,null,null,null,null,null,null,null,null,null,null,null,null,null,null,null,null,null,null,null,null,null,null,null,"円",null,null,null,null,null,null,null,null,null,null,null,null,null,null,null,null,null,null,null,null,null,null,null,null,null,null,null,null,null,null,null,null,null,null,null,null,null,null,null,null,null,null,null,null,null,null,null,"(a)の金額の合計額",null,null,null,null,null,"C",{"$f":"#REF!+EQ53","v":{"$error":"#REF!"}},null,null,null,null,null,null,null,null,null,null,null,null,null,null,null,null,"Cの金額を下の計算式I(新保険\n料等用)に当てはめて計算した金額",null,null,null,null,null,null,null,null,null,"㋺","(最高28,000円)"]
[null,null,null,null,null,null,null,null,null,null,null,null,null,null,null,null,null,null,null,null,null,null,null,null,null,null,null,null,null,null,null,null,null,null,null,null,null,null,null,null,null,null,null,null,null,null,null,null,null,null,null,null,null,null,null,null,null,null,null,null,null,null,null,null,null,null,null,null,null,null,null,null,null,null,null,null,null,null,null,null,null,null,null,null,null,null,null,null,null,null,null,null,null,null,null,null,null,null,null,null,null,null,{"$f":"#REF!","v":{"$error":"#REF!"}},null,null,null,null,null,null,null,null,null,null,null,null,null,null,null,null,null,null,null,null,null,null,null,null,null,null,null,null,null,null,null,null,null,null,null,null,null,null,null,null,null,null,null,null,null,null,{"$f":"IF(DR56<=12000,DR56,IF(DR56<=32000,ROUNDUP(DR56*0.5,0)+6000,IF(DR56<=56000,ROUNDUP(DR56*0.25,0)+14000,28000)))","v":{"$error":"#REF!"}}]
[]
[null,null,null,null,null,null,null,null,null,null,null,null,null,null,null,null,null,null,null,null,null,null,null,null,null,null,null,null,null,null,null,null,null,null,null,null,null,null,null,null,null,null,null,null,null,null,null,null,null,null,null,null,null,null,null,null,null,null,null,null,null,null,null,null,null,null,null,null,null,null,null,null,null,null,null,"農　　業",null,null,null,null,null,null,null,null,"イ"]
[null,null,null,null,null,null,null,null,null,null,null,null,null,null,null,null,null,null,null,null,null,null,null,null,null,null,null,null,null,null,null,null,null,null,null,null,null,null,null,null,null,null,null,null,null,null,null,null,null,null,null,null,null,null,null,null,null,null,null,null,null,null,null,null,null,null,null,null,null,null,null,null,null,null,null,null,null,null,null,null,null,null,null,null,null,null,null,null,null,null,null,null,null,null,null,null,null,null,null,null,null,null,null,null,null,null,null,null,null,null,null,null,null,"個人年金保険料",null,null,null,null,null,null,null,null,null,null,null,null,null,null,null,null,null,null,null,null,null,null,null,null,null,null,null,null,"新",null,null,"(a)",null,null,null,null,null,null,null,null,null,null,null,null,null,null,null,null,null,{"$f":"IF(EM60=\"新\",1,IF(EM60=\"旧\",2,0))","v":1}]
[]
[null,null,null,null,null,null,null,null,null,null,null,null,null,null,null,null,null,null,null,null,null,null,null,null,null,null,null,null,null,null,null,null,null,null,null,null,null,null,null,null,null,null,null,null,null,null,null,null,null,null,null,null,null,null,null,null,null,null,null,null,null,null,null,null,null,null,null,null,null,null,null,null,null,null,null,null,null,null,null,null,null,null,null,null,null,null,null,null,null,null,null,null,null,null,null,null,null,null,null,null,null,null,"差額",null,null,null,null,null,null,null,null,null,null,null,null,null,null,null,null,null,null,null,null,null,null,null,null,null,null,null,null,null,null,null,"支払開始日",null,null,"・   ・"]
[null,null,null,null,null,null,null,null,null,null,null,null,null,null,null,null,null,null,null,null,null,null,null,null,null,null,null,null,null,null,null,null,null,null,null,null,null,null,null,null,null,null,null,null,null,null,null,null,null,null,null,null,null,null,null,null,null,null,null,null,null,null,null,null,null,null,null,null,null,null,null,null,null,null,null,null,null,null,null,null,null,null,null,null,null,null,null,null,null,null,null,null,null,null,null,null,null,null,null,null,null,null,null,null,null,null,null,null,null,null,null,null,null,null,null,null,null,null,null,null,null,null,null,null,null,null,null,null,null,null,null,null,null,null,null,null,null,null,null,null,null,null,"新",null,null,"(a)",null,null,null,null,null,null,null,null,null,null,null,null,null,null,null,null,null,{"$f":"IF(EM63=\"新\",1,IF(EM63=\"旧\",2,0))","v":1}]
[null,null,null,null,null,null,null,null,null,null,null,null,null,null,null,null,null,null,null,null,null,null,null,null,null,null,null,null,null,null,null,null,null,null,null,null,null,null,null,null,null,null,null,null,null,null,null,null,null,null,null,null,null,null,null,null,null,null,null,null,null,null,null,null,null,null,null,null,null,null,null,null,null,"不　動　産",null,null,null,null,null,null,null,null,null,null,"ウ",null,null,null,null,null,null,null,null,null,null,null,null,null,null,null,null,null,{"$f":"IF(CY54-CY59<0,0,CY54-CY59)","v":0}]
[null,null,null,null,null,null,null,null,null,null,null,null,null,null,null,null,null,null,null,null,null,null,null,null,null,null,null,null,null,null,null,null,null,null,null,null,null,null,null,null,null,null,null,null,null,null,null,null,null,null,null,null,null,null,null,null,null,null,null,null,null,null,null,null,null,null,null,null,null,null,null,null,null,null,null,null,null,null,null,null,null,null,null,null,null,null,null,null,null,null,null,null,null,null,null,null,null,null,null,null,null,null,null,null,null,null,null,null,null,null,null,null,null,null,null,null,null,null,null,null,null,null,null,null,null,null,null,null,null,null,null,null,null,null,"支払開始日",null,null,"・   ・"]
[null,null,null,null,null,null,null,null,null,null,null,null,null,null,null,null,null,null,null,null,null,null,null,null,null,null,null,null,null,null,null,null,null,null,null,null,null,null,null,null,null,null,null,null,null,null,null,null,null,null,null,null,null,null,null,null,null,null,null,null,null,null,null,null,null,null,null,null,null,null,null,null,null,null,null,null,null,null,null,null,null,null,null,null,null,null,null,null,null,null,null,null,null,null,null,null,null,null,null,null,null,null,null,null,null,null,null,null,null,null,null,null,null,null,null,null,null,null,null,null,null,null,null,null,null,null,null,null,null,null,null,null,null,null,null,null,null,null,null,null,null,null,"旧",null,null,"(a)",null,null,null,null,null,null,null,null,null,null,null,null,null,null,null,null,null,{"$f":"IF(EM66=\"新\",1,IF(EM66=\"旧\",2,0))","v":2}]
[null,null,null,null,null,null,null,null,null,null,null,null,null,null,null,null,null,null,null,null,null,null,null,null,null,null,null,null,null,null,"合　　　　　　計",null,null,null,null,null,null,null,null,null,null,null,null,null,null,null,null,null,null,{"$f":"CY59","v":0},null,null,null,null,null,null,null,null,null,null,null,null,null,null,null,null,null,null,null,null,null,null,null,"利　　　子",null,null,null,null,null,null,null,null,null,null,"エ",null,null,null,null,null,null,null,null,null,null,null,null,null,null,null,null,null,"所得"]
[null,null,null,null,null,null,null,null,null,null,null,null,null,null,null,null,null,null,null,null,null,null,null,null,null,null,null,null,null,null,null,null,null,null,null,null,null,null,null,null,null,null,null,null,null,null,null,null,null,null,null,null,null,null,null,null,null,null,null,null,null,null,null,null,null,null,null,null,null,null,null,null,null,null,null,null,null,null,null,null,null,null,null,null,null,null,null,null,null,null,null,null,null,null,null,null,null,null,null,null,null,null,null,null,null,null,null,null,null,null,null,null,null,null,null,null,null,null,null,null,null,null,null,null,null,null,null,null,null,null,null,null,null,null,"支払開始日",null,null,"・   ・"]
[null,null,null,null,null,null,null,null,null,null,null,null,null,null,null,null,null,null,null,null,null,null,null,null,null,null,null,null,null,null,null,null,null,null,null,null,null,null,null,null,null,null,null,null,null,null,null,null,null,null,null,null,null,null,null,null,null,null,null,null,null,null,null,null,null,null,null,null,null,null,null,null,null,null,null,null,null,null,null,null,null,null,null,null,null,null,null,null,null,null,null,null,null,null,null,null,null,null,null,null,null,null,{"$f":"CJ151","v":0},null,null,null,null,null,null,null,null,null,null,null,"(a)のうち新保険料\n等の金額の合計額",null,null,null,null,null,"D",{"$f":"IF(FH60=1,EQ60,0)+IF(FH63=1,EQ63,0)+IF(FH66=1,EQ66,0)","v":0},null,null,null,"Dの金額を下の計算式I (新保険\n料等用)に当てはめて計算した金額",null,null,null,null,null,null,null,null,"④","(最高28,000円)",null,null,null,null,null,null,"計(④＋⑤)",null,null,null,null,null,"⑥","(最高28,000円)"]
[null,null,null,null,null,null,null,null,null,null,null,null,null,null,null,null,null,null,null,null,null,null,null,null,null,null,null,null,null,null,null,null,null,null,null,null,null,null,null,null,null,null,null,null,null,null,null,null,null,null,null,null,null,null,null,null,null,null,null,null,null,null,null,null,null,null,null,null,null,null,null,null,null,null,null,null,null,null,null,null,null,null,null,null,null,null,null,null,null,null,null,null,null,null,null,null,null,null,null,null,null,null,null,null,null,null,null,null,null,null,null,null,null,null,null,null,null,null,null,null,null,null,null,null,null,null,null,null,null,null,null,null,null,null,null,{"$f":"IF(DR69<=12000,DR69,IF(DR69<=32000,ROUNDUP(DR69*0.5,0)+6000,IF(DR69<=56000,ROUNDUP(DR69*0.25,0)+14000,28000)))","v":0},null,null,null,null,null,null,null,null,null,null,null,null,null,{"$f":"IF((EF70+EF74)<=28000,(EF70+EF74),28000)","v":0}]
[null,null,null,null,null,null,null,null,null,null,null,null,null,null,null,null,null,null,null,null,null,null,"  ⑮　 　",null,null,null,null,null,null,null,"新生命保険料の計",null,null,null,null,null,null,null,null,null,null,null,null,null,null,null,null,null,null,"旧生命保険料の計",null,null,null,null,null,null,null,null,null,null,null,null,null,null,null,null,null,null,null,null,null,null,null,"配　　　当",null,null,null,null,null,null,null,null,null,null,"オ"]
[null,null,null,null,null,null,null,null,null,null,null,null,null,null,null,null,null,null,null,null,null,null,null,null,null,null,null,null,null,null,null,null,null,null,null,null,null,null,null,null,null,null,null,null,null,null,null,null,null,null,null,null,null,null,null,null,null,null,null,null,null,null,null,null,null,null,null,null,null,null,null,null,null,null,null,null,null,null,null,null,null,null,null,null,null,null,null,null,null,null,null,null,null,null,null,null,null,null,null,null,null,null,"所得*0.05"]
[null,null,null,null,null,null,null,null,null,null,null,null,null,null,null,null,null,null,null,null,null,null,null,null,null,null,null,null,null,null,null,null,null,null,null,null,null,null,null,null,null,null,null,null,null,null,null,"円",null,null,null,null,null,null,null,null,null,null,null,null,null,null,null,null,null,null,"円",null,null,null,null,null,null,null,null,null,null,null,null,null,null,null,null,null,null,null,null,null,null,null,null,null,null,null,null,null,null,null,null,null,null,null,null,null,null,null,null,null,null,null,null,null,null,null,"(a)のうち旧保険料\n等の金額の合計額",null,null,null,null,null,"E",{"$f":"IF(FH60=2,EQ60,0)+IF(FH63=2,EQ63,0)+IF(FH66=2,EQ66,0)","v":0},null,null,null,"Eの金額を下の計算式II (旧保険\n料等用)に当てはめて計算した金額",null,null,null,null,null,null,null,null,"⑤","(最高35,000円)",null,null,null,null,null,null,"⑤と⑥のいずれか\n大きい金額",null,null,null,null,null,"㋩"]
[null,null,null,null,null,null,null,null,null,null,null,null,null,null,null,null,null,null,null,null,null,null,"生命保険料\n控 　 　除",null,null,null,null,null,null,null,null,null,null,null,null,null,null,null,null,null,null,null,null,null,null,null,null,null,null,null,null,null,null,null,null,null,null,null,null,null,null,null,null,null,null,null,null,null,null,null,null,null,null,null,null,null,null,null,null,null,null,null,null,null,null,null,null,null,null,null,null,null,null,null,null,null,null,null,null,null,null,null,{"$f":"IF(CY69*0.05<0,0,CY69*0.05)","v":0},null,null,null,null,null,null,null,null,null,null,null,null,null,null,null,null,null,null,null,null,null,null,null,null,null,null,null,null,null,null,null,null,{"$f":"IF(DR73<=15000,DR73,IF(DR73<=40000,ROUNDUP(DR73*0.5,0)+7500,IF(DR73<=70000,ROUNDUP(DR73*0.25,0)+17000,35000)))","v":0},null,null,null,null,null,null,null,null,null,null,null,null,null,{"$f":"IF(ET70<EF74,EF74,ET70)","v":0}]
[null,null,null,null,null,null,null,null,null,null,null,null,null,null,null,null,null,null,null,null,null,null,null,null,null,null,null,null,null,null,null,null,null,null,null,null,null,null,null,null,null,null,null,null,null,null,null,null,null,null,null,null,null,null,null,null,null,null,null,null,null,null,null,null,null,null,null,null,null,null,null,null,null,"給　　　与",null,null,null,null,null,null,null,null,null,null,"カ"]
[]
[null,null,null,null,null,null,null,null,null,null,null,null,null,null,null,null,null,null,null,null,null,null,null,null,null,null,null,null,null,null,"新個人年金保険料の計",null,null,null,null,null,null,null,null,null,null,null,null,null,null,null,null,null,null,"旧個人年金保険料の計",null,null,null,null,null,null,null,null,null,null,null,null,null,null,null,null,null,null,null,null,null,null,null,null,null,null,null,null,null,null,null,null,null,null,null,null,null,null,null,null,null,null,null,null,null,null,null,null,null,null,null,null,"上記と10万少ない方",null,null,null,null,null,null,null,null,null,null,"地震保険料控除","保険会社等の名称",null,null,null,null,null,"保険等の\n種類(目的)",null,null,null,null,null,"保険\n期間",null,"保険等の\n契約者の氏名",null,null,null,null,null,null,"保険等の対象となった",null,null,null,null,null,null,null,"地震保険料\n又は旧長期\n損害保険料\nの区分",null,null,null,null,"あなたが本年中に支払った\n保険料等のうち、左欄の区\n分に係る金額(分配を受けた\n剰余金等の控除後の金額㋥",null,null,null,null,null,null,"給与の\n支払者の\n確認印"]
[]
[null,null,null,null,null,null,null,null,null,null,null,null,null,null,null,null,null,null,null,null,null,null,null,null,null,null,null,null,null,null,null,null,null,null,null,null,null,null,null,null,null,null,null,null,null,null,null,"円",null,null,null,null,null,null,null,null,null,null,null,null,null,null,null,null,null,null,"円",null,null,null,null,null,null,"雑",null,"公的年金等",null,null,null,null,null,null,null,null,"キ",null,null,null,null,null,null,null,null,null,null,null,null,null,null,null,null,null,{"$f":"IF(CY74<100000,CY74,100000)","v":0},null,null,null,null,null,null,null,null,null,null,null,null,null,null,null,null,null,null,null,null,null,null,null,null,null,null,null,null,null,null,null,null,"家屋等に居住又は\n家財を利用している\n者等の氏名",null,null,null,null,null,"あなた\nとの\n続柄"]
[]
[]
[null,null,null,null,null,null,null,null,null,null,null,null,null,null,null,null,null,null,null,null,null,null,null,null,null,null,null,null,null,null,null,null,null,null,null,null,null,null,null,null,null,null,null,null,null,null,null,null,null,null,null,null,null,null,null,null,null,null,null,null,null,null,null,null,null,null,null,null,null,null,null,null,null,null,null,null,null,null,null,null,null,null,null,null,null,null,null,null,null,null,null,null,null,null,null,null,null,null,null,null,null,null,"医療費控除額"]
[null,null,null,null,null,null,null,null,null,null,null,null,null,null,null,null,null,null,null,null,null,null,null,null,null,null,null,null,null,null,"介護医療保険料の計",null,null,null,null,null,null,null,null,null,null,null,null,null,null,null,null,null,null,null,null,null,null,null,null,null,null,null,null,null,null,null,null,null,null,null,null,null,null,null,null,null,null,null,null,"業　務",null,null,null,null,null,null,null,null,"ク"]
[]
[null,null,null,null,null,null,null,null,null,null,null,null,null,null,null,null,null,null,null,null,null,null,null,null,null,null,null,null,null,null,null,null,null,null,null,null,null,null,null,null,null,null,null,null,null,null,null,"円"]
[]
[null,null,null,null,null,null,null,null,null,null,null,null,null,null,null,null,null,null,null,null,null,null,null,null,null,null,null,null,null,null,null,null,null,null,null,null,null,null,null,null,null,null,null,null,null,null,null,null,null,null,null,null,null,null,null,null,null,null,null,null,null,null,null,null,null,null,null,null,null,null,null,null,null,null,null,"その他",null,null,null,null,null,null,null,null,"ケ",null,null,null,null,null,null,null,null,null,null,null,null,null,null,null,null,null,null,null,null,null,null,null,null,null,null,null,null,null,null,null,null,null,null,null,null,null,null,null,null,null,null,null,null,null,null,null,null,null,null,null,null,null,null,null,null,null,null,"地震",null,null,null,null,null,null,null,null,null,null,null,null,null,null,null,null,null,null,null,{"$f":"IF(EN87=\"地震\",1,IF(EN87=\"旧長期\",2,0))","v":1}]
[null,null,null,null,null,null,null,null,null,null,null,null,null,null,null,null,null,null,null,null,null,null,null,null,null,null,null,null,null,null,null,null,null,null,null,null,null,null,null,null,null,null,null,null,null,null,null,null,null,null,null,null,null,null,null,null,null,null,null,null,null,null,null,null,null,null,null,null,null,null,null,null,null,null,null,null,null,null,null,null,null,null,null,null,null,null,null,null,null,null,null,null,null,null,null,null,null,null,null,null,null,null,{"$f":"IF(CY64-CY79>2000000,2000000,IF(CY64-CY79<0,0,CY64-CY79))","v":0}]
[null,null,null,null,null,null,null,null,null,null,null,null,null,null,null,null,null,null,null,null,null,null,"  ⑯　地震保\n　　険料控除",null,null,null,null,null,null,null,"地震保険料の計",null,null,null,null,null,null,null,null,null,null,null,null,null,null,null,null,null,null,"旧長期損害保険料の計"]
[null,null,null,null,null,null,null,null,null,null,null,null,null,null,null,null,null,null,null,null,null,null,null,null,null,null,null,null,null,null,null,null,null,null,null,null,null,null,null,null,null,null,null,null,null,null,null,null,null,null,null,null,null,null,null,null,null,null,null,null,null,null,null,null,null,null,null,null,null,null,null,null,null,null,null,null,null,null,null,null,null,null,null,null,null,null,null,null,null,null,null,null,null,null,null,null,null,null,null,null,null,null,null,null,null,null,null,null,null,null,null,null,null,null,null,null,null,null,null,null,null,null,null,null,null,null,null,null,null,null,null,null,null,null,null,null,null,null,null,null,null,null,null,"旧長期",null,null,null,null,null,null,null,null,null,null,null,null,null,null,null,null,null,null,null,{"$f":"IF(EN90=\"地震\",1,IF(EN90=\"旧長期\",2,0))","v":2}]
[null,null,null,null,null,null,null,null,null,null,null,null,null,null,null,null,null,null,null,null,null,null,null,null,null,null,null,null,null,null,null,null,null,null,null,null,null,null,null,null,null,null,null,null,null,null,null,null,null,null,null,null,null,null,null,null,null,null,null,null,null,null,null,null,null,null,null,null,null,null,null,null,null,"総",null,"短    期",null,null,null,null,null,null,null,null,"コ"]
[null,null,null,null,null,null,null,null,null,null,null,null,null,null,null,null,null,null,null,null,null,null,null,null,null,null,null,null,null,null,null,null,null,null,null,null,null,null,null,null,null,null,null,null,null,null,null,"円",null,null,null,null,null,null,null,null,null,null,null,null,null,null,null,null,null,null,"円"]
[null,null,null,null,null,null,null,null,null,null,null,null,null,null,null,null,null,null,null,null,null,null,null,null,null,null,null,null,null,null,null,null,null,null,null,null,null,null,null,null,null,null,null,null,null,null,null,null,null,null,null,null,null,null,null,null,null,null,null,null,null,null,null,null,null,null,null,null,null,null,null,null,null,null,null,null,null,null,null,null,null,null,null,null,null,null,null,null,null,null,null,null,null,null,null,null,null,null,null,null,null,null,null,null,null,null,null,null,null,null,null,null,null,null,"㋥のうち地震保険料の金額の合計額",null,null,null,null,null,null,null,null,null,null,null,null,"㋭",{"$f":"IF(FH87=1,ES87,0)+IF(FH90=1,ES90,0)","v":0},null,null,null,null,null,null,"㋥のうち旧長期損害保険料の金額の合計額",null,null,null,null,null,null,null,null,null,null,null,null,null,null,"㋬",{"$f":"IF(FH87=2,ES87,0)+IF(FH90=2,ES90,0)","v":0}]
[null,null,null,null,null,null,null,null,null,null,null,null,null,null,null,null,null,null,null,null,null,null,null,null,null,null,null,null,null,null,null,null,null,null,null,null,null,null,null,null,null,null,null,null,null,null,null,null,null,null,null,null,null,null,null,null,null,null,null,null,null,null,null,null,null,null,null,null,null,null,null,null,null,"合"]
[]
[null,null,null,null,null,null,null,null,null,null,null,null,null,null,null,null,null,null,null,null,null,null,"　⑰～⑲",null,null,null,null,null,null,null," ⑰　　□　寡婦控除",null,null,null,null,null,null,null,null,null,null,null,null,null,"⑱",null,null,null,null,null,null,null,null," ⑲　□　勤労学生控除　",null,null,null,null,null,null,null,null,null,null,null,null,null,null,null,null,null,null,null,"譲",null,"長    期",null,null,null,null,null,null,null,null,"サ",null,null,null,null,null,null,null,null,null,null,null,null,null,null,null,null,null,null,null,null,null,null,null,null,null,null,null,null,null,"地震保険料\n控 除 額",null,null,null,null,"〔","㋭の金額",null,null,"(最高25,000円)",null,null,null,null,"〕","＋","〔","㋬の金額(㋬の金額が\n10,000円を超える場合は、\n㋬×1/2+5,000円)※",null,null,null,null,null,null,null,null,null,"(最高10,000円)",null,null,null,null,"〕","＝","(最高25,000円)"]
[null,null,null,null,null,null,null,null,null,null,null,null,null,null,null,null,null,null,null,null,null,null,null,null,null,null,null,null,null,null,null,null,null,null,null,null,null,null,null,null,null,null,null,null,null,null,null,null,null,null,null,null,null,null,null,null,null,null,null,null,null,null,null,null,null,null,null,null,null,null,null,null,null,null,null,null,null,null,null,null,null,null,null,null,null,null,null,null,null,null,null,null,null,null,null,null,null,null,null,null,null,null,null,null,null,null,null,null,null,null,null,null,null,null,null,null,null,null,null,null,null,null,null,{"$f":"IF(DY93*0.5<=25000,DY93*0.5,25000)","v":0},null,null,null,null,null,null,null,null,null,null,null,null,null,null,null,null,null,{"$f":"IF(IF(EV93<=5000,EV93,ROUNDUP(EV93*0.5,0)+2500)<=10000,IF(EV93<=10000,EV93,ROUNDUP(EV93*0.5,0)+2500),10000)","v":0},null,null,null,null,null,null,{"$f":"DT97+EL97","v":0}]
[]
[null,null,null,null,null,null,null,null,null,null,null,null,null,null,null,null,null,null,null,null,null,null,"　　寡婦控除、\n　　ひとり親控除、\n　　勤労学生控除",null,null,null,null,null,null,null,"　　□死別　□生死不明\n　　□離婚　□未帰還",null,null,null,null,null,null,null,null,null,null,null,null,null,"□　ひとり親\n　　控　　除",null,null,null,null,null,null,null,null,"（学校名）",null,null,null,null,null,null,null,null,null,null,null,null,null,null,null,null,null,null,null,"渡"]
[null,null,null,null,null,null,null,null,null,null,null,null,null,null,null,null,null,null,null,null,null,null,null,null,null,null,null,null,null,null,null,null,null,null,null,null,null,null,null,null,null,null,null,null,null,null,null,null,null,null,null,null,null,null,null,null,null,null,null,null,null,null,null,null,null,null,null,null,null,null,null,null,null,null,null,null,null,null,null,null,null,null,null,null,null,null,null,null,null,null,null,null,null,null,null,null,null,null,null,null,null,null,"シルバー"]
[null,null,null,null,null,null,null,null,null,null,null,null,null,null,null,null,null,null,null,null,null,null,null,null,null,null,null,null,null,null,null,null,null,null,null,null,null,null,null,null,null,null,null,null,null,null,null,null,null,null,null,null,null,null,null,null,null,null,null,null,null,null,null,null,null,null,null,null,null,null,null,null,null,"一時",null,null,null,null,null,null,null,null,null,null,"シ"]
[null,null,null,null,null,null,null,null,null,null,null,null,null,null,null,null,null,null,null,null,null,null,null,null,null,null,null,null,null,null,null,null,null,null,null,null,null,null,null,null,null,null,null,null,null,null,null,null,null,null,null,null,null,null,null,null,null,null,null,null,null,null,null,null,null,null,null,null,null,null,null,null,null,null,null,null,null,null,null,null,null,null,null,null,null,null,null,null,null,null,null,null,null,null,null,null,null,null,null,null,null,null,{"$f":"CJ89","v":0}]
[]
[null,null,null,null,null,null,null,null,null,null,null,null,null,null,null,null,null,null,null,null,null,null,"  ⑳",null,null,null,null,null,null,null,1,null,"フリガナ",null,null,{"$f":"PHONETIC(AJ106)","v":""},null,null,null,null,null,null,null,null,null,null,null,null,null,null,null,null,null,"障害の\n程度",null,null,null,null,null,null,null,null,null,null,null,null,"級度"]
["確定申告"]
[null,null,null,null,null,null,null,null,null,null,null,null,null,null,null,null,null,null,null,null,null,null,null,null,null,null,null,null,null,null,null,null,"氏名",null,null,null,null,null,null,null,null,null,null,null,null,null,null,null,null,null,null,null,null,null,null,null,null,null,null,null,null,null,null,null,null,null,null,null,null,null,"２　所　得　金　額",null,null,"事",null,"営業等",null,null,null,null,null,null,null,null,"①",null,null,null,null,null,null,null,null,null,null,null,null,null,null,null,null,null,"事業収入"]
[]
[{"$f":"BS106","v":"２　所　得　金　額"},"事",null,"営業等",null,null,null,null,"①",{"$f":"CJ106","v":0},null,null,null,null,null,null,null,null,null,null,null,null,null,null,null,null,null,null,null,null,null,null,null,null,null,null,null,null,null,null,null,null,null,null,null,null,null,null,null,null,null,null,null,null,null,null,null,null,null,null,null,null,null,null,null,null,null,null,null,null,null,null,null,null,null,null,null,null,null,null,null,null,null,null,null,null,null,null,null,null,null,null,null,null,null,null,null,null,null,null,null,null,{"$f":"CJ54","v":0},null,null,null,null,null,null,null,null,null,"①"]
[null,null,null,null,null,null,null,null,null,null,null,null,null,null,null,null,null,null,null,null,null,null,"障　害　者\n控　　　除",null,null,null,null,null,null,null,null,null,null,null,null,null,null,null,null,null,null,null,null,null,null,null,null,null,null,null,null,null,null,null,null,null,null,null,null,null,null,null,null,null,null,null,null,null,null,null,null,null,null,null,null,null,null,null,null,null,null,null,null,null,null,null,null,null,null,null,null,null,null,null,null,null,null,null,null,null,null,null,null,null,null,null,null,null,null,null,null,null,null,null,null,null,null,null,null,null,null,null,null,null,null,"65歳未満",null,null,"所得金額＝公的年金等の収入金額（年金支給額）－公的年金等控除額"]
[null,null,null,null,null,null,null,null,null,null,null,null,null,null,null,null,null,null,null,null,null,null,null,null,null,null,null,null,null,null,null,null,"個人番号",null,null,null,null,null,null,null,null,null,null,null,null,null,null,null,null,null,null,null,null,null,null,null,null,null,null,null,null,null,null,null,null,null,null,null,null,null,null,null,null,"業",null,"農　　業",null,null,null,null,null,null,null,null,"②",null,null,null,null,null,null,null,null,null,null,null,null,null,null,null,null,null,null,null,null,null,null,null,null,null,null,null,null,null,null,null,null,null,null,null,null,null,null,null,null,"65歳以上",null,null,"により求め、この金額から各種の控除額を差し引いて、課税所得を算出します。"]
[null,null,null,null,null,null,null,null,null,null,null,null,null,null,null,null,null,null,null,null,null,null,null,null,null,null,null,null,null,null,null,null,null,null,null,null,null,null,null,null,null,null,null,null,null,null,null,null,null,null,null,null,null,null,null,null,null,null,null,null,null,null,null,null,null,null,null,null,null,null,null,null,null,null,null,null,null,null,null,null,null,null,null,null,null,null,null,null,null,null,null,null,null,null,null,null,null,null,null,null,null,null,"特例適用前の必要経費",null,null,null,null,null,null,null,null,null,null,null,null,null,null,null,null,null,null,null,null,null,null,null,null,null,"公的年金等控除額は、下表に基づいて計算します。"]
[null,"業",null,"農　　業",null,null,null,null,"②",{"$f":"CJ110","v":0}]
[null,null,null,null,null,null,null,null,null,null,null,null,null,null,null,null,null,null,null,null,null,null,null,null,null,null,null,null,null,null,null,null,null,null,null,null,null,null,null,null,null,null,null,null,null,null,null,null,null,null,null,null,null,null,null,null,null,null,null,null,null,null,null,null,null,null,null,null,null,null,null,null,null,null,null,null,null,null,null,null,null,null,null,null,null,null,null,null,null,null,null,null,null,null,null,null,null,null,null,null,null,null,{"$f":"CJ54-CJ106","v":0},null,null,null,null,null,null,null,null,null,"②",null,null,null,null,null,null,null,null,null,null,null,null,null,null,null,"ａ．『公的年金等控除額表』"]
[null,null,null,null,null,null,null,null,null,null,null,null,null,null,null,null,null,null,null,null,null,null,null,null,null,null,null,null,null,null,2,null,"フリガナ",null,null,{"$f":"PHONETIC(AJ106)","v":""},null,null,null,null,null,null,null,null,null,null,null,null,null,null,null,null,null,"障害の\n程度",null,null,null,null,null,null,null,null,null,null,null,null,"級度",null,null,null,null,null,null,null,null,null,null,null,null,null,null,null,null,null,null,null,null,null,null,null,null,null,null,null,null,null,null,null,null,null,null,null,null,null,null,null,null,null,null,null,null,null,null,null,null,null,null,null,null,null,null,null,null,null,null,null,null,null,null,"公的年金等の収入金額",null,null,null,null,"公的年金等控除額"]
[null,null,null,null,null,null,null,null,null,null,null,null,null,null,null,null,null,null,null,null,null,null,null,null,null,null,null,null,null,null,null,null,null,null,null,null,null,null,null,null,null,null,null,null,null,null,null,null,null,null,null,null,null,null,null,null,null,null,null,null,null,null,null,null,null,null,null,null,null,null,null,null,null,"不動産",null,null,null,null,null,null,null,null,null,null,"③",null,null,null,null,null,null,null,null,null,null,null,null,null,null,null,null,null,null,null,null,null,null,null,null,null,null,null,null,null,null,null,null,null,null,null,null,null,null,null,null,null,null,null,"65歳未満","130万円未満",null,null,null,null,700000,null,null,null,null,null,null,null,"円",null,null,null,{"$f":"EE115","v":700000},null,1300000]
[null,null,null,null,null,null,null,null,null,null,null,null,null,null,null,null,null,null,null,null,null,null,null,null,null,null,null,null,null,null,null,null,"氏名",null,null,null,null,null,null,null,null,null,null,null,null,null,null,null,null,null,null,null,null,null,null,null,null,null,null,null,null,null,null,null,null,null,null,null,null,null,null,null,null,null,null,null,null,null,null,null,null,null,null,null,null,null,null,null,null,null,null,null,null,null,null,null,null,null,null,null,null,null,"雑収入(公的年金除く）",null,null,null,null,null,null,null,null,null,null,null,null,null,null,null,null,null,null,null,null,null,null,null,null,null,null,"１３０万円以上４１０万円未満",null,null,null,null,"収入金額",null,"×",0.25,"＋",375000,null,null,"円",null,null,null,{"$f":"CT5*EH116+EJ116","v":375000},null,4100000]
[null,"不動産",null,null,null,null,null,null,"③",{"$f":"CJ115","v":0},null,null,null,null,null,null,null,null,null,null,null,null,null,null,null,null,null,null,null,null,null,null,null,null,null,null,null,null,null,null,null,null,null,null,null,null,null,null,null,null,null,null,null,null,null,null,null,null,null,null,null,null,null,null,null,null,null,null,null,null,null,null,null,null,null,null,null,null,null,null,null,null,null,null,null,null,null,null,null,null,null,null,null,null,null,null,null,null,null,null,null,null,null,null,null,null,null,null,null,null,null,null,null,null,null,null,null,null,null,null,null,null,null,null,null,null,null,null,null,"410万円以上770万円未満",null,null,null,null,"収入金額",null,"×",0.15,"＋",785000,null,null,"円",null,null,null,{"$f":"CT5*EH117+EJ117","v":785000},null,7700000]
[null,null,null,null,null,null,null,null,null,null,null,null,null,null,null,null,null,null,null,null,null,null,null,null,null,null,null,null,null,null,null,null,null,null,null,null,null,null,null,null,null,null,null,null,null,null,null,null,null,null,null,null,null,null,null,null,null,null,null,null,null,null,null,null,null,null,null,null,null,null,null,null,null,null,null,null,null,null,null,null,null,null,null,null,null,null,null,null,null,null,null,null,null,null,null,null,null,null,null,null,null,null,{"$f":"CY102","v":0},null,null,null,null,null,null,null,null,null,"③",null,null,null,null,null,null,null,null,null,null,null,null,null,null,null,null,"770万円以上",null,null,null,null,"収入金額",null,"×",0.05,"＋",1555000,null,null,"円",null,null,null,{"$f":"CT5*EH118+EJ118","v":1555000},{"$f":"IF(CT5<ES115,EQ115,IF(CT5<ES116,EQ116,IF(CT5<ES117,EQ117,EQ118)))","v":700000}]
[null,null,null,null,null,null,null,null,null,null,null,null,null,null,null,null,null,null,null,null,null,null,null,null,null,null,null,null,null,null,null,null,null,null,null,null,null,null,null,null,null,null,null,null,null,null,null,null,null,null,null,null,null,null,null,null,null,null,null,null,null,null,null,null,null,null,null,null,null,null,null,null,null,"利　　　子",null,null,null,null,null,null,null,null,null,null,"④",null,null,null,null,null,null,null,null,null,null,null,null,null,null,null,null,null,null,null,null,null,null,null,null,null,null,null,null,null,null,null,null,null,null,null,null,null,null,null,null,null,null,null,"65歳以上","330万円未満",null,null,null,null,1200000,null,null,null,null,null,null,null,"円",null,null,null,{"$f":"EE119","v":1200000},null,3300000]
[null,null,null,null,null,null,null,null,null,null,null,null,null,null,null,null,null,null,null,null,null,null,null,null,null,null,null,null,null,null,null,null,"個人番号",null,null,null,null,null,null,null,null,null,null,null,null,null,null,null,null,null,null,null,null,null,null,null,null,null,null,null,null,null,null,null,null,null,null,null,null,null,null,null,null,null,null,null,null,null,null,null,null,null,null,null,null,null,null,null,null,null,null,null,null,null,null,null,null,null,null,null,null,null,null,null,null,null,null,null,null,null,null,null,null,null,null,"16歳以上扶養親族数",null,null,"16歳以上扶養親族数控除分",null,null,null,null,null,null,null,null,null,null,"330万円以上410万円未満",null,null,null,null,"収入金額",null,"×",0.25,"＋",375000,null,null,"円",null,null,null,{"$f":"CT5*EH120+EJ120","v":375000},null,4100000]
[null,"利　　　子",null,null,null,null,null,null,"④",{"$f":"CJ119","v":0},null,null,null,null,null,null,null,null,null,null,null,null,null,null,null,null,null,null,null,null,null,null,null,null,null,null,null,null,null,null,null,null,null,null,null,null,null,null,null,null,null,null,null,null,null,null,null,null,null,null,null,null,null,null,null,null,null,null,null,null,null,null,null,null,null,null,null,null,null,null,null,null,null,null,null,null,null,null,null,null,null,null,null,null,null,null,null,null,null,null,null,null,"給与所得の収入",null,null,null,null,null,null,null,null,null,null,null,null,null,null,null,null,null,null,null,null,null,null,null,null,null,null,"410万円以上770万円未満",null,null,null,null,"収入金額",null,"×",0.15,"＋",785000,null,null,"円",null,null,null,{"$f":"CT5*EH121+EJ121","v":785000},null,7700000]
[null,null,null,null,null,null,null,null,null,null,null,null,null,null,null,null,null,null,null,null,null,null,null,null,null,null,null,null,null,null,null,null,null,null,null,null,null,null,null,null,null,null,null,null,null,null,null,null,null,null,null,null,null,null,null,null,null,null,null,null,null,null,null,null,null,null,null,null,null,null,null,null,null,null,null,null,null,null,null,null,null,null,null,null,null,null,null,null,null,null,null,null,null,null,null,null,null,null,null,null,null,null,null,null,null,null,null,null,null,null,null,null,null,null,null,null,null,null,null,null,null,null,null,null,null,null,null,null,null,"770万円以上",null,null,null,null,"収入金額",null,"×",0.05,"＋",1555000,null,null,"円",null,null,null,{"$f":"CT5*EH122+EJ122","v":1555000},{"$f":"IF(CT5<ES119,EQ119,IF(CT5<ES120,EQ120,IF(CT5<ES121,EQ121,EQ122)))","v":1200000}]
[null,null,null,null,null,null,null,null,null,null,null,null,null,null,null,null,null,null,null,null,null,null,null,null,null,null,null,null,null,null,null,null,null,null,null,null,null,null,null,null,null,null,null,null,null,null,null,null,null,null,null,null,null,null,null,null,null,null,null,null,null,null,null,null,null,null,null,null,null,null,null,null,null,"配　　　当",null,null,null,null,null,null,null,null,null,null,"⑤",null,null,null,null,null,null,null,null,null,null,null,null,null,null,null,null,null,{"$f":"CJ75","v":0},null,null,null,null,null,null,null,null,null,"④",null,null,"人",null,null,"円"]
[null,null,null,null,null,null,null,null,null,null,null,null,null,null,null,null,null,null,null,null,null,null,"　㉑ ～ ㉒　",null,null,null,null,null,null,null,"配偶者",null,"フリガナ",null,null,{"$f":"BO9","v":""},null,null,null,null,null,null,null,null,null,null,null,null,null,null,null,null,"生年月日",null,null,null,null,null,"　明・大・昭\n　平・令",null,null,null,"・　　・"]
[null,"配　　　当",null,null,null,null,null,null,"⑤",{"$f":"CJ123","v":0}]
[null,null,null,null,null,null,null,null,null,null,null,null,null,null,null,null,null,null,null,null,null,null,null,null,null,null,null,null,null,null,null,null,null,null,null,null,null,null,null,null,null,null,null,null,null,null,null,null,null,null,null,null,null,null,null,null,null,null,null,null,null,null,null,null,null,null,null,null,null,null,null,null,null,null,null,null,null,null,null,null,null,null,null,null,null,null,null,null,null,null,null,null,null,null,null,null,null,null,null,null,null,null,"65万-②‐④"]
[null,null,null,null,null,null,null,null,null,null,null,null,null,null,null,null,null,null,null,null,null,null,null,null,null,null,null,null,null,null,null,null,"氏名",null,null,{"$f":"IF(BE9=\"\",\"\",BE9)","v":""},null,null,null,null,null,null,null,null,null,null,null,null,null,null,null,null,"配偶者の合計所得金額",null,null,null,null,null,null,null,null,null,null,null,null,null,"円",null,null,null,null,null,null,"給　　　与",null,null,null,null,null,null,null,null,null,null,"⑥"]
[null,null,null,null,null,null,null,null,null,null,null,null,null,null,null,null,null,null,null,null,null,null,"配偶者控除・\n配偶者特別控除・\n同一生計配偶者"]
[]
[]
[null,null,null,null,null,null,null,null,null,null,null,null,null,null,null,null,null,null,null,null,null,null,null,null,null,null,null,null,null,null,"個人番号",null,null,null,null,null,null,null,null,null,null,null,null,null,null,null,null,null,null,null,null,null,null,null,null,null,null,null,null,null,"□","同一生計配偶者（控除対象配偶者を除く。）",null,null,null,null,null,null,null,null,null,null,null,"雑",null,"公的年金等",null,null,null,null,null,null,null,null,"⑦"]
[]
[]
[]
[null,null,null,null,null,null,null,null,null,null,null,null,{"$f":"IF(BB104=$DJ$11,$DP$11,IF(BB104=$DJ$12,$DP$12,IF(BB104=$DJ$13,$DP$13,0)))","v":0},null,null,null,null,null,null,null,null,null,"㉓",null,null,1,null,"フリガナ",null,null,null,null,null,null,null,null,null,null,null,null,null,null,null,"生年月日",null,"　明・大・昭\n　平・令",null,null,null,"・　　　　・　　",null,null,null,null,null,"同居・\n別居の\n区分",null,null,"□同居\n□別居",null,null,null,"続柄",null,null,null,null,null,null,null,null,null,null,null,null,"業　務",null,null,null,null,null,null,null,null,"⑧"]
[null,null,null,null,null,null,null,null,null,null,null,null,null,null,null,null,null,null,null,null,null,null,null,null,null,null,null,null,null,null,null,null,null,null,null,null,null,null,null,null,null,null,null,null,null,null,null,null,null,null,null,null,null,null,null,null,null,null,null,null,null,null,null,null,null,null,null,null,null,null,null,null,null,null,null,null,null,null,null,null,null,null,null,null,null,null,null,null,null,null,null,null,null,null,null,null,null,null,null,null,null,null,{"$f":"IF(650000-CY113-CY123<=0,0,650000-CY113-CY123)","v":650000},null,null,null,null,null,null,null,null,null,"⑤"]
[null,"給　　　与",null,null,null,null,null,null,"⑥",{"$f":"CJ135","v":0},null,null,null,null,null,null,null,null,null,null,null,null,null,null,null,null,null,"氏名",null,null,null,null,null,null,null,null,null,null,null,null,null,null,null,null,null,null,null,null,null,null,null,null,null,null,null,null,null,null,null,null,null,null,null,null,null,null,null,null,null,null,null,null,null,null,null,null,null,null,null,null,null,null,null,null,null,null,null,null,null,null,null,null,null,null,null,null,null,null,null,null,null,null,null,null,null,null,null,null,null,null,null,null,null,"保険会社等の名称",null,null,null,null,null,null,null,"保険等の\n種類",null,null,null,"保険期間\n又は年金\n支払期間",null,null,"保険等の\n契約者の氏名",null,null,null,null,null,"保険金等の受取人",null,null,null,null,null,null,null,"新・旧の\n区分",null,null,"あなたが本年中に支払った\n保険料等の金額(分配を受けた\n剰余金等の控除後の金額)\n(a)",null,null,null,null,null,null,null,null,"給与の\n支払者の\n確認印"]
[]
[null,null,null,null,null,null,null,null,null,null,null,null,null,null,null,null,null,null,null,null,null,null,null,null,null,null,null,null,null,null,null,null,null,null,null,null,null,null,null,null,null,null,null,null,null,null,null,null,null,null,null,null,null,null,null,null,null,null,null,null,null,null,null,null,null,null,null,null,null,null,null,null,null,null,null,"その他",null,null,null,null,null,null,null,null,"⑨"]
[null,null,null,null,null,null,null,null,null,null,null,null,null,null,null,null,null,null,null,null,null,null,"　扶　　養　　控　　除"]
[null,null,null,null,null,null,null,null,null,null,null,null,null,null,null,null,null,null,null,null,null,null,null,null,null,null,null,"個人番号",null,null,null,null,null,null,null,null,null,null,null,null,null,null,null,null,null,null,null,null,null,null,null,null,null,null,null,null,null,null,"控除額",null,null,null,"万円"]
[]
[null,null,null,null,null,null,null,null,null,null,null,null,null,null,null,null,null,null,null,null,null,null,null,null,null,null,null,null,null,null,null,null,null,null,null,null,null,null,null,null,null,null,null,null,null,null,null,null,null,null,null,null,null,null,null,null,null,null,null,null,null,null,null,null,null,null,null,null,null,null,null,null,null,null,null,"合　　計\n（⑦+⑧+⑨）",null,null,null,null,null,null,null,null,"⑩",null,null,null,null,null,null,null,null,null,null,null,null,null,null,null,null,null,"65万-③‐④",null,null,null,null,null,null,null,null,null,null,null,null,null,null,null,null,null,null,null,null,null,null,null,null,null,null,null,null,null,null,null,"氏名",null,null,null,null,null,"あなた\nとの\n続柄"]
[]
[null,"雑",null,null,null,"年金",null,null,"⑦",{"$f":"CJ143","v":0},null,null,null,null,null,null,null,null,null,null,null,null,null,null,null,2,null,"フリガナ",null,null,null,null,null,null,null,null,null,null,null,null,null,null,null,"生年月日",null,"　明・大・昭\n　平・令",null,null,null,"・　　　　・　　",null,null,null,null,null,"同居・\n別居の\n区分",null,null,"□同居\n□別居",null,null,null,"続柄",null,null,null,null,null,null,null,null,null,null,null,null,null,null,null,null,null,null,null,null,null,null,null,null,null,null,null,null,null,null,null,null,null,null,null,null,null,null,null,{"$f":"IF(650000-CY118-CY136<=0,0,650000-CY118-CY136)","v":0},null,null,null,null,null,null,null,null,null,"⑥"]
[]
[null,null,null,null,null,"シルバー",null,null,null,{"$f":"CJ145","v":0},null,null,null,null,null,null,null,null,null,null,null,null,null,null,null,null,null,"氏名",null,null,null,null,null,null,null,null,null,null,null,null,null,null,null,null,null,null,null,null,null,null,null,null,null,null,null,null,null,null,null,null,null,null,null,null,null,null,null,null,null,null,null,null,null,"総合譲渡・一時",null,null,null,null,null,null,null,null,null,null,"⑪",null,null,null,null,null,null,null,null,null,null,null,null,null,null,null,null,null,null,null,null,null,null,null,null,null,null,null,null,"一般の生命保険料",null,null,null,null,null,null,null,null,null,null,null,null,null,null,null,null,null,null,null,null,null,null,null,null,null,null,null,null,{"$f":"EM33","v":"新"},null,null,"(a)",{"$f":"EQ33","v":0},null,null,null,null,null,null,null,null,null,null,null,null,null,null,null,null,{"$f":"IF(EM147=\"新\",1,IF(EM147=\"旧\",2,0))","v":1}]
[null,null,null,null,null,null,null,null,null,null,null,null,null,null,null,null,null,null,null,null,null,null,null,null,null,null,null,null,null,null,null,null,null,null,null,null,null,null,null,null,null,null,null,null,null,null,null,null,null,null,null,null,null,null,null,null,null,null,null,null,null,null,null,null,null,null,null,null,null,null,null,null,null,null,null,null,null,null,null,null,null,null,null,null,null,null,null,null,null,null,null,null,null,null,null,null,null,null,null,null,null,null,"③がないＯＲ、③＝＜⑤"]
[null,"総合譲渡・一時",null,null,null,null,null,null,"⑧",{"$f":"CJ147","v":0},null,null,{"$f":"IF(BB114=$DJ$11,$DP$11,IF(BB114=$DJ$12,$DP$12,IF(BB114=$DJ$13,$DP$13,0)))","v":0}]
[null,null,null,null,null,null,null,null,null,null,null,null,null,null,null,null,null,null,null,null,null,null,null,null,null,null,null,null,null,null,null,null,null,null,null,null,null,null,null,null,null,null,null,null,null,null,null,null,null,null,null,null,null,null,null,null,null,null,null,null,null,null,null,null,null,null,null,null,null,null,null,null,null,null,null,null,null,null,null,null,null,null,null,null,null,null,null,null,null,null,null,null,null,null,null,null,null,null,null,null,null,null,{"$f":"IF(OR(CY118=0,CY118<=CY136),MIN(CY108,CY145),0)","v":0},null,null,null,null,null,null,null,null,null,"⑦",null,null,null,null,null,null,null,null,null,null,null,null,null,null,null,null,null,null,null,null,null,null,null,null,null,null,null,null,null,{"$f":"EM36","v":"新"},null,null,"(a)",{"$f":"EQ36","v":0},null,null,null,null,null,null,null,null,null,null,null,null,null,null,null,null,{"$f":"IF(EM150=\"新\",1,IF(EM150=\"旧\",2,0))","v":1}]
[null,null,null,null,null,null,null,null,null,null,null,null,null,null,null,null,null,null,null,null,null,null,null,null,null,null,null,"個人番号",null,null,null,null,null,null,null,null,null,null,null,null,null,null,null,null,null,null,null,null,null,null,null,null,null,null,null,null,null,null,"控除額",null,null,null,null,null,null,null,null,null,null,null,null,null,null,"合　　　計",null,null,null,null,null,null,null,null,null,null,"⑫"]
[]
[null,"合　　　計",null,null,null,null,null,null,"⑨",{"$f":"SUM(J108:L152)","v":0},null,null,null,null,null,null,null,null,null,null,null,null,null,null,null,null,null,null,null,null,null,null,null,null,null,null,null,null,null,null,null,null,null,null,null,null,null,null,null,null,null,null,null,null,null,null,null,null,null,null,null,null,null,null,null,null,null,null,null,null,null,null,null,null,null,null,null,null,null,null,null,null,null,null,null,null,null,null,null,null,null,null,null,null,null,null,null,null,null,null,null,null,"③＞⑤",null,null,null,null,null,null,null,null,null,null,null,null,null,null,null,null,null,null,null,null,null,null,null,null,null,null,null,null,null,null,null,null,null,null,null,null,null,null,null,{"$f":"EM39","v":"旧"},null,null,"(a)",{"$f":"EQ39","v":0},null,null,null,null,null,null,null,null,null,null,null,null,null,null,null,null,{"$f":"IF(EM153=\"新\",1,IF(EM153=\"旧\",2,0))","v":2}]
[]
[null,null,null,null,null,null,null,null,null,null,null,null,null,null,null,null,null,null,null,"作成税理士",null,null,null,null,null,3,null,"フリガナ",null,null,null,null,null,null,null,null,null,null,null,null,null,null,null,"生年月日",null,"　明・大・昭\n　平・令",null,null,null,"・　　　　・　　",null,null,null,null,null,"同居・\n別居の\n区分",null,null,"□同居\n□別居",null,null,null,"続柄",null,null,null,null,null,null,null,null,null,null,null,null,null,null,null,null,null,null,null,null,null,null,null,null,null,null,null,null,null,null,null,null,null,null,null,null,null,null,null,{"$f":"IF(CY118>CY136,CY113,0)","v":0},null,null,null,null,null,null,null,null,null,"⑧"]
[null,null,null,null,null,null,null,null,null,null,null,null,null,null,null,null,null,null,null,null,null,null,null,null,null,null,null,null,null,null,null,null,null,null,null,null,null,null,null,null,null,null,null,null,null,null,null,null,null,null,null,null,null,null,null,null,null,null,null,null,null,null,null,null,null,null,null,null,null,null,"４　所得から差し引かれる金額",null,null,"社会保険料控除",null,null,null,null,null,null,null,null,null,null,"⑬",null,null,null,null,null,null,null,null,null,null,null,null,null,null,null,null,null,null,null,null,null,null,null,null,null,null,null,null,null,null,null,null,null,null,null,null,null,null,null,null,null,null,null,null,null,null,null,null,null,null,null,null,null,null,null,null,null,{"$f":"EM42","v":"旧"},null,null,"(a)",{"$f":"EQ42","v":0},null,null,null,null,null,null,null,null,null,null,null,null,null,null,null,null,{"$f":"IF(EM156=\"新\",1,IF(EM156=\"旧\",2,0))","v":2}]
[null,null,null,null,null,null,null,null,null,null,null,null,null,null,"署　名　押　印",null,"（電話番号）","事務所所在地",null,null,null,null,null,null,null,null,null,"氏名"]
[{"$f":"BS156","v":"４　所得から差し引かれる金額"},"雑損控除",null,null,null,null,null,null,"⑩",{"$f":"CJ156","v":0},null,null,null,null,null,null,null,null,null,null,null,null,null,null,null,null,null,null,null,null,null,null,null,null,null,null,null,null,null,null,null,null,null,null,null,null,null,null,null,null,null,null,null,null,null,null,null,null,null,null,null,null,null,null,null,null,null,null,null,null,null,null,null,null,null,null,null,null,null,null,null,null,null,null,null,null,null,null,null,null,null,null,null,null,null,null,null,null,null,null,null,null,"③＞⑤"]
[null,null,null,null,null,null,null,null,null,null,null,null,null,null,null,null,null,null,null,null,null,null,null,null,null,null,null,null,null,null,null,null,null,null,null,null,null,null,null,null,null,null,null,null,null,null,null,null,null,null,null,null,null,null,null,null,null,null,null,null,null,null,null,null,null,null,null,null,null,null,null,null,null,null,null,null,null,null,null,null,null,null,null,null,null,null,null,null,null,null,null,null,null,null,null,null,null,null,null,null,null,null,null,null,null,null,null,null,null,null,null,null,null,null,"(a)のうち新保険料\n等の金額の合計額",null,null,null,null,null,"A",{"$f":"IF(FH147=1,EQ147,0)+IF(FH150=1,EQ150,0)+IF(FH153=1,EQ153,0)+IF(FH156=1,EQ156,0)","v":0},null,null,null,"Aの金額を下の計算式I (新保険\n料等用)に当てはめて計算した金額",null,null,null,null,null,null,null,null,"①","(最高40,000円)",null,null,null,null,null,null,"計(①＋②)",null,null,null,null,null,"③","(最高40,000円)"]
[null,null,null,null,null,null,null,null,null,null,null,null,null,null,null,null,null,null,null,null,null,null,null,null,null,null,null,null,null,null,null,null,null,null,null,null,null,null,null,null,null,null,null,null,null,null,null,null,null,null,null,null,null,null,null,null,null,null,null,null,null,null,null,null,null,null,null,null,null,null,null,null,null,"小規模企業",null,null,null,null,null,null,null,null,null,null,"⑭",null,null,null,null,null,null,null,null,null,null,null,null,null,null,null,null,null,{"$f":"MIN(CY118,CY136)","v":0},null,null,null,null,null,null,null,null,null,"⑨",null,null,null,null,null,null,null,null,null,null,null,null,null,null,null,null,null,null,null,null,null,null,{"$f":"IF(DR159<=20000,DR159,IF(DR159<=40000,ROUNDUP(DR159*0.5,0)+10000,IF(DR159<=80000,ROUNDUP(DR159*0.25,0)+20000,40000)))","v":0},null,null,null,null,null,null,null,null,null,null,null,null,null,{"$f":"IF((EF160+EF164)<=40000,(EF160+EF164),40000)","v":0}]
[null,null,null,null,null,null,null,null,null,null,null,null,null,null,null,null,null,null,null,null,null,null,null,null,null,null,null,"個人番号",null,null,null,null,null,null,null,null,null,null,null,null,null,null,null,null,null,null,null,null,null,null,null,null,null,null,null,null,null,null,"控除額"]
[null,"医療費控除",null,null,null,null,null,null,"⑪",{"$f":"CJ160","v":0},null,null,null,null,null,null,null,null,null,null,null,null,null,null,null,null,null,null,null,null,null,null,null,null,null,null,null,null,null,null,null,null,null,null,null,null,null,null,null,null,null,null,null,null,null,null,null,null,null,null,null,null,null,null,null,null,null,null,null,null,null,null,null,"共済等掛金控除"]
[null,null,null,null,null,null,null,null,null,null,null,null,null,null,null,null,null,null,null,null,null,null,null,null,null,null,null,null,null,null,null,null,null,null,null,null,null,null,null,null,null,null,null,null,null,null,null,null,null,null,null,null,null,null,null,null,null,null,null,null,null,null,null,null,null,null,null,null,null,null,null,null,null,null,null,null,null,null,null,null,null,null,null,null,null,null,null,null,null,null,null,null,null,null,null,null,null,null,null,null,null,null,null,null,null,null,null,null,null,null,null,null,null,null,"(a)のうち旧保険料\n等の金額の合計額",null,null,null,null,null,"B",{"$f":"IF(FH147=2,EQ147,0)+IF(FH150=2,EQ150,0)+IF(FH153=2,EQ153,0)+IF(FH156=2,EQ156,0)","v":0},null,null,null,"Bの金額を下の計算式II (旧保険\n料等用)に当てはめて計算した金額",null,null,null,null,null,null,null,null,"②","(最高50,000円)",null,null,null,null,null,null,"②と③のいずれか\n大きい金額",null,null,null,null,null,"㋑"]
[null,null,null,null,null,null,null,null,null,null,null,null,null,null,null,null,null,null,null,null,null,null,null,null,null,null,null,null,null,null,null,null,null,null,null,null,null,null,null,null,null,null,null,null,null,null,null,null,null,null,null,null,null,null,null,null,null,null,null,null,null,null,null,null,null,null,null,null,null,null,null,null,null,"生命保険料控除",null,null,null,null,null,null,null,null,null,null,"⑮",null,null,null,null,null,null,null,null,null,null,null,null,null,null,null,null,null,null,null,null,null,null,null,null,null,null,null,null,null,null,null,null,null,null,null,null,null,null,null,null,null,null,null,null,null,null,null,null,null,null,{"$f":"IF(DR163<=25000,DR163,IF(DR163<=50000,ROUNDUP(DR163*0.5,0)+12500,IF(DR163<=100000,ROUNDUP(DR163*0.25,0)+25000,50000)))","v":0},null,null,null,null,null,null,null,null,null,null,null,null,null,{"$f":"IF(ET160<EF164,EF164,ET160)","v":0}]
[null,null,null,null,null,null,null,null,null,null,null,null,null,null,null,null,null,null,null,null,null,null,null,null,null,4,null,"フリガナ",null,null,null,null,null,null,null,null,null,null,null,null,null,null,null,"生年月日",null,"　明・大・昭\n　平・令",null,null,null,"・　　　　・　　",null,null,null,null,null,"同居・\n別居の\n区分",null,null,"□同居\n□別居",null,null,null,"続柄"]
[null,"社会保険料控除",null,null,null,null,null,null,"⑫",{"$f":"CJ164","v":0}]
[null,null,null,null,null,null,null,null,null,null,null,null,null,null,null,null,null,null,null,null,null,null,null,null,null,null,null,"氏名",null,null,null,null,null,null,null,null,null,null,null,null,null,null,null,null,null,null,null,null,null,null,null,null,null,null,null,null,null,null,null,null,null,null,null,null,null,null,null,null,null,null,null,null,null,null,null,null,null,null,null,null,null,null,null,null,null,null,null,null,null,null,null,null,null,null,null,null,null,null,null,null,null,null,null,null,null,null,null,null,null,null,null,null,null,"介護医療保険料",null,null,null,null,null,null,null,null,null,null,null,null,null,null,null,null,null,null,null,null,null,null,null,null,null,null,null,null,null,null,null,"(a)",{"$f":"#REF!","v":{"$error":"#REF!"}}]
[null,null,null,null,null,null,null,null,null,null,null,null,null,null,null,null,null,null,null,null,null,null,null,null,null,null,null,null,null,null,null,null,null,null,null,null,null,null,null,null,null,null,null,null,null,null,null,null,null,null,null,null,null,null,null,null,null,null,null,null,null,null,null,null,null,null,null,null,null,null,null,null,null,"地震保険料控除",null,null,null,null,null,null,null,null,null,null,"⑯"]
[null,null,null,null,null,null,null,null,null,null,null,null,null,null,null,null,null,null,null,null,null,null,null,null,null,null,null,null,null,null,null,null,null,null,null,null,null,null,null,null,null,null,null,null,null,null,null,null,null,null,null,null,null,null,null,null,null,null,null,null,null,null,null,null,null,null,null,null,null,null,null,null,null,null,null,null,null,null,null,null,null,null,null,null,null,null,null,null,null,null,null,null,null,null,null,null,null,null,null,null,null,null,null,null,null,null,null,null,null,null,null,null,null,null,null,null,null,null,null,null,null,null,null,null,null,null,null,null,null,null,null,null,null,null,null,null,null,null,null,null,null,null,null,null,null,null,null,null,null,null,null,null,null,null,null,null,null,null,null,null,null,null,null,null,null,null,null,null,null,null,null,null,null,null,null,null,null,null,null,null,null,null,null,null,null,null,null,null,null,null,null,null,null,null,null,null,null,null,null,null,null,null,null,null,null,null,null,null,null,null,null,null,null,null,null,null,null,null,null,null,null,null,null,null,null,null,null,null,null,null,null,null,null,null,null,null,null,null,null,null,null,null,null,null,null,null,null,null,null,null,null,null,null,null,null,null,null,null,null,null,null,null,null,null,null,null,null,null,null,null,null,null,null,null,null,null,null,null,null,null,null,null,null,null,null,null,null,null,null,null,null,null,null,null,null,null,null,null,null,null,null,null,null,null,null,null,null,null,null,null,null,null,null,null,null,null,null,null,null,null,null,null,null,null,null,null,null,null,null,null,null,null,null,null,null,null,null,null,null,null,null,null,null,null,null,null,null,null,null,null,null,"事",null,"営業等",null,null,null,null,"①"]
[null,"小規模企業",null,null,null,null,null,null,"⑬",{"$f":"CJ168","v":0},null,null,{"$f":"IF(AE137=\"\",0,IF(BD135=$DS$11,$EF$11,IF(BD135=$DS$12,$EF$12,IF(BD135=$DS$13,$EF$13,IF(BD135=$DS$14,$EF$14,0)))))","v":0},null,null,null,null,null,null,null,null,null,null,null,null,null,null,null,null,null,null,null,null,null,null,null,null,null,null,null,null,null,null,null,null,null,null,null,null,null,null,null,null,null,null,null,null,null,null,null,null,null,null,null,null,null,null,null,null,null,null,null,null,null,null,null,null,null,null,null,null,null,null,null,null,null,null,null,null,null,null,null,null,null,null,null,null,null,null,null,null,null,null,null,null,null,null,null,null,null,null,null,null,null,null,null,null,null,null,null,null,null,null,null,null,null,null,null,null,null,null,null,null,null,null,null,null,null,null,null,null,null,null,null,null,"(a)",{"$f":"EQ53","v":0}]
[null,null,null,null,null,null,null,null,null,null,null,null,null,null,null,null,null,null,null,null,null,null,null,null,null,null,null,"個人番号",null,null,null,null,null,null,null,null,null,null,null,null,null,null,null,null,null,null,null,null,null,null,null,null,null,null,null,null,null,null,"控除額"]
[null,"共済等掛金控除",null,null,null,null,null,null,null,null,null,null,null,null,null,null,null,null,null,null,null,null,null,null,null,null,null,null,null,null,null,null,null,null,null,null,null,null,null,null,null,null,null,null,null,null,null,null,null,null,null,null,null,null,null,null,null,null,null,null,null,null,null,null,null,null,null,null,null,null,null,null,null,"寡婦、ひとり親控除",null,null,null,null,null,null,null,null,null,null,"⑰～"]
[null,null,null,null,null,null,null,null,null,null,null,null,null,null,null,null,null,null,null,null,null,null,null,null,null,null,null,null,null,null,null,null,null,null,null,null,null,null,null,null,null,null,null,null,null,null,null,null,null,null,null,null,null,null,null,null,null,null,null,null,null,null,null,null,null,null,null,null,null,null,null,null,null,null,null,null,null,null,null,null,null,null,null,null,null,null,null,null,null,null,null,null,null,null,null,null,null,null,null,null,null,null,null,null,null,null,null,null,null,null,null,null,null,null,"(a)の金額の合計額",null,null,null,null,null,"C",{"$f":"EQ167+EQ170","v":{"$error":"#REF!"}},null,null,null,null,null,null,null,null,null,null,null,null,null,null,null,null,"Cの金額を下の計算式I(新保険\n料等用)に当てはめて計算した金額",null,null,null,null,null,null,null,null,null,"㋺","(最高40,000円)",null,null,null,null,null,null,null,null,null,null,null,null,null,null,null,null,null,null,null,null,null,null,null,null,null,null,null,null,null,null,null,null,null,null,null,null,null,null,null,null,null,null,null,null,null,null,null,null,null,null,null,null,null,null,null,null,null,null,null,null,null,null,null,null,null,null,null,null,null,null,null,null,null,null,null,null,null,null,null,null,null,null,null,null,null,null,null,null,null,null,null,null,null,null,null,null,null,null,null,null,null,null,null,null,null,null,null,null,null,null,null,null,null,null,null,null,null,null,null,null,null,null,null,null,null,null,null,null,null,null,null,null,null,null,null,null,null,null,null,null,null,null,null,null,null,null,null,null,null,null,null,null,null,null,null,null,null,null,null,null,null,null,null,null,null,null,null,null,null,null,null,null,null,null,null,null,null,null,null,null,null,null,null,null,null,null,null,null,null,null,null,null,null,null,null,null,null,null,null,null,null,"業",null,"農　　業",null,null,null,null,"②"]
[null,"生命保険料控除",null,null,null,null,null,null,"⑭",{"$f":"IF(ET164+ET174+ET191>120000,120000,ET164+ET174+ET191)","v":{"$error":"#REF!"}},null,null,null,null,null,null,null,null,null,null,null,null,null,null,null,null,null,null,null,null,null,null,null,null,null,null,null,null,null,null,null,null,null,null,null,null,null,null,null,null,null,null,null,null,null,null,null,null,null,null,null,null,null,null,null,null,null,null,null,null,null,null,null,null,null,null,null,null,null,null,null,null,null,null,"⑱",null,null,null,null,null,null,null,null,null,null,null,null,null,null,null,null,null,null,null,null,null,null,null,null,null,null,null,null,null,null,null,null,null,null,null,null,null,null,null,null,null,null,null,null,null,null,null,null,null,null,null,null,null,null,null,null,null,null,null,null,null,null,null,null,{"$f":"IF(DR173<=20000,DR173,IF(DR173<=40000,ROUNDUP(DR173*0.5,0)+10000,IF(DR173<=80000,ROUNDUP(DR173*0.25,0)+20000,40000)))","v":{"$error":"#REF!"}}]
[]
[null,null,null,null,null,null,null,null,null,null,null,null,null,null,null,null,null,null,null,null,null,null,null,null,null,null,null,null,null,null,null,null,null,null,null,null,null,null,null,null,null,null,null,null,null,null,null,null,null,null,null,null,null,null,null,null,null,null,null,null,null,null,null,null,null,null,null,null,null,null,null,null,null,"勤労学生、\n障害者控除",null,null,null,null,null,null,null,null,null,null,"⑲～"]
[null,null,null,null,null,null,null,null,null,null,null,null,null,null,null,null,null,null,null,null,null,null,null,null,null,null,null,null,null,null,null,null,null,null,null,null,null,null,null,null,null,null,null,null,null,null,null,null,null,null,null,null,null,null,null,null,null,null,null,null,null,null,null,null,null,null,null,null,null,null,null,null,null,null,null,null,null,null,null,null,null,null,null,null,null,null,null,null,null,null,null,null,null,null,null,null,null,null,null,null,null,null,null,null,null,null,null,null,null,null,null,null,null,"個人年金保険料",null,null,null,null,null,null,null,null,null,null,null,null,null,null,null,null,null,null,null,null,null,null,null,null,null,null,null,null,{"$f":"EM60","v":"新"},null,null,"(a)",{"$f":"EQ60","v":0},null,null,null,null,null,null,null,null,null,null,null,null,null,null,null,null,{"$f":"IF(EM177=\"新\",1,IF(EM177=\"旧\",2,0))","v":1}]
[null,"地震保険料控除",null,null,null,null,null,null,"⑮",{"$f":"ES210","v":0},null,null,null,null,null,null,null,null,null,null,null,null,"16歳未満の扶養親族\n（控除対象外）",null,null,1,null,"フリガナ",null,null,null,null,null,null,null,null,null,null,null,null,null,null,null,"生年月日",null,"　平・令",null,null,null,"・　　　　・　　",null,null,null,null,null,"同居・\n別居の\n区分",null,null,"□同居\n□別居",null,null,null,"続柄",null,null,null,null,null,null,null,null,null,null,null,null,null,null,null,null,null,null,null,null,null,"⑳",null,null,null,null,null,null,null,null,null,null,null,null,null,null,null,null,null,null,null,null,null,null,null,null,null,null,null,null,null,null,null,null,null,null,null,null,null,null,null,null,null,null,null,null,null,null,null,null,null,null,null,null,null,null,null,null,null,null,null,null,null,null,null,null,null,null,null,null,null,null,null,null,null,null,null,null,null,null,null,null,null,null,null,null,null,null,null,null,null,null,null,null,null,null,null,null,null,null,null,null,null,null,null,null,null,null,null,null,null,null,null,null,null,null,null,null,null,null,null,null,null,null,null,null,null,null,null,null,null,null,null,null,null,null,null,null,null,null,null,null,null,null,null,null,null,null,null,null,null,null,null,null,null,null,null,null,null,null,null,null,null,null,null,null,null,null,null,null,null,null,null,null,null,null,null,null,null,null,null,null,null,null,null,null,null,null,null,null,null,null,null,null,null,null,null,null,null,null,null,null,null,null,null,null,null,null,null,null,null,null,null,null,null,null,null,null,null,null,null,null,null,null,null,null,null,null,null,null,null,null,null,null,null,null,null,null,null,null,null,null,null,null,null,null,null,null,null,null,null,null,null,null,null,null,null,null,null,null,null,null,null,null,null,null,null,null,"不動産",null,null,null,null,null,null,"③"]
[null,null,null,null,null,null,null,null,null,null,null,null,null,null,null,null,null,null,null,null,null,null,null,null,null,null,null,null,null,null,null,null,null,null,null,null,null,null,null,null,null,null,null,null,null,null,null,null,null,null,null,null,null,null,null,null,null,null,null,null,null,null,null,null,null,null,null,null,null,null,null,null,null,null,null,null,null,null,null,null,null,null,null,null,null,null,null,null,null,null,null,null,null,null,null,null,null,null,null,null,null,null,null,null,null,null,null,null,null,null,null,null,null,null,null,null,null,null,null,null,null,null,null,null,null,null,null,null,null,null,null,null,null,null,"支払開始日",null,null,"・   ・"]
[null,null,null,null,null,null,null,null,null,null,null,null,{"$f":"IF(AE147=\"\",0,IF(BD145=$DS$11,$EF$11,IF(BD145=$DS$12,$EF$12,IF(BD145=$DS$13,$EF$13,IF(BD145=$DS$14,$EF$14,0)))))","v":0},null,null,null,null,null,null,null,null,null,null,null,null,null,null,"氏名",null,null,null,null,null,null,null,null,null,null,null,null,null,null,null,null,null,null,null,null,null,null,null,null,null,null,null,null,null,null,null,null,null,null,null,null,null,null,null,null,null,null,null,null,null,"配偶者（特別）控除",null,null,null,null,null,null,null,null,null,null,"㉑～",null,null,null,null,null,null,null,null,null,null,null,null,null,null,null,null,null,null,null,null,null,null,null,null,null,null,null,null,null,null,null,null,null,null,null,null,null,null,null,null,null,null,null,null,null,null,null,null,null,null,null,null,null,null,null,null,null,{"$f":"EM63","v":"新"},null,null,"(a)",{"$f":"EQ63","v":0},null,null,null,null,null,null,null,null,null,null,null,null,null,null,null,null,{"$f":"IF(EM180=\"新\",1,IF(EM180=\"旧\",2,0))","v":1}]
[]
[null,"寡婦(寡夫)控除",null,null,null,null,null,null,"⑯",{"$f":"AN13+AP13+AR13","v":0},null,null,null,null,null,null,null,null,null,null,null,null,null,null,null,null,null,null,null,null,null,null,null,null,null,null,null,null,null,null,null,null,null,null,null,null,null,null,null,null,null,null,null,null,null,null,null,null,null,null,null,null,null,null,null,null,null,null,null,null,null,null,null,null,null,null,null,null,null,null,null,null,null,null,"㉒",null,null,null,null,null,null,null,null,null,null,null,null,null,null,null,null,null,null,null,null,null,null,null,null,null,null,null,null,null,null,null,null,null,null,null,null,null,null,null,null,null,null,null,null,null,null,null,null,null,"支払開始日",null,null,"・   ・",null,null,null,null,null,null,null,null,null,null,null,null,null,null,null,null,null,null,null,null,null,null,null,null,null,null,null,null,null,null,null,null,null,null,null,null,null,null,null,null,null,null,null,null,null,null,null,null,null,null,null,null,null,null,null,null,null,null,null,null,null,null,null,null,null,null,null,null,null,null,null,null,null,null,null,null,null,null,null,null,null,null,null,null,null,null,null,null,null,null,null,null,null,null,null,null,null,null,null,null,null,null,null,null,null,null,null,null,null,null,null,null,null,null,null,null,null,null,null,null,null,null,null,null,null,null,null,null,null,null,null,null,null,null,null,null,null,null,null,null,null,null,null,null,null,null,null,null,null,null,null,null,null,null,null,null,null,null,null,null,null,null,null,null,null,null,null,null,null,null,null,null,null,null,null,null,null,null,null,null,null,null,null,null,null,null,null,null,null,null,null,null,null,null,null,null,null,null,null,null,null,null,null,null,null,null,null,null,null,null,null,null,null,"利　　　子",null,null,null,null,null,null,"④"]
[null,null,null,null,null,null,null,null,null,null,null,null,null,null,null,null,null,null,null,null,null,null,null,null,null,null,null,null,null,null,null,null,null,null,null,null,null,null,null,null,null,null,null,null,null,null,null,null,null,null,null,null,null,null,null,null,null,null,null,null,null,null,null,null,null,null,null,null,null,null,null,null,null,null,null,null,null,null,null,null,null,null,null,null,null,null,null,null,null,null,null,null,null,null,null,null,null,null,null,null,null,null,null,null,null,null,null,null,null,null,null,null,null,null,null,null,null,null,null,null,null,null,null,null,null,null,null,null,null,null,null,null,null,null,null,null,null,null,null,null,null,null,{"$f":"EM66","v":"旧"},null,null,"(a)",{"$f":"EQ66","v":0},null,null,null,null,null,null,null,null,null,null,null,null,null,null,null,null,{"$f":"IF(EM183=\"新\",1,IF(EM183=\"旧\",2,0))","v":2}]
[null,null,null,null,null,null,null,null,null,null,null,null,null,null,null,null,null,null,null,null,null,null,null,null,null,null,null,"個人番号",null,null,null,null,null,null,null,null,null,null,null,null,null,null,null,null,null,null,null,null,null,null,null,null,null,null,null,null,null,null,null,null,null,null,null,null,null,null,null,null,null,null,null,null,null,"扶養控除",null,null,null,null,null,null,null,null,null,null,"㉓"]
[null,null,null,null,null,null,null,null,null,null,null,null,null,null,null,null,null,null,null,null,null,null,null,null,null,null,null,null,null,null,null,null,null,null,null,null,null,null,null,null,null,null,null,null,null,null,null,null,null,null,null,null,null,null,null,null,null,null,null,null,null,null,null,null,null,null,null,null,null,null,null,null,null,null,null,null,null,null,null,null,null,null,null,null,null,null,null,null,null,null,null,null,null,null,null,null,null,null,null,null,null,null,null,null,null,null,null,null,null,null,null,null,null,null,null,null,null,null,null,null,null,null,null,null,null,null,null,null,null,null,null,null,null,null,"支払開始日",null,null,"・   ・"]
[null,"勤労学生、\n障害者控除",null,null,null,null,null,null,"⑰～",{"$f":"AT13+M135+M149","v":0},null,null,null,null,null,null,null,null,null,null,null,null,null,null,null,null,null,null,null,null,null,null,null,null,null,null,null,null,null,null,null,null,null,null,null,null,null,null,null,null,null,null,null,null,null,null,null,null,null,null,null,null,null,null,null,null,null,null,null,null,null,null,null,null,null,null,null,null,null,null,null,null,null,null,null,null,null,null,null,null,null,null,null,null,null,null,null,null,null,null,null,null,null,null,null,null,null,null,null,null,null,null,null,null,"(a)のうち新保険料\n等の金額の合計額",null,null,null,null,null,"D",{"$f":"IF(FH177=1,EQ177,0)+IF(FH180=1,EQ180,0)+IF(FH183=1,EQ183,0)","v":0},null,null,null,"Dの金額を下の計算式I (新保険\n料等用)に当てはめて計算した金額",null,null,null,null,null,null,null,null,"④","(最高40,000円)",null,null,null,null,null,null,"計(④＋⑤)",null,null,null,null,null,"⑥","(最高40,000円)",null,null,null,null,null,null,null,null,null,null,null,null,null,null,null,null,null,null,null,null,null,null,null,null,null,null,null,null,null,null,null,null,null,null,null,null,null,null,null,null,null,null,null,null,null,null,null,null,null,null,null,null,null,null,null,null,null,null,null,null,null,null,null,null,null,null,null,null,null,null,null,null,null,null,null,null,null,null,null,null,null,null,null,null,null,null,null,null,null,null,null,null,null,null,null,null,null,null,null,null,null,null,null,null,null,null,null,null,null,null,null,null,null,null,null,null,null,null,null,null,null,null,null,null,null,null,null,null,null,null,null,null,null,null,null,null,null,null,null,null,null,null,null,null,null,null,null,null,null,null,null,null,null,null,null,null,null,null,null,null,null,null,null,null,null,null,null,null,null,null,null,null,null,null,null,null,null,null,null,null,null,null,null,null,null,null,null,null,null,null,null,null,null,null,null,null,null,null,null,null,null,"配　　　当",null,null,null,null,null,null,"⑤"]
[null,null,null,null,null,null,null,null,null,null,null,null,null,null,null,null,null,null,null,null,null,null,null,null,null,null,null,null,null,null,null,null,null,null,null,null,null,null,null,null,null,null,null,null,null,null,null,null,null,null,null,null,null,null,null,null,null,null,null,null,null,null,null,null,null,null,null,null,null,null,null,null,null,null,null,null,null,null,null,null,null,null,null,null,null,null,null,null,null,null,null,null,null,null,null,null,null,null,null,null,null,null,null,null,null,null,null,null,null,null,null,null,null,null,null,null,null,null,null,null,null,null,null,null,null,null,null,null,null,null,null,null,null,null,null,{"$f":"IF(DR186<=20000,DR186,IF(DR186<=40000,ROUNDUP(DR186*0.5,0)+10000,IF(DR186<=80000,ROUNDUP(DR186*0.25,0)+20000,40000)))","v":0},null,null,null,null,null,null,null,null,null,null,null,null,null,{"$f":"IF((EF187+EF191)<=40000,(EF187+EF191),40000)","v":0}]
[null,null,null,null,null,null,null,null,"⑱",null,null,null,null,null,null,null,null,null,null,null,null,null,null,null,null,2,null,"フリガナ",null,null,null,null,null,null,null,null,null,null,null,null,null,null,null,"生年月日",null,"　平・令",null,null,null,"・　　　　・　　",null,null,null,null,null,"同居・\n別居の\n区分",null,null,"□同居\n□別居",null,null,null,"続柄",null,null,null,null,null,null,null,null,null,null,"基礎控除",null,null,null,null,null,null,null,null,null,null,"㉔"]
[]
[null,"配偶者控除",null,null,null,null,null,null,"⑲",{"$f":"IF(AJ127=\"\",0,IF(BH127<380001,380000,\"\"))","v":0},null,null,{"$f":"IF(AE157=\"\",0,IF(BD155=$DS$11,$EF$11,IF(BD155=$DS$12,$EF$12,IF(BD155=$DS$13,$EF$13,IF(BD155=$DS$14,$EF$14,0)))))","v":0},null,null,null,null,null,null,null,null,null,null,null,null,null,null,"氏名",null,null,null,null,null,null,null,null,null,null,null,null,null,null,null,null,null,null,null,null,null,null,null,null,null,null,null,null,null,null,null,null,null,null,null,null,null,null,null,null,null,null,null,null,null,null,null,null,null,null,null,null,null,null,null,null,null,null,null,null,null,null,null,null,null,null,null,null,null,null,null,null,null,null,null,null,null,null,null,null,null,null,null,null,null,null,"(a)のうち旧保険料\n等の金額の合計額",null,null,null,null,null,"E",{"$f":"IF(FH177=2,EQ177,0)+IF(FH180=2,EQ180,0)+IF(FH183=2,EQ183,0)","v":0},null,null,null,"Eの金額を下の計算式II (旧保険\n料等用)に当てはめて計算した金額",null,null,null,null,null,null,null,null,"⑤","(最高50,000円)",null,null,null,null,null,null,"⑤と⑥のいずれか\n大きい金額",null,null,null,null,null,"㋩",null,null,null,null,null,null,null,null,null,null,null,null,null,null,null,null,null,null,null,null,null,null,null,null,null,null,null,null,null,null,null,null,null,null,null,null,null,null,null,null,null,null,null,null,null,null,null,null,null,null,null,null,null,null,null,null,null,null,null,null,null,null,null,null,null,null,null,null,null,null,null,null,null,null,null,null,null,null,null,null,null,null,null,null,null,null,null,null,null,null,null,null,null,null,null,null,null,null,null,null,null,null,null,null,null,null,null,null,null,null,null,null,null,null,null,null,null,null,null,null,null,null,null,null,null,null,null,null,null,null,null,null,null,null,null,null,null,null,null,null,null,null,null,null,null,null,null,null,null,null,null,null,null,null,null,null,null,null,null,null,null,null,null,null,null,null,null,null,null,null,null,null,null,null,null,null,null,null,null,null,null,null,null,null,null,null,null,null,null,null,null,null,null,null,null,null,null,null,null,null,null,null,"給　　　与",null,null,null,null,null,null,"⑥",{"$f":"PN331","v":0}]
[null,null,null,null,null,null,null,null,null,null,null,null,null,null,null,null,null,null,null,null,null,null,null,null,null,null,null,null,null,null,null,null,null,null,null,null,null,null,null,null,null,null,null,null,null,null,null,null,null,null,null,null,null,null,null,null,null,null,null,null,null,null,null,null,null,null,null,null,null,null,null,null,null,null,null,null,null,null,null,null,null,null,null,null,null,null,null,null,null,null,null,null,null,null,null,null,null,null,null,null,null,null,null,null,null,null,null,null,null,null,null,null,null,null,null,null,null,null,null,null,null,null,null,null,null,null,null,null,null,null,null,null,null,null,null,{"$f":"IF(DR190<=25000,DR190,IF(DR190<=50000,ROUNDUP(DR190*0.5,0)+12500,IF(DR190<=100000,ROUNDUP(DR190*0.25,0)+25000,50000)))","v":0},null,null,null,null,null,null,null,null,null,null,null,null,null,{"$f":"IF(ET187<EF191,EF191,ET187)","v":0}]
[null,null,null,null,null,null,null,null,null,null,null,null,null,null,null,null,null,null,null,null,null,null,null,null,null,null,null,null,null,null,null,null,null,null,null,null,null,null,null,null,null,null,null,null,null,null,null,null,null,null,null,null,null,null,null,null,null,null,null,null,null,null,null,null,null,null,null,null,null,null,null,null,null,"⑬から㉔までの計",null,null,null,null,null,null,null,null,null,null,"㉕"]
[]
[null,"配偶者特別控除",null,null,null,null,null,null,"⑳",{"$f":"IF(BH127<380000,0,IF(BH127<400000,380000,IF(BH127<450000,360000,IF(BH127<500000,310000,IF(BH127<550000,260000,IF(BH127<600000,210000,IF(BH127<650000,160000,IF(BH127<700000,110000,IF(BH127<750000,60000,IF(BH127<760000,30000,0))))))))))","v":0},null,null,null,null,null,null,null,null,null,null,null,null,null,null,null,null,null,"個人番号",null,null,null,null,null,null,null,null,null,null,null,null,null,null,null,null,null,null,null,null,null,null,null,null,null,null,null,null,null,null,null,null,null,null,null,null,null,null,null,null,null,null,null,null,null,null,null,null,null,null,null,null,null,null,null,null,null,null,null,null,null,null,null,null,null,null,null,null,null,null,null,null,null,null,null,null,null,null,null,null,null,null,null,null,null,"地震保険料控除","保険会社等の名称",null,null,null,null,null,"保険等の\n種類(目的)",null,null,null,null,null,"保険\n期間",null,"保険等の\n契約者の氏名",null,null,null,null,null,null,"保険等の対象となった",null,null,null,null,null,null,null,"地震保険料\n又は旧長期\n損害保険料\nの区分",null,null,null,null,"あなたが本年中に支払った\n保険料等のうち、左欄の区\n分に係る金額(分配を受けた\n剰余金等の控除後の金額㋥",null,null,null,null,null,null,"給与の\n支払者の\n確認印",null,null,null,null,null,null,null,null,null,null,null,null,null,null,null,null,null,null,null,null,null,null,null,null,null,null,null,null,null,null,null,null,null,null,null,null,null,null,null,null,null,null,null,null,null,null,null,null,null,null,null,null,null,null,null,null,null,null,null,null,null,null,null,null,null,null,null,null,null,null,null,null,null,null,null,null,null,null,null,null,null,null,null,null,null,null,null,null,null,null,null,null,null,null,null,null,null,null,null,null,null,null,null,null,null,null,null,null,null,null,null,null,null,null,null,null,null,null,null,null,null,null,null,null,null,null,null,null,null,null,null,null,null,null,null,null,null,null,null,null,null,null,null,null,null,null,null,null,null,null,null,null,null,null,null,null,null,null,null,null,null,null,null,null,null,null,null,null,null,null,null,null,null,null,null,null,null,null,null,null,null,null,null,null,null,null,null,null,null,null,null,null,null,null,null,"雑",null,null,null,"年金",null,null,"⑦",{"$f":"IF(MV146=\"\",0,NP179+ME384-MQ384)","v":0}]
[]
[null,null,null,null,null,null,null,null,null,null,null,null,null,null,null,null,null,null,null,null,null,null,null,null,null,null,null,null,null,null,null,null,null,null,null,null,null,null,null,null,null,null,null,null,null,null,null,null,null,null,null,null,null,null,null,null,null,null,null,null,null,null,null,null,null,null,null,null,null,null,null,null,null,"雑損控除",null,null,null,null,null,null,null,null,null,null,"㉖",null,null,null,null,null,null,null,null,null,null,null,null,null,null,null,null,null,null,null,null,null,null,null,null,null,null,null,null,null,null,null,null,null,null,null,null,null,null,null,null,null,null,null,null,null,null,null,null,null,null,"家屋等に居住又は\n家財を利用している\n者等の氏名",null,null,null,null,null,"あなた\nとの\n続柄",null,null,null,null,null,null,null,null,null,null,null,null,null,null,null,null,null,null,null,null,null,null,null,null,null,null,null,null,null,null,null,null,null,null,null,null,null,null,null,null,null,null,null,null,null,null,null,null,null,null,null,null,null,null,null,null,null,null,null,null,null,null,null,null,null,null,null,null,null,null,null,null,null,null,null,null,null,null,null,null,null,null,null,null,null,null,null,null,null,null,null,null,null,null,null,null,null,null,null,null,null,null,null,null,null,null,null,null,null,null,null,null,null,null,null,null,null,null,null,null,null,null,null,null,null,null,null,null,null,null,null,null,null,null,null,null,null,null,null,null,null,null,null,null,null,null,null,null,null,null,null,null,null,null,null,null,null,null,null,null,null,null,null,null,null,null,null,null,null,null,null,null,null,null,null,null,null,null,null,null,null,null,null,null,null,null,null,null,null,null,null,null,null,null,null,null,null,null,null,null,null,null,null,null,null,null,null,null,null,null,null,null,null,"シルバー",null,null,null,{"$f":"IF(MZ165-MZ211<=0,0,MZ165-MZ211)","v":0}]
[]
[null,"扶養控除",null,null,null,null,null,null,"㉑",{"$f":"M170+M180+M190+M200","v":0},null,null,null,null,null,null,null,null,null,null,null,null,null,null,null,3,null,"フリガナ",null,null,null,null,null,null,null,null,null,null,null,null,null,null,null,"生年月日",null,"　平・令",null,null,null,"・　　　　・　　",null,null,null,null,null,"同居・\n別居の\n区分",null,null,"□同居\n□別居",null,null,null,"続柄",null,null,null,null,null,null,null,null,null,null,null,null,null,null,null,null,null,null,null,null,null,null,null,null,null,null,null,null,null,null,null,null,null,null,null,null,null,null,null,null,null,null,null,null,null,null,null,null,null,null,null,null,null,null,null,null,null,null,null,null,null,null,null,null,null,null,null,null,null,null,null,null,null,null,null,null,null,null,null,null,null,null,null,null,null,null,null,null,null,null,null,null,null,null,null,null,null,null,null,null,null,null,null,null,null,null,null,null,null,null,null,null,null,null,null,null,null,null,null,null,null,null,null,null,null,null,null,null,null,null,null,null,null,null,null,null,null,null,null,null,null,null,null,null,null,null,null,null,null,null,null,null,null,null,null,null,null,null,null,null,null,null,null,null,null,null,null,null,null,null,null,null,null,null,null,null,null,null,null,null,null,null,null,null,null,null,null,null,null,null,null,null,null,null,null,null,null,null,null,null,null,null,null,null,null,null,null,null,null,null,null,null,null,null,null,null,null,null,null,null,null,null,null,null,null,null,null,null,null,null,null,null,null,null,null,null,null,null,null,null,null,null,null,null,null,null,null,null,null,null,null,null,null,null,null,null,null,null,null,null,null,null,null,null,null,null,null,null,null,null,null,null,null,null,null,null,null,null,null,null,null,null,null,null,null,null,null,null,"総合譲渡・一時",null,null,null,null,null,null,"⑧",{"$f":"MR419","v":0}]
[]
[null,null,null,null,null,null,null,null,null,null,null,null,{"$f":"IF(AE167=\"\",0,IF(BD165=$DS$11,$EF$11,IF(BD165=$DS$12,$EF$12,IF(BD165=$DS$13,$EF$13,IF(BD165=$DS$14,$EF$14,0)))))","v":0},null,null,null,null,null,null,null,null,null,null,null,null,null,null,"氏名",null,null,null,null,null,null,null,null,null,null,null,null,null,null,null,null,null,null,null,null,null,null,null,null,null,null,null,null,null,null,null,null,null,null,null,null,null,null,null,null,null,null,null,null,null,"医療費控除",null,null,null,null,null,null,null,"区分",{"$f":"IF(DB89=\"はい\",1,\"\")","v":""},null,"㉗",null,null,null,null,null,null,null,null,null,null,null,null,null,null,null,null,null,null,null,null,null,null,null,null,null,null,null,null,null,null,null,null,null,null,null,null,null,null,null,null,null,null,null,null,null,null,null,null,null,null,null,null,null,null,null,null,null,null,{"$f":"EN87","v":"地震"},null,null,null,null,{"$f":"ES87","v":0},null,null,null,null,null,null,null,null,null,null,null,null,null,null,{"$f":"IF(EN200=\"地震\",1,IF(EN200=\"旧長期\",2,0))","v":1}]
[]
[null,"基礎控除",null,null,null,null,null,null,"㉒",380000,null,null,null,null,null,null,null,null,null,null,null,null,null,null,null,null,null,null,null,null,null,null,null,null,null,null,null,null,null,null,null,null,null,null,null,null,null,null,null,null,null,null,null,null,null,null,null,null,null,null,null,null,null,null,null,null,null,null,null,null,null,null,null,null,null,null,null,null,null,null,null,null,null,null,null,null,null,null,null,null,null,null,null,null,null,null,null,null,null,null,null,null,null,null,null,null,null,null,null,null,null,null,null,null,null,null,null,null,null,null,null,null,null,null,null,null,null,null,null,null,null,null,null,null,null,null,null,null,null,null,null,null,null,null,null,null,null,null,null,null,null,null,null,null,null,null,null,null,null,null,null,null,null,null,null,null,null,null,null,null,null,null,null,null,null,null,null,null,null,null,null,null,null,null,null,null,null,null,null,null,null,null,null,null,null,null,null,null,null,null,null,null,null,null,null,null,null,null,null,null,null,null,null,null,null,null,null,null,null,null,null,null,null,null,null,null,null,null,null,null,null,null,null,null,null,null,null,null,null,null,null,null,null,null,null,null,null,null,null,null,null,null,null,null,null,null,null,null,null,null,null,null,null,null,null,null,null,null,null,null,null,null,null,null,null,null,null,null,null,null,null,null,null,null,null,null,null,null,null,null,null,null,null,null,null,null,null,null,null,null,null,null,null,null,null,null,null,null,null,null,null,null,null,null,null,null,null,null,null,null,null,null,null,null,null,null,null,null,null,null,null,null,null,null,null,null,null,null,null,null,null,null,null,null,null,null,null,null,null,null,null,"合　　　計",null,null,null,null,null,null,"⑨",{"$f":"SUM(MV169:MX201)","v":0}]
[null,null,null,null,null,null,null,null,null,null,null,null,null,null,null,null,null,null,null,null,null,null,null,null,null,null,null,null,null,null,null,null,null,null,null,null,null,null,null,null,null,null,null,null,null,null,null,null,null,null,null,null,null,null,null,null,null,null,null,null,null,null,null,null,null,null,null,null,null,null,null,null,null,null,null,null,null,null,null,null,null,null,null,null,null,null,null,null,null,null,null,null,null,null,null,null,null,null,null,null,null,null,null,null,null,null,null,null,null,null,null,null,null,null,null,null,null,null,null,null,null,null,null,null,null,null,null,null,null,null,null,null,null,null,null,null,null,null,null,null,null,null,null,{"$f":"EN90","v":"旧長期"},null,null,null,null,{"$f":"ES90","v":0},null,null,null,null,null,null,null,null,null,null,null,null,null,null,{"$f":"IF(EN203=\"地震\",1,IF(EN203=\"旧長期\",2,0))","v":2}]
[null,null,null,null,null,null,null,null,null,null,null,null,null,null,null,null,null,null,null,null,null,null,null,null,null,null,null,"個人番号",null,null,null,null,null,null,null,null,null,null,null,null,null,null,null,null,null,null,null,null,null,null,null,null,null,null,null,null,null,null,null,null,null,null,null,null,null,null,null,null,null,null,null,null,null,"合計\n（㉕+㉖+㉗）",null,null,null,null,null,null,null,null,null,null,"㉘"]
[]
[null,"合計",null,null,null,null,null,null,"㉓",{"$f":"SUM(J158:L205)","v":{"$error":"#REF!"}},null,null,null,null,null,null,null,null,null,null,null,null,null,null,null,null,null,null,null,null,null,null,null,null,null,null,null,null,null,null,null,null,null,null,null,null,null,null,null,null,null,null,null,null,null,null,null,null,null,null,null,null,null,null,null,null,null,null,null,null,null,null,null,null,null,null,null,null,null,null,null,null,null,null,null,null,null,null,null,null,null,null,null,null,null,null,null,null,null,null,null,null,null,null,null,null,null,null,null,null,null,null,null,null,"㋥のうち地震保険料の金額の合計額",null,null,null,null,null,null,null,null,null,null,null,null,"㋭",{"$f":"IF(FH200=1,ES200,0)+IF(FH203=1,ES203,0)","v":0},null,null,null,null,null,null,"㋥のうち旧長期損害保険料の金額の合計額",null,null,null,null,null,null,null,null,null,null,null,null,null,null,"㋬",{"$f":"IF(FH200=2,ES200,0)+IF(FH203=2,ES203,0)","v":0}]
[null,null,null,null,null,null,null,null,null,null,null,null,null,null,null,null,null,null,null,null,null,null,null,null,null,null,null,null,null,null,null,null,null,null,null,null,null,null,null,null,null,null,null,null,null,null,null,null,null,null,null,null,null,null,null,null,null,null,null,null,null,null,null,null,null,null,null,null,null,null,null,null,null,null,null,null,null,null,null,null,null,null,null,null,null,null,null,null,null,null,null,null,null,null,null,null,null,null,null,null,null,null,null,null,null,null,null,null,null,null,null,null,null,null,null,null,null,null,null,null,null,null,null,null,null,null,null,null,null,null,null,null,null,null,null,null,null,null,null,null,null,null,null,null,null,null,null,null,null,null,null,null,null,null,null,null,null,null,null,null,null,null,null,null,null,null,null,null,null,null,null,null,null,null,null,null,null,null,null,null,null,null,null,null,null,null,null,null,null,null,null,null,null,null,null,null,null,null,null,null,null,null,null,null,null,null,null,null,null,null,null,null,null,null,null,null,null,null,null,null,null,null,null,null,null,null,null,null,null,null,null,null,null,null,null,null,null,null,null,null,null,null,null,null,null,null,null,null,null,null,null,null,null,null,null,null,null,null,null,null,null,null,null,null,null,null,null,null,null,null,null,null,null,null,null,null,null,null,null,null,null,null,null,null,null,null,null,null,null,null,null,null,null,null,null,null,null,null,null,null,null,null,null,null,null,null,null,null,null,null,null,null,null,null,null,null,null,null,null,null,null,null,null,null,null,null,null,null,null,null,null,null,null,null,null,null,null,null,null,null,null,null,null,null,null,null,null,null,null,null,null,"雑損控除",null,null,null,null,null,null,"⑩"]
[null,null,null,null,null,null,null,null,null,null,null,null,null,null,null,null,null,null,null,null,null,null,"　　別居の扶養親族等がいる場合には、裏面「１２」に",null,null,null,null,null,null,null,null,null,null,null,null,null,null,null,null,null,null,null,null,null,null,null,null,null,null,null,null,null,"扶養控除\n額の合計",null,null,null,null,null,null,null,null,null,null,null,null,null,null,null,null,null,"地方税法附則第4条の4の規定の適用を選択する場合には、"]
[null,null,null,null,null,null,null,null,null,null,null,null,null,null,null,null,null,null,null,null,null,null,null,null,null,null,null,null,null,null,null,null,null,null,null,null,null,null,null,null,null,null,null,null,null,null,null,null,null,null,null,null,null,null,null,null,null,null,null,null,null,null,null,null,null,null,null,null,null,null,null,null,null,null,null,null,null,null,null,null,null,null,null,null,null,null,null,null,null,null,null,null,null,null,null,null,null,null,null,null,null,null,null,null,null,null,null,null,null,null,null,null,null,null,"地震保険料\n控 除 額",null,null,null,null,"〔","㋭の金額",null,null,"(最高50,000円)",null,null,null,null,"〕","＋","〔","㋬の金額(㋬の金額が\n10,000円を超える場合は、\n㋬×1/2+5,000円)※",null,null,null,null,null,null,null,null,null,"(最高15,000円)",null,null,null,null,"〕","＝","(最高50,000円)"]
[null,null,null,null,null,null,null,null,null,null,null,null,null,null,null,null,null,null,null,null,null,null,"　  氏名、個人番号及び住所を記入してください。",null,null,null,null,null,null,null,null,null,null,null,null,null,null,null,null,null,null,null,null,null,null,null,null,null,null,null,null,null,null,null,null,null,null,null,null,null,null,null,null,null,null,null,null,null,null,null,"「医療費控除」欄の「区分」の□に「1」と記入してください。",null,null,null,null,null,null,null,null,null,null,null,null,null,null,null,null,null,null,null,null,null,null,null,null,null,null,null,null,null,null,null,null,null,null,null,null,null,null,null,null,null,null,null,null,null,null,null,null,null,null,null,null,{"$f":"IF(DY206<=50000,DY206,50000)","v":0},null,null,null,null,null,null,null,null,null,null,null,null,null,null,null,null,null,{"$f":"IF(IF(EV206<=10000,EV206,ROUNDUP(EV206*0.5,0)+5000)<=15000,IF(EV206<=10000,EV206,ROUNDUP(EV206*0.5,0)+5000),15000)","v":0},null,null,null,null,null,null,{"$f":"DT210+EL210","v":0}]
[null,null,null,null,null,null,null,null,null,null,null,null,null,null,null,null,null,null,null,null,null,null,null,null,null,null,null,null,null,null,null,null,null,null,null,null,null,null,null,null,null,null,null,null,null,null,null,null,null,null,null,null,null,null,null,null,null,null,null,null,null,null,null,null,null,null,null,null,null,null,null,null,null,null,null,null,null,null,null,null,null,null,null,null,null,null,null,null,null,null,null,null,null,null,null,null,null,null,null,null,null,null,null,null,null,null,null,null,null,null,null,null,null,null,null,null,null,null,null,null,null,null,null,null,null,null,null,null,null,null,null,null,null,null,null,null,null,null,null,null,null,null,null,null,null,null,null,null,null,null,null,null,null,null,null,null,null,null,null,null,null,null,null,null,null,null,null,null,null,null,null,null,null,null,null,null,null,null,null,null,null,null,null,null,null,null,null,null,null,null,null,null,null,null,null,null,null,null,null,null,null,null,null,null,null,null,null,null,null,null,null,null,null,null,null,null,null,null,null,null,null,null,null,null,null,null,null,null,null,null,null,null,null,null,null,null,null,null,null,null,null,null,null,null,null,null,null,null,null,null,null,null,null,null,null,null,null,null,null,null,null,null,null,null,null,null,null,null,null,null,null,null,null,null,null,null,null,null,null,null,null,null,null,null,null,null,null,null,null,null,null,null,null,null,null,null,null,null,null,null,null,null,null,null,null,null,null,null,null,null,null,null,null,null,null,null,null,null,null,null,null,null,null,null,null,null,null,null,null,null,null,null,null,null,null,null,null,null,null,null,null,null,null,null,null,null,null,null,null,null,null,"医療費控除",null,null,null,null,null,null,"⑪",{"$f":"MZ151","v":0}]
[]
[null,null,null,null,null,null,null,null,null,null,null,null,null,null,null,null,null,null,null,null,null,null,null,null,null,null,null,null,null,null,null,null,null,null,null,null,null,null,null,null,null,null,null,null,null,null,null,null,null,null,null,null,null,null,null,null,null,null,null,null,null,null,null,null,null,null,null,null,null,null,{"$f":"\"５　給与・公的年金等に係る所得以外（令和\"&AM23&\"年4月1日\"","v":"５　給与・公的年金等に係る所得以外（令和5年4月1日"}]
[]
[null,null,null,null,null,null,"課税される所得金額",null,null,{"$f":"ROUNDDOWN(J153-J206,-3)","v":{"$error":"#REF!"}},null,null,null,null,null,null,null,null,null,null,null,null,null,null,null,null,null,null,null,null,null,null,null,null,null,null,null,null,null,null,null,null,null,null,null,null,null,null,null,null,null,null,null,null,null,null,null,null,null,null,null,null,null,null,null,null,null,null,null,null,"　　において65歳未満の方は給与所得以外）の市民税・",null,null,null,null,null,null,null,null,null,null,null,null,null,null,null,null,null,null,null,null,null,null,null,null,null,null,null,null,null,null,null,null,null,null,null,null,null,null,null,null,null,null,null,null,null,null,null,null,null,null,null,null,null,null,null,null,null,null,null,null,null,null,null,null,null,null,null,null,null,null,null,null,null,null,null,null,null,null,null,null,null,null,null,null,null,null,null,null,null,null,null,null,null,null,null,null,null,null,null,null,null,null,null,null,null,null,null,null,null,null,null,null,null,null,null,null,null,null,null,null,null,null,null,null,null,null,null,null,null,null,null,null,null,null,null,null,null,null,null,null,null,null,null,null,null,null,null,null,null,null,null,null,null,null,null,null,null,null,null,null,null,null,null,null,null,null,null,null,null,null,null,null,null,null,null,null,null,null,null,null,null,null,null,null,null,null,null,null,null,null,null,null,null,null,null,null,null,null,null,null,null,null,null,null,null,null,null,null,null,null,null,null,null,null,null,null,null,null,null,null,null,null,null,null,null,null,null,null,null,null,null,null,null,null,null,null,null,null,null,null,null,null,null,null,null,null,null,null,null,null,null,null,null,null,null,null,null,null,null,null,null,null,null,null,null,null,null,null,null,null,null,null,null,null,null,null,null,null,null,null,"社会保険料控除",null,null,null,null,null,null,"⑫",{"$f":"LR148","v":0}]
[]
[null,null,null,null,null,null,null,null,null,null,null,null,null,null,null,null,null,null,null,null,null,null,"　㉖",null,null,null,null,null,null,null,"損 害 の 原 因",null,null,null,null,null,null,null,null,null,null,null,"損害年月日",null,null,null,null,null,null,null,null,null,null,null,"損害を受けた資産の種類",null,null,null,null,null,null,null,null,null,null,null,null,null,null,null,"　　県民税の納税方法"]
[null,null,null,null,null,null,"上記に対する税額",null,null,{"$f":"C253","v":{"$error":"#REF!"}}]
[null,null,null,null,null,null,null,null,null,null,null,null,null,null,null,null,null,null,null,null,null,null,null,null,null,null,null,null,null,null,null,null,null,null,null,null,null,null,null,null,null,null,"・　　・",null,null,null,null,null,null,null,null,null,null,null,null,null,null,null,null,null,null,null,null,null,null,null,null,null,null,null,"　　□　給与から差引き（特別徴収）",null,null,null,null,null,null,null,null,null,null,null,null,null,null,null,null,null,null,null,null,null,null,null,null,null,null,null,null,null,null,null,null,null,null,null,null,null,null,null,null,null,null,null,null,null,null,null,null,null,null,null,null,null,null,null,null,null,null,null,null,null,null,null,null,null,null,null,null,null,null,null,null,null,null,null,null,null,null,null,null,null,null,null,null,null,null,null,null,null,null,null,null,null,null,null,null,null,null,null,null,null,null,null,null,null,null,null,null,null,null,null,null,null,null,null,null,null,null,null,null,null,null,null,null,null,null,null,null,null,null,null,null,null,null,null,null,null,null,null,null,null,null,null,null,null,null,null,null,null,null,null,null,null,null,null,null,null,null,null,null,null,null,null,null,null,null,null,null,null,null,null,null,null,null,null,null,null,null,null,null,null,null,null,null,null,null,null,null,null,null,null,null,null,null,null,null,null,null,null,null,null,null,null,null,null,null,null,null,null,null,null,null,null,null,null,null,null,null,null,null,null,null,null,null,null,null,null,null,null,null,null,null,null,null,null,null,null,null,null,null,null,null,null,null,null,null,null,null,null,null,null,null,null,null,null,null,null,null,null,null,null,null,null,null,null,null,null,null,null,null,null,null,null,null,null,null,null,null,null,null,"小規模企業",null,null,null,null,null,null,"⑬",240000]
[]
[null,null,null,null,null,null,"配当控除",null,null,null,null,null,null,null,null,null,null,null,null,null,null,null,"雑 損 控 除 ",null,null,null,null,null,null,null,null,null,null,null,null,null,null,null,null,null,null,null,null,null,null,null,null,null,null,null,null,null,null,null,null,null,null,null,null,null,null,null,null,null,null,null,null,null,null,null,null,null,null,null,null,null,null,null,null,null,null,null,null,null,null,null,null,null,null,null,null,null,null,null,null,null,null,null,null,null,null,null,null,null,null,null,null,null,null,null,null,null,null,null,null,null,null,null,null,null,null,null,null,null,null,null,null,null,null,null,null,null,null,null,null,null,null,null,null,null,null,null,null,null,null,null,null,null,null,null,null,null,null,null,null,null,null,null,null,null,null,null,null,null,null,null,null,null,null,null,null,null,null,null,null,null,null,null,null,null,null,null,null,null,null,null,null,null,null,null,null,null,null,null,null,null,null,null,null,null,null,null,null,null,null,null,null,null,null,null,null,null,null,null,null,null,null,null,null,null,null,null,null,null,null,null,null,null,null,null,null,null,null,null,null,null,null,null,null,null,null,null,null,null,null,null,null,null,null,null,null,null,null,null,null,null,null,null,null,null,null,null,null,null,null,null,null,null,null,null,null,null,null,null,null,null,null,null,null,null,null,null,null,null,null,null,null,null,null,null,null,null,null,null,null,null,null,null,null,null,null,null,null,null,null,null,null,null,null,null,null,null,null,null,null,null,null,null,null,null,null,null,null,null,null,null,null,null,null,null,null,null,null,null,null,null,null,null,null,null,null,null,null,null,null,null,null,null,null,null,null,"共済等掛金控除"]
[null,null,null,null,null,null,null,null,null,null,null,null,null,null,null,null,null,null,null,null,null,null,null,null,null,null,null,null,null,null,"損  害  金  額",null,null,null,null,null,null,null,null,null,null,null,"保険金などで補填される金額",null,null,null,null,null,null,null,null,null,null,null,"差引損失額のうち災害関連支出の金額",null,null,null,null,null,null,null,null,null,null,null,null,null,null,null,"　　□　自分で納付（普通徴収）"]
[null,null,null,null,null,null,null,null,null,null,null,null,null,null,null,null,null,null,null,null,null,null,null,null,null,null,null,null,null,null,null,null,null,null,null,null,null,null,null,null,null,null,null,null,null,null,null,null,null,null,null,null,null,null,null,null,null,null,null,null,null,null,null,null,null,null,null,null,null,null,null,null,null,null,null,null,null,null,null,null,null,null,null,null,null,null,null,null,null,null,null,null,null,null,null,null,null,null,null,null,null,null,null,null,null,null,null,null,null,null,null,null,null,null,null,null,null,null,null,null,null,null,null,null,null,null,null,null,null,null,null,null,null,null,null,null,null,null,null,null,null,null,null,null,null,null,null,null,null,null,null,null,null,null,null,null,null,null,null,null,null,null,null,null,null,null,null,null,null,null,null,null,null,null,null,null,null,null,null,null,null,null,null,null,null,null,null,null,null,null,null,null,null,null,null,null,null,null,null,null,null,null,null,null,null,null,null,null,null,null,null,null,null,null,null,null,null,null,null,null,null,null,null,null,null,null,null,null,null,null,null,null,null,null,null,null,null,null,null,null,null,null,null,null,null,null,null,null,null,null,null,null,null,null,null,null,null,null,null,null,null,null,null,null,null,null,null,null,null,null,null,null,null,null,null,null,null,null,null,null,null,null,null,null,null,null,null,null,null,null,null,null,null,null,null,null,null,null,null,null,null,null,null,null,null,null,null,null,null,null,null,null,null,null,null,null,null,null,null,null,null,null,null,null,null,null,null,null,null,null,null,null,null,null,null,null,null,null,null,null,null,null,null,null,null,null,null,null,null,null,null,"生命保険料控除",null,null,null,null,null,null,"⑭",{"$f":"IF(OU102+OU112+OU137>70000,70000,OU102+OU137+OU112)","v":0}]
[null,null,null,null,null,null,"寄付金控除",null,null,null,null,null,null,null,null,null,null,null,null,null,null,null,null,null,null,null,null,null,null,null,"円",null,null,null,null,null,null,null,null,null,null,null,"円",null,null,null,null,null,null,null,null,null,null,null,"円"]
[]
[null,null,null,null,null,null,null,null,null,null,null,null,null,null,null,null,null,null,null,null,null,null,null,null,null,null,null,null,null,null,null,null,null,null,null,null,null,null,null,null,null,null,null,null,null,null,null,null,null,null,null,null,null,null,null,null,null,null,null,null,null,null,null,null,null,null,null,null,null,null,"「個人番号」欄には、個人番号（行政手続における特定の個人"]
[null,null,null,null,null,null,"基準所得税額",null,null,{"$f":"J218-J221-J224","v":{"$error":"#REF!"}},null,null,null,null,null,null,null,null,null,null,null,null,"　㉗",null,null,null,null,null,null,null,"支 払 っ た 医 療 費",null,null,null,null,null,null,null,null,null,null,null,null,null,null,null,null,null,null,"保険金などで補填される金額",null,null,null,null,null,null,null,null,null,null,null,null,null,null,null,null,null,null,null,null,null,null,null,null,null,null,null,null,null,null,null,null,null,null,null,null,null,null,null,null,null,null,null,null,null,null,null,null,null,null,null,null,null,null,null,null,null,null,null,null,null,null,null,null,null,null,null,null,null,null,null,null,null,null,null,null,null,null,null,null,null,null,null,null,null,null,null,null,null,null,null,null,null,null,null,null,null,null,null,null,null,null,null,null,null,null,null,null,null,null,null,null,null,null,null,null,null,null,null,null,null,null,null,null,null,null,null,null,null,null,null,null,null,null,null,null,null,null,null,null,null,null,null,null,null,null,null,null,null,null,null,null,null,null,null,null,null,null,null,null,null,null,null,null,null,null,null,null,null,null,null,null,null,null,null,null,null,null,null,null,null,null,null,null,null,null,null,null,null,null,null,null,null,null,null,null,null,null,null,null,null,null,null,null,null,null,null,null,null,null,null,null,null,null,null,null,null,null,null,null,null,null,null,null,null,null,null,null,null,null,null,null,null,null,null,null,null,null,null,null,null,null,null,null,null,null,null,null,null,null,null,null,null,null,null,null,null,null,null,null,null,null,null,null,null,null,null,null,null,null,null,null,null,null,null,null,null,null,null,null,null,null,null,null,null,null,null,null,null,null,null,null,null,null,null,null,null,null,null,null,null,"地震保険料控除",null,null,null,null,null,null,"⑮",{"$f":"OT160","v":0}]
[null,null,null,null,null,null,null,null,null,null,null,null,null,null,null,null,null,null,null,null,null,null,null,null,null,null,null,null,null,null,null,null,null,null,null,null,null,null,null,null,null,null,null,null,null,null,null,null,null,null,null,null,null,null,null,null,null,null,null,null,null,null,null,null,null,null,null,null,null,null,"を識別するための番号の利用等に関する法律第2条第5項に"]
[null,null,null,null,null,null,null,null,null,null,null,null,null,null,null,null,null,null,null,null,null,null,"医療費控除",null,null,null,null,null,null,null,{"$f":"CY211","v":0},null,null,null,null,null,null,null,null,null,null,null,null,null,null,null,"円",null,null,{"$f":"CY216","v":0},null,null,null,null,null,null,null,null,null,null,null,null,null,null,null,"円"]
[null,null,null,null,null,null,"復興特別",null,null,{"$f":"ROUNDDOWN(J227*2.1/100,0)","v":{"$error":"#REF!"}},null,null,null,null,null,null,null,null,null,null,null,null,null,null,null,null,null,null,null,null,null,null,null,null,null,null,null,null,null,null,null,null,null,null,null,null,null,null,null,null,null,null,null,null,null,null,null,null,null,null,null,null,null,null,null,null,null,null,null,null,"規定する個人番号をいう。）を記載してください。"]
[null,null,null,null,null,null,null,null,null,null,null,null,null,null,null,null,null,null,null,null,null,null,null,null,null,null,null,null,null,null,null,null,null,null,null,null,null,null,null,null,null,null,null,null,null,null,null,null,null,null,null,null,null,null,null,null,null,null,null,null,null,null,null,null,null,null,null,null,null,null,null,null,null,null,null,null,null,null,null,null,null,null,null,null,null,null,null,null,null,null,null,null,null,null,null,null,null,null,null,null,null,null,null,null,null,null,null,null,null,null,null,null,null,null,null,null,null,null,null,null,null,null,null,null,null,null,null,null,null,null,null,null,null,null,null,null,null,null,null,null,null,null,null,null,null,null,null,null,null,null,null,null,null,null,null,null,null,null,null,null,null,null,null,null,null,null,null,null,null,null,null,null,null,null,null,null,null,null,null,null,null,null,null,null,null,null,null,null,null,null,null,null,null,null,null,null,null,null,null,null,null,null,null,null,null,null,null,null,null,null,null,null,null,null,null,null,null,null,null,null,null,null,null,null,null,null,null,null,null,null,null,null,null,null,null,null,null,null,null,null,null,null,null,null,null,null,null,null,null,null,null,null,null,null,null,null,null,null,null,null,null,null,null,null,null,null,null,null,null,null,null,null,null,null,null,null,null,null,null,null,null,null,null,null,null,null,null,null,null,null,null,null,null,null,null,null,null,null,null,null,null,null,null,null,null,null,null,null,null,null,null,null,null,null,null,null,null,null,null,null,null,null,null,null,null,null,null,null,null,null,null,null,null,null,null,null,null,null,null,null,null,null,null,null,null,null,null,null,null,null,null,"寡婦(寡夫)控除",null,null,null,null,null,null,"⑯",{"$f":"LH59+LJ59+LL59","v":0}]
[]
[null,null,null,null,null,null,"税額",null,null,{"$f":"J227+J230","v":{"$error":"#REF!"}},null,null,null,null,null,null,null,null,null,null,null,null,null,null,null,null,null,null,null,null,null,null,null,null,null,null,null,null,null,"裏面にも記載する欄がありますから注意してください。"]
[null,null,null,null,null,null,null,null,null,null,null,null,null,null,null,null,null,null,null,null,null,null,null,null,null,null,null,null,null,null,null,null,null,null,null,null,null,null,null,null,null,null,null,null,null,null,null,null,null,null,null,null,null,null,null,null,null,null,null,null,null,null,null,null,null,null,null,null,null,null,null,null,null,null,null,null,null,null,null,null,null,null,null,null,null,null,null,null,null,null,null,null,null,null,null,null,null,null,null,null,null,null,null,null,null,null,null,null,null,null,null,null,null,null,null,null,null,null,null,null,null,null,null,null,null,null,null,null,null,null,null,null,null,null,null,null,null,null,null,null,null,null,null,null,null,null,null,null,null,null,null,null,null,null,null,null,null,null,null,null,null,null,null,null,null,null,null,null,null,null,null,null,null,null,null,null,null,null,null,null,null,null,null,null,null,null,null,null,null,null,null,null,null,null,null,null,null,null,null,null,null,null,null,null,null,null,null,null,null,null,null,null,null,null,null,null,null,null,null,null,null,null,null,null,null,null,null,null,null,null,null,null,null,null,null,null,null,null,null,null,null,null,null,null,null,null,null,null,null,null,null,null,null,null,null,null,null,null,null,null,null,null,null,null,null,null,null,null,null,null,null,null,null,null,null,null,null,null,null,null,null,null,null,null,null,null,null,null,null,null,null,null,null,null,null,null,null,null,null,null,null,null,null,null,null,null,null,null,null,null,null,null,null,null,null,null,null,null,null,null,null,null,null,null,null,null,null,null,null,null,null,null,null,null,null,null,null,null,null,null,null,null,null,null,null,null,null,null,null,null,null,"勤労学生、\n障害者控除",null,null,null,null,null,null,"⑰～",{"$f":"LX190+LX200+LN59","v":0}]
[null,null,null,null,null,null,null,null,null,null,null,null,null,null,null,null,null,null,null,null,null,null,null,null,null,null,null,null,null,null,null,null,null,null,null,null,null,null,null,null,null,null,null,null,null,null,null,null,null,null,null,null,null,"（切り取らないでください。）"]
[null,null,null,null,null,null,null,null,null,null,null,null,null,null,null,null,null,null,null,null,null,null,null,null,null,null,null,null,null,null,null,null,null,null,null,null,null,null,null,null,null,null,null,null,null,null,null,null,null,null,null,null,null,null,null,null,null,null,null,null,null,null,null,null,null,null,null,null,null,null,null,null,null,null,null,null,null,null,null,null,null,null,null,null,null,null,null,null,null,null,null,null,null,null,null,null,null,null,null,null,null,null,null,null,null,null,null,null,null,null,null,null,null,null,null,null,null,null,null,null,null,null,null,null,null,null,null,null,null,null,null,null,null,null,null,null,null,null,null,null,null,null,null,null,null,null,null,null,null,null,null,null,null,null,null,null,null,null,null,null,null,null,null,null,null,null,null,null,null,null,null,null,null,null,null,null,null,null,null,null,null,null,null,null,null,null,null,null,null,null,null,null,null,null,null,null,null,null,null,null,null,null,null,null,null,null,null,null,null,null,null,null,null,null,null,null,null,null,null,null,null,null,null,null,null,null,null,null,null,null,null,null,null,null,null,null,null,null,null,null,null,null,null,null,null,null,null,null,null,null,null,null,null,null,null,null,null,null,null,null,null,null,null,null,null,null,null,null,null,null,null,null,null,null,null,null,null,null,null,null,null,null,null,null,null,null,null,null,null,null,null,null,null,null,null,null,null,null,null,null,null,null,null,null,null,null,null,null,null,null,null,null,null,null,null,null,null,null,null,null,null,null,null,null,null,null,null,null,null,null,null,null,null,null,null,null,null,null,null,null,null,null,null,null,null,null,null,null,null,null,null,null,null,null,null,null,null,null,"⑱"]
[null,null,null,null,null,null,null,null,null,null,null,null,null,null,null,null,null,null,null,null,null,null,null,null,null,null,null,null,null,null,null,null,null,null,null,null,null,null,null,"令和３年度分市町村民税・道府県民税申告書受付書"]
[]
[null,null,null,null,null,null,null,null,null,null,null,null,null,null,null,null,null,null,null,null,null,null,null,null,null,null,null,null,"住　　所",null,null,null,null,null,null,null,null,null,null,null,null,null,null,null,null,null,null,null,null,null,null,null,null,null,null,null,null,null,null,null,null,null,null,null,null,null,null,null,null,null,null,null,null,null,null,"受付日付印"]
[]
[null,null,null,null,null,null,null,null,null,null,null,null,null,null,null,null,null,null,null,null,null,null,null,null,null,null,null,null,null,null,null,null,null,null,null,null,null,null,null,null,null,null,null,null,null,null,null,null,null,null,null,null,null,null,null,null,null,null,null,null,null,null,null,null,null,null,null,null,null,null,null,null,null,null,null,null,null,null,null,null,null,null,null,null,null,null,null,null,null,null,null,null,null,null,null,null,null,null,null,null,null,null,null,null,null,null,null,null,null,null,null,null,null,null,null,null,null,null,null,null,null,null,null,null,null,null,null,null,null,null,null,null,null,null,null,null,null,null,null,null,null,null,null,null,null,null,null,null,null,null,null,null,null,null,null,null,null,null,null,null,null,null,null,null,null,null,null,null,null,null,null,null,null,null,null,null,null,null,null,null,null,null,null,null,null,null,null,null,null,null,null,null,null,null,null,null,null,null,null,null,null,null,null,null,null,null,null,null,null,null,null,null,null,null,null,null,null,null,null,null,null,null,null,null,null,null,null,null,null,null,null,null,null,null,null,null,null,null,null,null,null,null,null,null,null,null,null,null,null,null,null,null,null,null,null,null,null,null,null,null,null,null,null,null,null,null,null,null,null,null,null,null,null,null,null,null,null,null,null,null,null,null,null,null,null,null,null,null,null,null,null,null,null,null,null,null,null,null,null,null,null,null,null,null,null,null,null,null,null,null,null,null,null,null,null,null,null,null,null,null,null,null,null,null,null,null,null,null,null,null,null,null,null,null,null,null,null,null,null,null,null,null,null,null,null,null,null,null,null,null,null,"配偶者控除",null,null,null,null,null,null,"⑲",{"$f":"IF(LD207=\"\",0,IF(MB207<380001,330000,\"\"))","v":0}]
[]
[null,null,null,null,null,null,null,null,null,null,null,null,null,null,null,null,null,null,null,null,null,null,null,null,null,null,null,null,"氏　　名"]
[]
[]
[null,null,null,null,null,null,null,null,null,null,null,null,null,null,null,null,null,null,null,null,null,null,null,null,null,null,null,null,null,null,null,null,null,null,null,null,null,null,null,null,null,null,null,null,null,null,null,null,null,null,null,null,null,null,null,null,null,null,null,null,null,null,null,null,null,null,null,null,null,null,null,null,null,null,null,null,null,null,null,null,null,null,null,null,null,null,null,null,null,null,null,null,null,null,null,null,null,null,null,null,null,null,null,null,null,null,null,null,null,null,null,null,null,null,null,null,null,null,null,null,null,null,null,null,null,null,null,null,null,null,null,null,null,null,null,null,null,null,null,null,null,null,null,null,null,null,null,null,null,null,null,null,null,null,null,null,null,null,null,null,null,null,null,null,null,null,null,null,null,null,null,null,null,null,null,null,null,null,null,null,null,null,null,null,null,null,null,null,null,null,null,null,null,null,null,null,null,null,null,null,null,null,null,null,null,null,null,null,null,null,null,null,null,null,null,null,null,null,null,null,null,null,null,null,null,null,null,null,null,null,null,null,null,null,null,null,null,null,null,null,null,null,null,null,null,null,null,null,null,null,null,null,null,null,null,null,null,null,null,null,null,null,null,null,null,null,null,null,null,null,null,null,null,null,null,null,null,null,null,null,null,null,null,null,null,null,null,null,null,null,null,null,null,null,null,null,null,null,null,null,null,null,null,null,null,null,null,null,null,null,null,null,null,null,null,null,null,null,null,null,null,null,null,null,null,null,null,null,null,null,null,null,null,null,null,null,null,null,null,null,null,null,null,null,null,null,null,null,null,null,null,"配偶者特別控除",null,null,null,null,null,null,"⑳",{"$f":"IF(MB207>380000,MB209,0)","v":0}]
[null,null,{"$f":"J215","v":{"$error":"#REF!"}},null,null,0,999,0,0]
[null,null,null,null,null,1000,1949000,0.05,0]
[3,null,{"$f":"VLOOKUP($C$247,$F$239:$K$253,A249)","v":{"$error":"#REF!"}},null,null,1950000,3299000,0.1,97500]
[null,null,null,null,null,3300000,6949000,0.2,427500,null,null,null,null,null,null,null,null,null,null,null,null,null,null,null,null,null,null,null,null,null,null,null,null,null,null,null,null,null,null,null,null,null,null,null,null,null,null,null,null,null,null,null,null,null,null,null,null,null,null,null,null,null,null,null,null,null,null,null,null,null,null,null,null,null,null,null,null,null,null,null,null,null,null,null,null,null,null,null,null,null,null,null,null,null,null,null,null,null,null,null,null,null,null,null,null,null,null,null,null,null,null,null,null,null,null,null,null,null,null,null,null,null,null,null,null,null,null,null,null,null,null,null,null,null,null,null,null,null,null,null,null,null,null,null,null,null,null,null,null,null,null,null,null,null,null,null,null,null,null,null,null,null,null,null,null,null,null,null,null,null,null,null,null,null,null,null,null,null,null,null,null,null,null,null,null,null,null,null,null,null,null,null,null,null,null,null,null,null,null,null,null,null,null,null,null,null,null,null,null,null,null,null,null,null,null,null,null,null,null,null,null,null,null,null,null,null,null,null,null,null,null,null,null,null,null,null,null,null,null,null,null,null,null,null,null,null,null,null,null,null,null,null,null,null,null,null,null,null,null,null,null,null,null,null,null,null,null,null,null,null,null,null,null,null,null,null,null,null,null,null,null,null,null,null,null,null,null,null,null,null,null,null,null,null,null,null,null,null,null,null,null,null,null,null,null,null,null,null,null,null,null,null,null,null,null,null,null,null,null,null,null,null,null,null,null,null,null,null,null,null,null,null,null,null,null,null,null,null,null,null,null,null,null,null,null,null,null,null,null,null,null,"扶養控除",null,null,null,null,null,null,"㉑",{"$f":"ME221+ME231+ME243+ME254","v":0}]
[4,null,{"$f":"VLOOKUP($C$247,$F$239:$K$253,A251)","v":{"$error":"#REF!"}},null,null,6950000,8999000,0.23,636000]
[null,null,null,null,null,9000000,17999000,0.33,1536000]
[null,null,{"$f":"C247*C249-C251","v":{"$error":"#REF!"}},null,null,18000000,39999000,0.4,2796000]
[null,null,null,null,null,40000000,null,0.45,4796000,null,null,null,null,null,null,null,null,null,null,null,null,null,null,null,null,null,null,null,null,null,null,null,null,null,null,null,null,null,null,null,null,null,null,null,null,null,null,null,null,null,null,null,null,null,null,null,null,null,null,null,null,null,null,null,null,null,null,null,null,null,null,null,null,null,null,null,null,null,null,null,null,null,null,null,null,null,null,null,null,null,null,null,null,null,null,null,null,null,null,null,null,null,null,null,null,null,null,null,null,null,null,null,null,null,null,null,null,null,null,null,null,null,null,null,null,null,null,null,null,null,null,null,null,null,null,null,null,null,null,null,null,null,null,null,null,null,null,null,null,null,null,null,null,null,null,null,null,null,null,null,null,null,null,null,null,null,null,null,null,null,null,null,null,null,null,null,null,null,null,null,null,null,null,null,null,null,null,null,null,null,null,null,null,null,null,null,null,null,null,null,null,null,null,null,null,null,null,null,null,null,null,null,null,null,null,null,null,null,null,null,null,null,null,null,null,null,null,null,null,null,null,null,null,null,null,null,null,null,null,null,null,null,null,null,null,null,null,null,null,null,null,null,null,null,null,null,null,null,null,null,null,null,null,null,null,null,null,null,null,null,null,null,null,null,null,null,null,null,null,null,null,null,null,null,null,null,null,null,null,null,null,null,null,null,null,null,null,null,null,null,null,null,null,null,null,null,null,null,null,null,null,null,null,null,null,null,null,null,null,null,null,null,null,null,null,null,null,null,null,null,null,null,null,null,null,null,null,null,null,null,null,null,null,null,null,null,null,null,null,null,null,"基礎控除",null,null,null,null,null,null,"㉒",330000]
[]
[]
[]
[null,null,null,null,null,null,null,null,null,null,null,null,null,null,null,null,null,null,null,null,null,null,null,null,null,null,null,null,null,null,null,null,null,null,null,null,null,null,null,null,null,null,null,null,null,null,null,null,null,null,null,null,null,null,null,null,null,null,null,null,null,null,null,null,null,null,null,null,null,null,null,null,null,null,null,null,null,null,null,null,null,null,null,null,null,null,null,null,null,null,null,null,null,null,null,null,null,null,null,null,null,null,null,null,null,null,null,null,null,null,null,null,null,null,null,null,null,null,null,null,null,null,null,null,null,null,null,null,null,null,null,null,null,null,null,null,null,null,null,null,null,null,null,null,null,null,null,null,null,null,null,null,null,null,null,null,null,null,null,null,null,null,null,null,null,null,null,null,null,null,null,null,null,null,null,null,null,null,null,null,null,null,null,null,null,null,null,null,null,null,null,null,null,null,null,null,null,null,null,null,null,null,null,null,null,null,null,null,null,null,null,null,null,null,null,null,null,null,null,null,null,null,null,null,null,null,null,null,null,null,null,null,null,null,null,null,null,null,null,null,null,null,null,null,null,null,null,null,null,null,null,null,null,null,null,null,null,null,null,null,null,null,null,null,null,null,null,null,null,null,null,null,null,null,null,null,null,null,null,null,null,null,null,null,null,null,null,null,null,null,null,null,null,null,null,null,null,null,null,null,null,null,null,null,null,null,null,null,null,null,null,null,null,null,null,null,null,null,null,null,null,null,null,null,null,null,null,null,null,null,null,null,null,null,null,null,null,null,null,null,null,null,null,null,null,null,null,null,null,null,null,"合計",null,null,null,null,null,null,"㉓",{"$f":"SUM(MV207:MX257)","v":570000}]
[]
[]
[]
[]
[]
[]
[null,null,null,null,null,null,null,null,null,null,null,null,null,null,null,null,null,null,null,null,null,null,null,null,null,"６ 給与所得の内訳",null,null,null,null,null,null,null,null,null,null,null,null,null,null,null,null,null,null,null,null,null,null,null,null,null,null,null,null,null,null,null,null,null,null,null,null,null,null,null,null,null,null,null,null,null,null,null,null,null,null,null,null,null,null,null,null,null,null,null,null,null,"裏"]
[]
[null,null,null,null,null,null,null,null,null,null,null,null,null,null,null,null,null,null,null,null,null,null,null,null,null,null,null,null,null,null,null,null,null,null,null,null,null,null,null,null,null,null,null,null,null,null,null,null,null,null,null,null,null,null,null,null,null,null,null,null,null,null,null,null,null,null,null,null,null,null,null,null,null,null,null,null,null,null,null,null,null,null,null,null,null,null,null,null,null,null,null,null,null,null,null,null,null,null,null,null,null,null,null,null,null,null,null,null,null,null,null,null,null,null,null,null,null,null,null,null,null,null,null,null,null,null,null,null,null,null,null,null,null,null,null,null,null,null,null,null,null,null,null,null,null,null,null,null,null,null,null,null,null,null,null,null,null,null,null,null,null,null,null,null,null,null,null,null,null,null,null,1,2,3,4,5,6]
[null,null,null,null,null,null,null,null,null,null,null,null,null,null,null,null,null,null,null,null,null,null,null,null,null,"(","日給などの給与所得のある人で、源泉徴収票のない人は記入してください。",null,null,null,null,null,null,null,null,null,null,null,null,null,null,null,null,null,")",null,null,null,null,null,null,null,null,null,null,null,null,null,null,null,null,null,null,null,null,null,null,null,null,null,null,null,null,null,null,null,null,null,null,null,null,null,null,null,null,null,null,null,null,null,null,null,null,null,null,null,null,null,null,null,null,null,null,null,null,null,null,null,null,null,null,null,null,null,null,null,null,null,null,null,null,null,null,null,null,null,null,null,null,null,null,null,null,null,null,null,null,null,null,null,null,null,null,null,null,null,null,null,null,null,null,null,null,null,null,null,null,null,null,null,null,null,null,null,null,null,null,null,{"$f":"CJ75","v":0},null,null,0,650999,0,0,1,0]
[null,null,null,null,null,null,null,null,null,null,null,null,null,null,null,null,null,null,null,null,null,null,null,null,null,null,null,null,null,null,null,null,null,null,null,null,null,null,null,null,null,null,null,null,null,null,null,null,null,null,null,null,null,null,null,null,null,null,null,null,null,null,null,null,null,null,null,null,null,null,null,null,null,null,null,null,null,null,null,null,null,null,null,null,null,null,null,null,null,null,null,null,null,null,null,null,null,null,null,null,null,null,null,null,null,null,null,null,null,null,null,null,null,null,null,null,null,null,null,null,null,null,null,null,null,null,null,null,null,null,null,null,null,null,null,null,null,null,null,null,null,null,null,null,null,null,null,null,null,null,null,null,null,null,null,null,null,null,null,null,null,null,null,null,null,null,null,null,null,null,null,651000,1618999,0,1,1,-650000]
[null,null,null,null,null,null,null,null,null,null,null,null,null,null,null,null,null,null,null,null,null,null,null,null,null,null,null,null,null,null,null,null,null,null,null,null,null,null,null,null,null,null,null,null,null,null,"７ 事業・不動産所得に関する事項",null,null,null,null,null,null,null,null,null,null,null,null,null,null,null,null,null,null,null,null,null,null,null,null,null,null,null,null,null,null,null,null,null,null,null,null,null,null,null,null,null,null,null,null,null,null,null,null,null,null,null,null,null,null,null,null,null,null,null,null,null,null,null,null,null,null,null,null,null,null,null,null,null,null,null,null,null,null,null,null,null,null,null,null,null,null,null,null,null,null,null,null,null,null,null,null,null,null,null,null,null,null,null,null,null,null,null,null,null,null,null,null,null,null,null,null,null,null,null,3,null,{"$f":"VLOOKUP($FM$268,$FP$268:$FU$281,FK270)","v":0},null,null,1619000,1619999,969000,1,1,0]
[null,null,null,null,null,null,null,null,null,null,null,null,null,null,null,null,null,null,null,null,null,null,null,null,null,null,null,null,null,null,null,null,null,null,null,null,null,null,null,null,null,null,null,null,null,null,null,null,null,null,null,null,null,null,null,null,null,null,null,null,null,null,null,null,null,null,null,null,null,null,null,null,null,null,null,null,null,null,null,null,null,null,null,null,null,null,null,null,null,null,null,null,null,null,null,null,null,null,null,null,null,null,null,null,null,null,null,null,null,null,null,null,null,null,null,null,null,null,null,null,null,null,null,null,null,null,null,null,null,null,null,null,null,null,null,null,null,null,null,null,null,null,null,null,null,null,null,null,null,null,null,null,null,null,null,null,null,null,null,null,null,null,null,null,null,null,null,null,null,null,null,1620000,1621999,970000,1,1,0]
[null,null,null,null,null,null,null,null,null,null,null,null,null,null,null,null,null,null,null,null,null,null,null,null,null,null,null,null,null,null,null,null,null,null,null,null,null,null,null,null,null,null,null,null,null,null,null,null,null,null,null,null,null,null,null,null,null,null,null,null,null,null,null,null,null,null,null,null,null,null,null,null,null,null,null,null,null,null,null,null,null,null,null,null,null,null,null,null,null,null,null,null,null,null,null,null,null,null,null,null,null,null,null,null,null,null,null,null,null,null,null,null,null,null,null,null,null,null,null,null,null,null,null,null,null,null,null,null,null,null,null,null,null,null,null,null,null,null,null,null,null,null,null,null,null,null,null,null,null,null,null,null,null,null,null,null,null,null,null,null,null,null,null,null,null,null,4,null,{"$f":"VLOOKUP($FM$268,$FP$268:$FU$281,FK272)","v":0},null,null,1622000,1623999,972000,1,1,0]
[null,null,null,null,null,null,null,null,null,null,null,null,null,null,null,null,null,null,null,null,null,null,null,null,null,"月",null,"日給",null,null,null,null,null,"勤務　日数",null,null,"月収",null,null,null,null,null,null,null,null,null,"所得の種類",null,null,null,null,"所得の生ずる場所",null,null,null,null,null,null,null,null,null,null,"収入金額",null,null,null,null,null,null,null,null,"必要経費",null,null,null,null,null,null,null,null,"青色申告特別控除額",null,null,null,null,null,null,null,null,null,null,null,null,null,null,null,null,null,null,null,null,null,null,null,null,null,null,null,null,null,null,null,null,null,null,null,null,null,null,null,null,null,null,null,null,null,null,null,null,null,null,null,null,null,null,null,null,null,null,null,null,null,null,null,null,null,null,null,null,null,null,null,null,null,null,null,null,null,null,null,null,null,null,null,null,null,null,null,null,null,null,1624000,1627999,974000,1,1,0]
[null,null,null,null,null,null,null,null,null,null,null,null,null,null,null,null,null,null,null,null,null,null,null,null,null,null,null,null,null,null,null,null,null,null,null,null,null,null,null,null,null,null,null,null,null,null,null,null,null,null,null,null,null,null,null,null,null,null,null,null,null,null,null,null,null,null,null,null,null,null,null,null,null,null,null,null,null,null,null,null,null,null,null,null,null,null,null,null,null,null,null,null,null,null,null,null,null,null,null,null,null,null,null,null,null,null,null,null,null,null,null,null,null,null,null,null,null,null,null,null,null,null,null,null,null,null,null,null,null,null,null,null,null,null,null,null,null,null,null,null,null,null,null,null,null,null,null,null,null,null,null,null,null,null,null,null,null,null,null,null,null,null,null,null,null,null,5,null,{"$f":"VLOOKUP($FM$268,$FP$268:$FU$281,FK274)","v":1},null,null,1628000,1799999,0,0.25,2.4,0]
[null,null,null,null,null,null,null,null,null,null,null,null,null,null,null,null,null,null,null,null,null,null,null,null,null,null,null,null,null,null,null,null,null,null,null,null,null,null,null,null,null,null,null,null,null,null,null,null,null,null,null,null,null,null,null,null,null,null,null,null,null,null,null,null,null,null,null,null,null,null,null,null,null,null,null,null,null,null,null,null,null,null,null,null,null,null,null,null,null,null,null,null,null,null,null,null,null,null,null,null,null,null,null,null,null,null,null,null,null,null,null,null,null,null,null,null,null,null,null,null,null,null,null,null,null,null,null,null,null,null,null,null,null,null,null,null,null,null,null,null,null,null,null,null,null,null,null,null,null,null,null,null,null,null,null,null,null,null,null,null,null,null,null,null,null,null,null,null,null,null,null,1800000,3599999,0,0.25,2.8,-180000]
[null,null,null,null,null,null,null,null,null,null,null,null,null,null,null,null,null,null,null,null,null,null,null,null,null,null,null,null,null,null,null,null,null,null,null,null,null,null,null,null,null,null,null,null,null,null,null,null,null,null,null,null,null,null,null,null,null,null,null,null,null,null,null,null,null,null,null,null,null,null,null,null,null,null,null,null,null,null,null,null,null,null,null,null,null,null,null,null,null,null,null,null,null,null,null,null,null,null,null,null,null,null,null,null,null,null,null,null,null,null,null,null,null,null,null,null,null,null,null,null,null,null,null,null,null,null,null,null,null,null,null,null,null,null,null,null,null,null,null,null,null,null,null,null,null,null,null,null,null,null,null,null,null,null,null,null,null,null,null,null,null,null,null,null,null,null,6,null,{"$f":"VLOOKUP($FM$268,$FP$268:$FU$281,FK276)","v":0},null,null,3600000,6599999,0,0.25,3.2,-540000]
[null,null,null,null,null,null,null,null,null,null,null,null,null,null,null,null,null,null,null,null,null,null,null,null,null,1,null,"円",null,null,null,null,null,null,null,null,"円",null,null,null,null,null,null,null,null,null,null,null,null,null,null,null,null,null,null,null,null,null,null,null,null,null,"円",null,null,null,null,null,null,null,null,"円",null,null,null,null,null,null,null,null,"円",null,null,null,null,null,null,null,null,null,null,null,null,null,null,null,null,null,null,null,null,null,null,null,null,null,null,null,null,null,null,null,null,null,null,null,null,null,null,null,null,null,null,null,null,null,null,null,null,null,null,null,null,null,null,null,null,null,null,null,null,null,null,null,null,null,null,null,null,null,null,null,null,null,null,null,null,null,null,null,null,null,null,null,null,null,null,null,null,null,null,6600000,9999999,0,0.9,1,-1200000]
[null,null,null,null,null,null,null,null,null,null,null,null,null,null,null,null,null,null,null,null,null,null,null,null,null,null,null,null,null,null,null,null,null,null,null,null,null,null,null,null,null,null,null,null,null,null,null,null,null,null,null,null,null,null,null,null,null,null,null,null,null,null,null,null,null,null,null,null,null,null,null,null,null,null,null,null,null,null,null,null,null,null,null,null,null,null,null,null,null,null,null,null,null,null,null,null,null,null,null,null,null,null,null,null,null,null,null,null,null,null,null,null,null,null,null,null,null,null,null,null,null,null,null,null,null,null,null,null,null,null,null,null,null,null,null,null,null,null,null,null,null,null,null,null,null,null,null,null,null,null,null,null,null,null,null,null,null,null,null,null,null,null,null,null,null,null,null,null,null,null,null,10000000,11999999,0,0.95,1,-1700000]
[null,null,null,null,null,null,null,null,null,null,null,null,null,null,null,null,null,null,null,null,null,null,null,null,null,null,null,null,null,null,null,null,null,null,null,null,null,null,null,null,null,null,null,null,null,null,null,null,null,null,null,null,null,null,null,null,null,null,null,null,null,null,null,null,null,null,null,null,null,null,null,null,null,null,null,null,null,null,null,null,null,null,null,null,null,null,null,null,null,null,null,null,null,null,null,null,null,null,null,null,null,null,null,null,null,null,null,null,null,null,null,null,null,null,null,null,null,null,null,null,null,null,null,null,null,null,null,null,null,null,null,null,null,null,null,null,null,null,null,null,null,null,null,null,null,null,null,null,null,null,null,null,null,null,null,null,null,null,null,null,null,null,null,null,null,null,null,null,null,null,null,12000000,20000000,0,1,1,-2300000]
[null,null,null,null,null,null,null,null,null,null,null,null,null,null,null,null,null,null,null,null,null,null,null,null,null,null,null,null,null,null,null,null,null,null,null,null,null,null,null,null,null,null,null,null,null,null,null,null,null,null,null,null,null,null,null,null,null,null,null,null,null,null,null,null,null,null,null,null,null,null,null,null,null,null,null,null,null,null,null,null,null,null,null,null,null,null,null,null,null,null,null,null,null,null,null,null,null,null,null,null,null,null,null,null,null,null,null,null,null,null,null,null,null,null,null,null,null,null,null,null,null,null,null,null,null,null,null,null,null,null,null,null,null,null,null,null,null,null,null,null,null,null,null,null,null,null,null,null,null,null,null,null,null,null,null,null,null,null,null,null,null,null,null,null,null,null,null,null,{"$f":"IF(FM270>1,ROUNDDOWN(FM270*FM272,-3)*FM274-FM276,ROUNDDOWN(FM268*FM272,-3)*FM274+FM276)","v":0},null,null,20000001]
[null,null,null,null,null,null,null,null,null,null,null,null,null,null,null,null,null,null,null,null,null,null,null,null,null,2]
[]
[]
[]
[null,null,null,null,null,null,null,null,null,null,null,null,null,null,null,null,null,null,null,null,null,null,null,null,null,3]
[]
[]
[]
[null,null,null,null,null,null,null,null,null,null,null,null,null,null,null,null,null,null,null,null,null,null,null,null,null,4]
[]
[]
[]
[null,null,null,null,null,null,null,null,null,null,null,null,null,null,null,null,null,null,null,null,null,null,null,null,null,5]
[]
[]
[]
[null,null,null,null,null,null,null,null,null,null,null,null,null,null,null,null,null,null,null,null,null,null,null,null,null,6]
[]
[]
[]
[null,null,null,null,null,null,null,null,null,null,null,null,null,null,null,null,null,null,null,null,null,null,null,null,null,7]
[null,null,null,null,null,null,null,null,null,null,null,null,null,null,null,null,null,null,null,null,null,null,null,null,null,null,null,null,null,null,null,null,null,null,null,null,null,null,null,null,null,null,null,null,null,null,"８ 配当所得に関する事項"]
[]
[]
[null,null,null,null,null,null,null,null,null,null,null,null,null,null,null,null,null,null,null,null,null,null,null,null,null,8,null,null,null,null,null,null,null,null,null,null,null,null,null,null,null,null,null,null,null,null,"配当所得\nの種類",null,null,null,null,"所得の生ずる場所",null,null,null,null,null,null,null,null,null,null,"支払確定年月",null,null,null,null,null,null,null,null,"収入金額",null,null,null,null,null,null,null,null,"必要経費"]
[]
[]
[]
[null,null,null,null,null,null,null,null,null,null,null,null,null,null,null,null,null,null,null,null,null,null,null,null,null,9,null,null,null,null,null,null,null,null,null,null,null,null,null,null,null,null,null,null,null,null,null,null,null,null,null,null,null,null,null,null,null,null,null,null,null,null,"・",null,null,null,null,null,null,null,null,"円",null,null,null,null,null,null,null,null,"円"]
[]
[]
[]
[null,null,null,null,null,null,null,null,null,null,null,null,null,null,null,null,null,null,null,null,null,null,null,null,null,10,null,null,null,null,null,null,null,null,null,null,null,null,null,null,null,null,null,null,null,null,null,null,null,null,null,null,null,null,null,null,null,null,null,null,null,null,"・"]
[]
[]
[]
[null,null,null,null,null,null,null,null,null,null,null,null,null,null,null,null,null,null,null,null,null,null,null,null,null,11,null,null,null,null,null,null,null,null,null,null,null,null,null,null,null,null,null,null,null,null,null,null,null,null,null,null,null,null,null,null,null,null,null,null,null,null,"・"]
[]
[]
[]
[null,null,null,null,null,null,null,null,null,null,null,null,null,null,null,null,null,null,null,null,null,null,null,null,null,12,null,null,null,null,null,null,null,null,null,null,null,null,null,null,null,null,null,null,null,null,null,null,null,null,null,null,null,null,null,null,null,null,null,null,null,null,"・"]
[]
[]
[]
[null,null,null,null,null,null,null,null,null,null,null,null,null,null,null,null,null,null,null,null,null,null,null,null,null,"賞与等",null,null,null,null,null,null,null,null,"円",null,null,null,null,null,null,null,null,null,null,null,null,null,null,null,null,null,null,null,null,null,null,null,null,null,null,null,null,null,null,null,null,null,null,null,null,"国外株式等に係\nる外国所得税額"]
[]
[]
[null,null,null,null,null,null,null,null,null,null,null,null,null,null,null,null,null,null,null,null,null,null,null,null,null,null,null,null,null,null,null,null,null,null,null,null,null,null,null,null,null,null,null,null,null,null,"９ 雑所得（公的年金等以外）に関する事項"]
[]
[null,null,null,null,null,null,null,null,null,null,null,null,null,null,null,null,null,null,null,null,null,null,null,null,null,"合  計"]
[null,null,null,null,null,null,null,null,null,null,null,null,null,null,null,null,null,null,null,null,null,null,null,null,null,null,null,null,null,null,null,null,null,null,null,null,null,null,null,null,null,null,null,null,null,null,"種　目",null,null,null,null,"所得の生ずる場所",null,null,null,null,null,null,null,null,null,null,"収入金額",null,null,null,null,null,null,null,null,null,null,null,null,null,"必要経費"]
[]
[null,null,null,null,null,null,null,null,null,null,null,null,null,null,null,null,null,null,null,null,null,null,null,null,null,null,null,null,null,null,null,null,null,null,null,null,null,null,null,null,null,null,null,null,null,null,null,null,null,null,null,null,null,null,null,null,null,null,null,null,null,null,null,null,null,null,null,null,null,null,null,null,null,null,null,null,null,null,null,null,null,null,null,null,null,null,null,null,null,0]
[]
[null,null,null,null,null,null,null,null,null,null,null,null,null,null,null,null,null,null,null,null,null,null,null,null,null,"勤務先所在地",null,null,null,null,null,null,null,null,null,null,null,null,null,null,null,null,null,null,null,null,null,null,null,null,null,null,null,null,null,null,null,null,null,null,null,null,null,null,null,null,null,null,null,null,null,null,null,null,"円",null,null,null,null,null,null,null,null,null,null,null,null,"円"]
[]
[]
[]
[]
[null,null,null,null,null,null,null,null,null,null,null,null,null,null,null,null,null,null,null,null,null,null,null,null,null,"勤務先名"]
[]
[]
[]
[]
[null,null,null,null,null,null,null,null,null,null,null,null,null,null,null,null,null,null,null,null,null,null,null,null,null,"電話番号"]
[]
[]
[]
[]
[]
[null,null,null,null,null,null,null,null,null,null,null,null,null,null,null,null,null,null,null,null,null,null,null,null,null,"10 総合譲渡・一時所得の所得金額に関する事項"]
[null,null,null,null,null,null,null,null,null,null,null,null,null,null,null,null,null,null,null,null,null,null,null,null,null,null,null,null,null,null,null,null,null,null,null,null,null,null,null,null,null,null,null,null,null,null,null,null,null,null,null,null,null,null,null,null,null,null,null,null,null,null,null,null,null,null,null,null,null,null,null,null,null,null,null,null,null,null,null,null,null,null,null,null,null,null,null,"   "]
[]
[null,null,null,null,null,null,null,null,null,null,null,null,null,null,null,null,null,null,null,null,null,null,null,null,null,null,null,null,null,null,null,null,null,null,null,"収入金額",null,null,null,null,null,null,null,null,null,null,"必要経費",null,null,null,null,null,null,null,null,null,"差引金額",null,null,null,null,null,null,null,null,null,null,"特別控除額",null,null,null,null,null,null,null,null,null,"所得金額"]
[]
[null,null,null,null,null,null,null,null,null,null,null,null,null,null,null,null,null,null,null,null,null,null,null,null,null,null,null,null,null,null,null,null,null,null,null,null,null,null,null,null,null,null,null,null,null,null,null,null,null,null,null,null,null,null,null,null,"（収入金額－必要経費）",null,null,null,null,null,null,null,null,null,null,null,null,null,null,null,null,null,null,null,null,"（差引金額－特別控除額）"]
[]
[null,null,null,null,null,null,null,null,null,null,null,null,null,null,null,null,null,null,null,null,null,null,null,null,null,"総合譲渡",null,null,null,null,"短期",null,null,null,null,"円",null,null,null,null,null,null,null,null,null,null,"円",null,null,null,null,null,null,null,null,null,"円",null,null,null,null,null,null,null,null,null,null,"円",null,null,null,null,null,null,null,null,null,"ｲ",null,null,null,null,null,null,null,null,null,"円"]
[]
[]
[]
[null,null,null,null,null,null,null,null,null,null,null,null,null,null,null,null,null,null,null,null,null,null,null,null,null,null,null,null,null,null,"長期",null,null,null,null,null,null,null,null,null,null,null,null,null,null,null,null,null,null,null,null,null,null,null,null,null,null,null,null,null,null,null,null,null,null,null,null,null,null,null,null,null,null,null,null,null,null,"ロ",null,null,null,null,null,null,null,null,null,"円"]
[]
[]
[]
[null,null,null,null,null,null,null,null,null,null,null,null,null,null,null,null,null,null,null,null,null,null,null,null,null,"一時",null,null,null,null,null,null,null,null,null,null,null,null,null,null,null,null,null,null,null,null,null,null,null,null,null,null,null,null,null,null,{"$f":"AJ366-AU366","v":0},null,null,null,null,null,null,null,null,null,null,{"$f":"IF(AJ366=\"\",0,500000)","v":0},null,null,null,null,null,null,null,null,null,"ハ",null,{"$f":"BE366-BP366","v":0},null,null,null,null,null,null,null,"円"]
[]
[]
[]
[null,null,null,null,null,null,null,null,null,null,null,null,null,null,null,null,null,null,null,null,null,null,null,null,null,"　右上のイの金額を表面のケに、ロの金額を表面のコに、ハの金額を表面のサに記入してください。",null,null,null,null,null,null,null,null,null,null,null,null,null,null,null,null,null,null,null,null,null,null,null,null,null,null,null,null,null,null,null,null,null,null,null,null,null,null,"ニ　合計　ｲ+〔(ﾛ+ﾊ)×1/2〕",null,null,null,null,null,null,null,null,null,null,null,null,{"$f":"CB358+(CB362+CB366)*0.5","v":0}]
[]
[null,null,null,null,null,null,null,null,null,null,null,null,null,null,null,null,null,null,null,null,null,null,null,null,null,"　右のニの金額を表面の⑪の所得金額欄へ記入してください。"]
[]
[]
[]
[null,null,null,null,null,null,null,null,null,null,null,null,null,null,null,null,null,null,null,null,null,null,null,null,null,"11 事業専従者に関する事項",null,null,null,null,null,null,null,null,null,null,null,null,null,null,null,null,null,null,null,null,null,null,null,null,null,null,null,null,null,null,null,null,null,null,null,null,null,null,null,null,null,null,null,null,null,null,null,null,null,"13 事業税に関する事項"]
[]
[]
[null,null,null,null,null,null,null,null,null,null,null,null,null,null,null,null,null,null,null,null,null,null,null,null,null,1,null,"フリガナ",null,null,null,null,null,null,null,null,null,null,null,null,null,null,"続柄",null,null,null,null,null,"生年月日",null,"明・大・昭\n平・令",null,null,null,"　　・　 ・　 ",null,null,null,null,"専従者給与\n（控除）額",null,null,null,null,null,null,null,null,null,null,null,null,null,null,null,"　非課税\n　所得など",null,null,null,null,"所得金額",null,null,null,"円"]
[]
[null,null,null,null,null,null,null,null,null,null,null,null,null,null,null,null,null,null,null,null,null,null,null,null,null,null,null,"氏名"]
[]
[null,null,null,null,null,null,null,null,null,null,null,null,null,null,null,null,null,null,null,null,null,null,null,null,null,null,null,null,null,null,null,null,null,null,null,null,null,null,null,null,null,null,null,null,null,null,null,null,null,null,null,null,null,null,null,null,null,null,null,null,null,null,null,null,null,null,null,null,null,null,null,null,null,null,null,"　損益通算の\n　特例適用前の\n　不動産所得",null,null,null,null,"円"]
[]
[null,null,null,null,null,null,null,null,null,null,null,null,null,null,null,null,null,null,null,null,null,null,null,null,null,null,null,"個人番号",null,null,null,null,null,null,null,null,null,null,null,null,null,null,null,null,null,null,null,null,null,null,null,null,null,null,"従事\n月数"]
[]
[]
[]
[null,null,null,null,null,null,null,null,null,null,null,null,null,null,null,null,null,null,null,null,null,null,null,null,null,2,null,"フリガナ",null,null,null,null,null,null,null,null,null,null,null,null,null,null,"続柄",null,null,null,null,null,"生年月日",null,"明・大・昭\n平・令",null,null,null,"　　・　 ・　 ",null,null,null,null,"専従者給与\n（控除）額",null,null,null,null,null,null,null,null,null,null,null,null,null,null,null,"事業用\n資産の\n譲渡損\n失など",null,null,"資産の種類"]
[]
[null,null,null,null,null,null,null,null,null,null,null,null,null,null,null,null,null,null,null,null,null,null,null,null,null,null,null,"氏名"]
[]
[null,null,null,null,null,null,null,null,null,null,null,null,null,null,null,null,null,null,null,null,null,null,null,null,null,null,null,null,null,null,null,null,null,null,null,null,null,null,null,null,null,null,null,null,null,null,null,null,null,null,null,null,null,null,null,null,null,null,null,null,null,null,null,null,null,null,null,null,null,null,null,null,null,null,null,null,null,null,"損失額、被災損失額（白）",null,null,null,null,null,null,null,null,"円"]
[]
[null,null,null,null,null,null,null,null,null,null,null,null,null,null,null,null,null,null,null,null,null,null,null,null,null,null,null,"個人番号",null,null,null,null,null,null,null,null,null,null,null,null,null,null,null,null,null,null,null,null,null,null,null,null,null,null,"従事\n月数"]
[]
[null,null,null,null,null,null,null,null,null,null,null,null,null,null,null,null,null,null,null,null,null,null,null,null,null,null,null,null,null,null,null,null,null,null,null,null,null,null,null,null,null,null,null,null,null,null,null,null,null,null,null,null,null,null,null,null,null,null,null,null,null,null,null,null,null,null,null,null,null,null,null,null,null,null,null,"前年中の\n開廃業",null,null,null,null,"開始・廃止"]
[]
[null,null,null,null,null,null,null,null,null,null,null,null,null,null,null,null,null,null,null,null,null,null,null,null,null,3,null,"フリガナ",null,null,null,null,null,null,null,null,null,null,null,null,null,null,"続柄",null,null,null,null,null,"生年月日",null,"明・大・昭\n平・令",null,null,null,"　　・　 ・　 ",null,null,null,null,"専従者給与\n（控除）額"]
[]
[null,null,null,null,null,null,null,null,null,null,null,null,null,null,null,null,null,null,null,null,null,null,null,null,null,null,null,"氏名",null,null,null,null,null,null,null,null,null,null,null,null,null,null,null,null,null,null,null,null,null,null,null,null,null,null,null,null,null,null,null,null,null,null,null,null,null,null,null,null,null,null,null,null,null,null,null,null,null,null,null,null,"月　　　日"]
[]
[]
[]
[null,null,null,null,null,null,null,null,null,null,null,null,null,null,null,null,null,null,null,null,null,null,null,null,null,null,null,"個人番号",null,null,null,null,null,null,null,null,null,null,null,null,null,null,null,null,null,null,null,null,null,null,null,null,null,null,"従事\n月数",null,null,null,null,null,null,null,null,null,null,null,null,null,null,null,null,null,null,null,null,"□他都道府県の事務所等"]
[]
[]
[]
[null,null,null,null,null,null,null,null,null,null,null,null,null,null,null,null,null,null,null,null,null,null,null,null,null,null,null,null,null,null,"所得税における青色申告の承認の有無",null,null,null,null,null,null,null,null,null,null,null,null,null,null,null,null,null,null,"承認あり・承認なし",null,null,null,null,null,null,null,null,null,"合計額"]
[]
[]
[]
[]
[null,null,null,null,null,null,null,null,null,null,null,null,null,null,null,null,null,null,null,null,null,null,null,null,null,"12 別居の扶養親族等に関する事項"]
[]
[]
[null,null,null,null,null,null,null,null,null,null,null,null,null,null,null,null,null,null,null,null,null,null,null,null,null,1,null,"フリガナ",null,null,null,null,null,null,null,null,null,null,null,null,null,null,"個人番号",null,null,null,null,null,null,null,null,null,null,null,null,null,null,null,null,null,null,null,null,null,null,null,null,null,null,"住所"]
[]
[null,null,null,null,null,null,null,null,null,null,null,null,null,null,null,null,null,null,null,null,null,null,null,null,null,null,null,"氏名"]
[]
[]
[]
[null,null,null,null,null,null,null,null,null,null,null,null,null,null,null,null,null,null,null,null,null,null,null,null,null,2,null,"フリガナ",null,null,null,null,null,null,null,null,null,null,null,null,null,null,"個人番号",null,null,null,null,null,null,null,null,null,null,null,null,null,null,null,null,null,null,null,null,null,null,null,null,null,null,"住所"]
[]
[null,null,null,null,null,null,null,null,null,null,null,null,null,null,null,null,null,null,null,null,null,null,null,null,null,null,null,"氏名"]
[]
[]
[]
[null,null,null,null,null,null,null,null,null,null,null,null,null,null,null,null,null,null,null,null,null,null,null,null,null,3,null,"フリガナ",null,null,null,null,null,null,null,null,null,null,null,null,null,null,"個人番号",null,null,null,null,null,null,null,null,null,null,null,null,null,null,null,null,null,null,null,null,null,null,null,null,null,null,"住所"]
[]
[null,null,null,null,null,null,null,null,null,null,null,null,null,null,null,null,null,null,null,null,null,null,null,null,null,null,null,"氏名"]
[]
[]
[]
[]
[]
[null,null,null,null,null,null,null,null,null,null,null,null,null,null,null,null,null,null,null,null,null,null,null,null,null,"14 配当割額又は株式等譲渡所得割額の控除に関する事項",null,null,null,null,null,null,null,null,null,null,null,null,null,null,null,null,null,null,null,null,null,null,null,null,null,null,null,null,null,null,null,null,null,null,null,null,"15 寄附金に関する事項"]
[]
[]
[null,null,null,null,null,null,null,null,null,null,null,null,null,null,null,null,null,null,null,null,null,null,null,null,null,"　特定配当等に係る所得金額、特定株式等譲渡所得金額を総所得金額に含め、配当割額又は株式等譲渡所得割額の控除を受けようとする場合は､下の各欄に配当割額及び株式等譲渡所得割額を書き入れてください。",null,null,null,null,null,null,null,null,null,null,null,null,null,null,null,null,null,null,null,null,null,null,null,null,null,null,null,null,null,null,null,null,null,null,null,null,"都道府県、市区町村分\n（特例控除対象）",null,null,null,null,null,null,null,null,null,null,null,null,null,null,null,null,null,null,null,null,null,null,null,null,null,"円"]
[]
[]
[]
[null,null,null,null,null,null,null,null,null,null,null,null,null,null,null,null,null,null,null,null,null,null,null,null,null,null,null,null,null,null,null,null,null,null,null,null,null,null,null,null,null,null,null,null,null,null,null,null,null,null,null,null,null,null,null,null,null,null,null,null,null,null,"住所地の共同募金会、日赤支部分・都道府県、市区町村分（特例控除対象以外）"]
[]
[]
[]
[null,null,null,null,null,null,null,null,null,null,null,null,null,null,null,null,null,null,null,null,null,null,null,null,null,null,null,null,null,null,null,null,null,null,null,null,null,null,null,null,null,null,null,null,null,null,null,null,null,null,null,null,null,null,null,null,null,null,null,null,null,null,"条例指定分",null,null,null,null,null,null,null,"都道府県"]
[null,null,null,null,null,null,null,null,null,null,null,null,null,null,null,null,null,null,null,null,null,null,null,null,null,"配当割額控除額",null,null,null,null,null,null,null,null,null,null,null,null,null,null,"円"]
[]
[]
[null,null,null,null,null,null,null,null,null,null,null,null,null,null,null,null,null,null,null,null,null,null,null,null,null,null,null,null,null,null,null,null,null,null,null,null,null,null,null,null,null,null,null,null,null,null,null,null,null,null,null,null,null,null,null,null,null,null,null,null,null,null,null,null,null,null,null,null,null,null,"市区町村"]
[null,null,null,null,null,null,null,null,null,null,null,null,null,null,null,null,null,null,null,null,null,null,null,null,null,"株式等譲渡所得割額控除額"]
[]
[]
[null,null,null,null,null,null,null,null,null,null,null,null,null,null,null,null,null,null,null,null,null,null,null,null,null,null,null,null,null,null,null,null,null,null,null,null,null,null,null,null,null,null,null,null,null,null,null,null,null,null,null,null,null,null,null,null,null,null,null,null,null,null,"　支出した寄附金に応じて、各欄にそれぞれ寄附した金額を記入してください。ただし、認定特定非営利活動法人及び仮認定特定非営利活動法人以外の特定非営利活動法人に対する寄附金については、上欄に記入せず、別途「寄附金税額控除申告書（二）」を提出して下さい。"]
[]
[]
[]
[]
[]
[]
[]
[]
[null,null,null,null,null,null,null,null,null,null,null,null,null,null,null,null,null,null,null,null,null,null,null,null,null,"16 所得金額調整控除に関する事項"]
[]
[]
[null,null,null,null,null,null,null,null,null,null,null,null,null,null,null,null,null,null,null,null,null,null,null,null,null,"フリガナ",null,null,null,null,null,null,null,null,null,null,null,null,null,null,"続柄",null,null,null,null,null,"生年月日",null,"明・大・昭\n平・令",null,null,null,"　　・　 ・　 ",null,null,null,null,"特別障害者に\n該当する場合",null,null,null,null,null,null,null,null,null,"級度",null,"別居の場合\nの住所"]
[]
[]
[]
[null,null,null,null,null,null,null,null,null,null,null,null,null,null,null,null,null,null,null,null,null,null,null,null,null,"氏名"]
[]
[]
[]
[null,null,null,null,null,null,null,null,null,null,null,null,null,null,null,null,null,null,null,null,null,null,null,null,null,"個人番号"]
[]
[]
[]
[]
[]
[]
[]
[]
[null,null,null,null,null,null,null,null,null,null,null,null,null,null,null,null,null,null,null,null,null,null,null,null,null,null,null,null,null,null,null,null,null,null,null,null,null,null,null,null,null,null,null,null,null,null,"（切り取らないでください。）"]